{"text_format":"1","workbook":"xlsx","n_sheets":4,"sheets":["Registre_Annuel","Registre_1","Registre_2","Registre_3"],"not_rendered":{"charts":0,"images":0,"macros":1,"external_links":0,"defined_names":0,"comments":0,"pivot_tables":0},"unopened":[],"bounds":{"document_bytes":16777216,"sheet_cells":100000,"rows_first":2000,"rows_last":500,"rows_between":2000,"halvings":0,"cell_chars":16384,"cell_head_chars":4096},"cells_cut":0,"cells_raw":0,"read":"whole","date_system":"1900"}

{"sheet":"Registre_Annuel","index":0,"n_rows":1426,"n_cols":8,"rows_kept":1426,"cut":false,"hidden":false,"merged":[[1424,2,1424,3],[1425,2,1425,3],[1415,2,1415,3],[1416,2,1416,3],[1417,2,1417,3],[1418,2,1418,3],[1419,2,1419,3],[1420,2,1420,3],[1421,2,1421,3],[1422,2,1422,3],[1423,2,1423,3],[1406,2,1406,3],[1407,2,1407,3],[1408,2,1408,3],[1409,2,1409,3],[1410,2,1410,3],[1411,2,1411,3],[1412,2,1412,3],[1413,2,1413,3],[1414,2,1414,3],[1397,2,1397,3],[1398,2,1398,3],[1399,2,1399,3],[1400,2,1400,3],[1401,2,1401,3],[1402,2,1402,3],[1403,2,1403,3],[1404,2,1404,3],[1405,2,1405,3],[1388,2,1388,3],[1389,2,1389,3],[1390,2,1390,3],[1391,2,1391,3],[1392,2,1392,3],[1393,2,1393,3],[1394,2,1394,3],[1395,2,1395,3],[1396,2,1396,3],[1379,2,1379,3],[1380,2,1380,3],[1381,2,1381,3],[1382,2,1382,3],[1383,2,1383,3],[1384,2,1384,3],[1385,2,1385,3],[1386,2,1386,3],[1387,2,1387,3],[1370,2,1370,3],[1371,2,1371,3],[1372,2,1372,3],[1373,2,1373,3],[1374,2,1374,3],[1375,2,1375,3],[1376,2,1376,3],[1377,2,1377,3],[1378,2,1378,3],[1361,2,1361,3],[1362,2,1362,3],[1363,2,1363,3],[1364,2,1364,3],[1365,2,1365,3],[1366,2,1366,3],[1367,2,1367,3],[1368,2,1368,3],[1369,2,1369,3],[1352,2,1352,3],[1353,2,1353,3],[1354,2,1354,3],[1355,2,1355,3],[1356,2,1356,3],[1357,2,1357,3],[1358,2,1358,3],[1359,2,1359,3],[1360,2,1360,3],[1343,2,1343,3],[1344,2,1344,3],[1345,2,1345,3],[1346,2,1346,3],[1347,2,1347,3],[1348,2,1348,3],[1349,2,1349,3],[1350,2,1350,3],[1351,2,1351,3],[1334,2,1334,3],[1335,2,1335,3],[1336,2,1336,3],[1337,2,1337,3],[1338,2,1338,3],[1339,2,1339,3],[1340,2,1340,3],[1341,2,1341,3],[1342,2,1342,3],[1325,2,1325,3],[1326,2,1326,3],[1327,2,1327,3],[1328,2,1328,3],[1329,2,1329,3],[1330,2,1330,3],[1331,2,1331,3],[1332,2,1332,3],[1333,2,1333,3],[1316,2,1316,3],[1317,2,1317,3],[1318,2,1318,3],[1319,2,1319,3],[1320,2,1320,3],[1321,2,1321,3],[1322,2,1322,3],[1323,2,1323,3],[1324,2,1324,3],[1307,2,1307,3],[1308,2,1308,3],[1309,2,1309,3],[1310,2,1310,3],[1311,2,1311,3],[1312,2,1312,3],[1313,2,1313,3],[1314,2,1314,3],[1315,2,1315,3],[1298,2,1298,3],[1299,2,1299,3],[1300,2,1300,3],[1301,2,1301,3],[1302,2,1302,3],[1303,2,1303,3],[1304,2,1304,3],[1305,2,1305,3],[1306,2,1306,3],[1289,2,1289,3],[1290,2,1290,3],[1291,2,1291,3],[1292,2,1292,3],[1293,2,1293,3],[1294,2,1294,3],[1295,2,1295,3],[1296,2,1296,3],[1297,2,1297,3],[1280,2,1280,3],[1281,2,1281,3],[1282,2,1282,3],[1283,2,1283,3],[1284,2,1284,3],[1285,2,1285,3],[1286,2,1286,3],[1287,2,1287,3],[1288,2,1288,3],[1271,2,1271,3],[1272,2,1272,3],[1273,2,1273,3],[1274,2,1274,3],[1275,2,1275,3],[1276,2,1276,3],[1277,2,1277,3],[1278,2,1278,3],[1279,2,1279,3],[1262,2,1262,3],[1263,2,1263,3],[1264,2,1264,3],[1265,2,1265,3],[1266,2,1266,3],[1267,2,1267,3],[1268,2,1268,3],[1269,2,1269,3],[1270,2,1270,3],[1253,2,1253,3],[1254,2,1254,3],[1255,2,1255,3],[1256,2,1256,3],[1257,2,1257,3],[1258,2,1258,3],[1259,2,1259,3],[1260,2,1260,3],[1261,2,1261,3],[1244,2,1244,3],[1245,2,1245,3],[1246,2,1246,3],[1247,2,1247,3],[1248,2,1248,3],[1249,2,1249,3],[1250,2,1250,3],[1251,2,1251,3],[1252,2,1252,3],[1235,2,1235,3],[1236,2,1236,3],[1237,2,1237,3],[1238,2,1238,3],[1239,2,1239,3],[1240,2,1240,3],[1241,2,1241,3],[1242,2,1242,3],[1243,2,1243,3],[1226,2,1226,3],[1227,2,1227,3],[1228,2,1228,3],[1229,2,1229,3],[1230,2,1230,3],[1231,2,1231,3],[1232,2,1232,3],[1233,2,1233,3],[1234,2,1234,3],[1217,2,1217,3],[1218,2,1218,3],[1219,2,1219,3],[1220,2,1220,3],[1221,2,1221,3],[1222,2,1222,3],[1223,2,1223,3],[1224,2,1224,3],[1225,2,1225,3],[1208,2,1208,3],[1209,2,1209,3],[1210,2,1210,3],[1211,2,1211,3],[1212,2,1212,3],[1213,2,1213,3],[1214,2,1214,3],[1215,2,1215,3],[1216,2,1216,3],[1199,2,1199,3],[1200,2,1200,3],[1201,2,1201,3],[1202,2,1202,3],[1203,2,1203,3],[1204,2,1204,3],[1205,2,1205,3],[1206,2,1206,3],[1207,2,1207,3],[1190,2,1190,3],[1191,2,1191,3],[1192,2,1192,3],[1193,2,1193,3],[1194,2,1194,3],[1195,2,1195,3],[1196,2,1196,3],[1197,2,1197,3],[1198,2,1198,3],[1181,2,1181,3],[1182,2,1182,3],[1183,2,1183,3],[1184,2,1184,3],[1185,2,1185,3],[1186,2,1186,3],[1187,2,1187,3],[1188,2,1188,3],[1189,2,1189,3],[1172,2,1172,3],[1173,2,1173,3],[1174,2,1174,3],[1175,2,1175,3],[1176,2,1176,3],[1177,2,1177,3],[1178,2,1178,3],[1179,2,1179,3],[1180,2,1180,3],[1163,2,1163,3],[1164,2,1164,3],[1165,2,1165,3],[1166,2,1166,3],[1167,2,1167,3],[1168,2,1168,3],[1169,2,1169,3],[1170,2,1170,3],[1171,2,1171,3],[1154,2,1154,3],[1155,2,1155,3],[1156,2,1156,3],[1157,2,1157,3],[1158,2,1158,3],[1159,2,1159,3],[1160,2,1160,3],[1161,2,1161,3],[1162,2,1162,3],[1145,2,1145,3],[1146,2,1146,3],[1147,2,1147,3],[1148,2,1148,3],[1149,2,1149,3],[1150,2,1150,3],[1151,2,1151,3],[1152,2,1152,3],[1153,2,1153,3],[1136,2,1136,3],[1137,2,1137,3],[1138,2,1138,3],[1139,2,1139,3],[1140,2,1140,3],[1141,2,1141,3],[1142,2,1142,3],[1143,2,1143,3],[1144,2,1144,3],[1127,2,1127,3],[1128,2,1128,3],[1129,2,1129,3],[1130,2,1130,3],[1131,2,1131,3],[1132,2,1132,3],[1133,2,1133,3],[1134,2,1134,3],[1135,2,1135,3],[1118,2,1118,3],[1119,2,1119,3],[1120,2,1120,3],[1121,2,1121,3],[1122,2,1122,3],[1123,2,1123,3],[1124,2,1124,3],[1125,2,1125,3],[1126,2,1126,3],[1109,2,1109,3],[1110,2,1110,3],[1111,2,1111,3],[1112,2,1112,3],[1113,2,1113,3],[1114,2,1114,3],[1115,2,1115,3],[1116,2,1116,3],[1117,2,1117,3],[1100,2,1100,3],[1101,2,1101,3],[1102,2,1102,3],[1103,2,1103,3],[1104,2,1104,3],[1105,2,1105,3],[1106,2,1106,3],[1107,2,1107,3],[1108,2,1108,3],[1091,2,1091,3],[1092,2,1092,3],[1093,2,1093,3],[1094,2,1094,3],[1095,2,1095,3],[1096,2,1096,3],[1097,2,1097,3],[1098,2,1098,3],[1099,2,1099,3],[1082,2,1082,3],[1083,2,1083,3],[1084,2,1084,3],[1085,2,1085,3],[1086,2,1086,3],[1087,2,1087,3],[1088,2,1088,3],[1089,2,1089,3],[1090,2,1090,3],[1073,2,1073,3],[1074,2,1074,3],[1075,2,1075,3],[1076,2,1076,3],[1077,2,1077,3],[1078,2,1078,3],[1079,2,1079,3],[1080,2,1080,3],[1081,2,1081,3],[1064,2,1064,3],[1065,2,1065,3],[1066,2,1066,3],[1067,2,1067,3],[1068,2,1068,3],[1069,2,1069,3],[1070,2,1070,3],[1071,2,1071,3],[1072,2,1072,3],[1055,2,1055,3],[1056,2,1056,3],[1057,2,1057,3],[1058,2,1058,3],[1059,2,1059,3],[1060,2,1060,3],[1061,2,1061,3],[1062,2,1062,3],[1063,2,1063,3],[1046,2,1046,3],[1047,2,1047,3],[1048,2,1048,3],[1049,2,1049,3],[1050,2,1050,3],[1051,2,1051,3],[1052,2,1052,3],[1053,2,1053,3],[1054,2,1054,3],[1037,2,1037,3],[1038,2,1038,3],[1039,2,1039,3],[1040,2,1040,3],[1041,2,1041,3],[1042,2,1042,3],[1043,2,1043,3],[1044,2,1044,3],[1045,2,1045,3],[1028,2,1028,3],[1029,2,1029,3],[1030,2,1030,3],[1031,2,1031,3],[1032,2,1032,3],[1033,2,1033,3],[1034,2,1034,3],[1035,2,1035,3],[1036,2,1036,3],[1019,2,1019,3],[1020,2,1020,3],[1021,2,1021,3],[1022,2,1022,3],[1023,2,1023,3],[1024,2,1024,3],[1025,2,1025,3],[1026,2,1026,3],[1027,2,1027,3],[1010,2,1010,3],[1011,2,1011,3],[1012,2,1012,3],[1013,2,1013,3],[1014,2,1014,3],[1015,2,1015,3],[1016,2,1016,3],[1017,2,1017,3],[1018,2,1018,3],[1001,2,1001,3],[1002,2,1002,3],[1003,2,1003,3],[1004,2,1004,3],[1005,2,1005,3],[1006,2,1006,3],[1007,2,1007,3],[1008,2,1008,3],[1009,2,1009,3],[992,2,992,3],[993,2,993,3],[994,2,994,3],[995,2,995,3],[996,2,996,3],[997,2,997,3],[998,2,998,3],[999,2,999,3],[1000,2,1000,3],[983,2,983,3],[984,2,984,3],[985,2,985,3],[986,2,986,3],[987,2,987,3],[988,2,988,3],[989,2,989,3],[990,2,990,3],[991,2,991,3],[974,2,974,3],[975,2,975,3],[976,2,976,3],[977,2,977,3],[978,2,978,3],[979,2,979,3],[980,2,980,3],[981,2,981,3],[982,2,982,3],[965,2,965,3],[966,2,966,3],[967,2,967,3],[968,2,968,3],[969,2,969,3],[970,2,970,3],[971,2,971,3],[972,2,972,3],[973,2,973,3],[956,2,956,3],[957,2,957,3],[958,2,958,3],[959,2,959,3],[960,2,960,3],[961,2,961,3],[962,2,962,3],[963,2,963,3],[964,2,964,3],[947,2,947,3],[948,2,948,3],[949,2,949,3],[950,2,950,3],[951,2,951,3],[952,2,952,3],[953,2,953,3],[954,2,954,3],[955,2,955,3],[938,2,938,3],[939,2,939,3],[940,2,940,3],[941,2,941,3],[942,2,942,3],[943,2,943,3],[944,2,944,3],[945,2,945,3],[946,2,946,3],[929,2,929,3],[930,2,930,3],[931,2,931,3],[932,2,932,3],[933,2,933,3],[934,2,934,3],[935,2,935,3],[936,2,936,3],[937,2,937,3],[920,2,920,3],[921,2,921,3],[922,2,922,3],[923,2,923,3],[924,2,924,3],[925,2,925,3],[926,2,926,3],[927,2,927,3],[928,2,928,3],[911,2,911,3],[912,2,912,3],[913,2,913,3],[914,2,914,3],[915,2,915,3],[916,2,916,3],[917,2,917,3],[918,2,918,3],[919,2,919,3],[902,2,902,3],[903,2,903,3],[904,2,904,3],[905,2,905,3],[906,2,906,3],[907,2,907,3],[908,2,908,3],[909,2,909,3],[910,2,910,3],[893,2,893,3],[894,2,894,3],[895,2,895,3],[896,2,896,3],[897,2,897,3],[898,2,898,3],[899,2,899,3],[900,2,900,3],[901,2,901,3],[884,2,884,3],[885,2,885,3],[886,2,886,3],[887,2,887,3],[888,2,888,3],[889,2,889,3],[890,2,890,3],[891,2,891,3],[892,2,892,3],[875,2,875,3],[876,2,876,3],[877,2,877,3],[878,2,878,3],[879,2,879,3],[880,2,880,3],[881,2,881,3],[882,2,882,3],[883,2,883,3],[866,2,866,3],[867,2,867,3],[868,2,868,3],[869,2,869,3],[870,2,870,3],[871,2,871,3],[872,2,872,3],[873,2,873,3],[874,2,874,3],[857,2,857,3],[858,2,858,3],[859,2,859,3],[860,2,860,3],[861,2,861,3],[862,2,862,3],[863,2,863,3],[864,2,864,3],[865,2,865,3],[848,2,848,3],[849,2,849,3],[850,2,850,3],[851,2,851,3],[852,2,852,3],[853,2,853,3],[854,2,854,3],[855,2,855,3],[856,2,856,3],[839,2,839,3],[840,2,840,3],[841,2,841,3],[842,2,842,3],[843,2,843,3],[844,2,844,3],[845,2,845,3],[846,2,846,3],[847,2,847,3],[830,2,830,3],[831,2,831,3],[832,2,832,3],[833,2,833,3],[834,2,834,3],[835,2,835,3],[836,2,836,3],[837,2,837,3],[838,2,838,3],[821,2,821,3],[822,2,822,3],[823,2,823,3],[824,2,824,3],[825,2,825,3],[826,2,826,3],[827,2,827,3],[828,2,828,3],[829,2,829,3],[812,2,812,3],[813,2,813,3],[814,2,814,3],[815,2,815,3],[816,2,816,3],[817,2,817,3],[818,2,818,3],[819,2,819,3],[820,2,820,3],[803,2,803,3],[804,2,804,3],[805,2,805,3],[806,2,806,3],[807,2,807,3],[808,2,808,3],[809,2,809,3],[810,2,810,3],[811,2,811,3],[794,2,794,3],[795,2,795,3],[796,2,796,3],[797,2,797,3],[798,2,798,3],[799,2,799,3],[800,2,800,3],[801,2,801,3],[802,2,802,3],[785,2,785,3],[786,2,786,3],[787,2,787,3],[788,2,788,3],[789,2,789,3],[790,2,790,3],[791,2,791,3],[792,2,792,3],[793,2,793,3],[776,2,776,3],[777,2,777,3],[778,2,778,3],[779,2,779,3],[780,2,780,3],[781,2,781,3],[782,2,782,3],[783,2,783,3],[784,2,784,3],[767,2,767,3],[768,2,768,3],[769,2,769,3],[770,2,770,3],[771,2,771,3],[772,2,772,3],[773,2,773,3],[774,2,774,3],[775,2,775,3],[758,2,758,3],[759,2,759,3],[760,2,760,3],[761,2,761,3],[762,2,762,3],[763,2,763,3],[764,2,764,3],[765,2,765,3],[766,2,766,3],[749,2,749,3],[750,2,750,3],[751,2,751,3],[752,2,752,3],[753,2,753,3],[754,2,754,3],[755,2,755,3],[756,2,756,3],[757,2,757,3],[740,2,740,3],[741,2,741,3],[742,2,742,3],[743,2,743,3],[744,2,744,3],[745,2,745,3],[746,2,746,3],[747,2,747,3],[748,2,748,3],[731,2,731,3],[732,2,732,3],[733,2,733,3],[734,2,734,3],[735,2,735,3],[736,2,736,3],[737,2,737,3],[738,2,738,3],[739,2,739,3],[722,2,722,3],[723,2,723,3],[724,2,724,3],[725,2,725,3],[726,2,726,3],[727,2,727,3],[728,2,728,3],[729,2,729,3],[730,2,730,3],[713,2,713,3],[714,2,714,3],[715,2,715,3],[716,2,716,3],[717,2,717,3],[718,2,718,3],[719,2,719,3],[720,2,720,3],[721,2,721,3],[704,2,704,3],[705,2,705,3],[706,2,706,3],[707,2,707,3],[708,2,708,3],[709,2,709,3],[710,2,710,3],[711,2,711,3],[712,2,712,3],[695,2,695,3],[696,2,696,3],[697,2,697,3],[698,2,698,3],[699,2,699,3],[700,2,700,3],[701,2,701,3],[702,2,702,3],[703,2,703,3],[686,2,686,3],[687,2,687,3],[688,2,688,3],[689,2,689,3],[690,2,690,3],[691,2,691,3],[692,2,692,3],[693,2,693,3],[694,2,694,3],[677,2,677,3],[678,2,678,3],[679,2,679,3],[680,2,680,3],[681,2,681,3],[682,2,682,3],[683,2,683,3],[684,2,684,3],[685,2,685,3],[668,2,668,3],[669,2,669,3],[670,2,670,3],[671,2,671,3],[672,2,672,3],[673,2,673,3],[674,2,674,3],[675,2,675,3],[676,2,676,3],[659,2,659,3],[660,2,660,3],[661,2,661,3],[662,2,662,3],[663,2,663,3],[664,2,664,3],[665,2,665,3],[666,2,666,3],[667,2,667,3],[650,2,650,3],[651,2,651,3],[652,2,652,3],[653,2,653,3],[654,2,654,3],[655,2,655,3],[656,2,656,3],[657,2,657,3],[658,2,658,3],[641,2,641,3],[642,2,642,3],[643,2,643,3],[644,2,644,3],[645,2,645,3],[646,2,646,3],[647,2,647,3],[648,2,648,3],[649,2,649,3],[632,2,632,3],[633,2,633,3],[634,2,634,3],[635,2,635,3],[636,2,636,3],[637,2,637,3],[638,2,638,3],[639,2,639,3],[640,2,640,3],[623,2,623,3],[624,2,624,3],[625,2,625,3],[626,2,626,3],[627,2,627,3],[628,2,628,3],[629,2,629,3],[630,2,630,3],[631,2,631,3],[614,2,614,3],[615,2,615,3],[616,2,616,3],[617,2,617,3],[618,2,618,3],[619,2,619,3],[620,2,620,3],[621,2,621,3],[622,2,622,3],[605,2,605,3],[606,2,606,3],[607,2,607,3],[608,2,608,3],[609,2,609,3],[610,2,610,3],[611,2,611,3],[612,2,612,3],[613,2,613,3],[596,2,596,3],[597,2,597,3],[598,2,598,3],[599,2,599,3],[600,2,600,3],[601,2,601,3],[602,2,602,3],[603,2,603,3],[604,2,604,3],[587,2,587,3],[588,2,588,3],[589,2,589,3],[590,2,590,3],[591,2,591,3],[592,2,592,3],[593,2,593,3],[594,2,594,3],[595,2,595,3],[578,2,578,3],[579,2,579,3],[580,2,580,3],[581,2,581,3],[582,2,582,3],[583,2,583,3],[584,2,584,3],[585,2,585,3],[586,2,586,3],[569,2,569,3],[570,2,570,3],[571,2,571,3],[572,2,572,3],[573,2,573,3],[574,2,574,3],[575,2,575,3],[576,2,576,3],[577,2,577,3],[560,2,560,3],[561,2,561,3],[562,2,562,3],[563,2,563,3],[564,2,564,3],[565,2,565,3],[566,2,566,3],[567,2,567,3],[568,2,568,3],[551,2,551,3],[552,2,552,3],[553,2,553,3],[554,2,554,3],[555,2,555,3],[556,2,556,3],[557,2,557,3],[558,2,558,3],[559,2,559,3],[542,2,542,3],[543,2,543,3],[544,2,544,3],[545,2,545,3],[546,2,546,3],[547,2,547,3],[548,2,548,3],[549,2,549,3],[550,2,550,3],[533,2,533,3],[534,2,534,3],[535,2,535,3],[536,2,536,3],[537,2,537,3],[538,2,538,3],[539,2,539,3],[540,2,540,3],[541,2,541,3],[524,2,524,3],[525,2,525,3],[526,2,526,3],[527,2,527,3],[528,2,528,3],[529,2,529,3],[530,2,530,3],[531,2,531,3],[532,2,532,3],[515,2,515,3],[516,2,516,3],[517,2,517,3],[518,2,518,3],[519,2,519,3],[520,2,520,3],[521,2,521,3],[522,2,522,3],[523,2,523,3],[506,2,506,3],[507,2,507,3],[508,2,508,3],[509,2,509,3],[510,2,510,3],[511,2,511,3],[512,2,512,3],[513,2,513,3],[514,2,514,3],[497,2,497,3],[498,2,498,3],[499,2,499,3],[500,2,500,3],[501,2,501,3],[502,2,502,3],[503,2,503,3],[504,2,504,3],[505,2,505,3],[488,2,488,3],[489,2,489,3],[490,2,490,3],[491,2,491,3],[492,2,492,3],[493,2,493,3],[494,2,494,3],[495,2,495,3],[496,2,496,3],[479,2,479,3],[480,2,480,3],[481,2,481,3],[482,2,482,3],[483,2,483,3],[484,2,484,3],[485,2,485,3],[486,2,486,3],[487,2,487,3],[470,2,470,3],[471,2,471,3],[472,2,472,3],[473,2,473,3],[474,2,474,3],[475,2,475,3],[476,2,476,3],[477,2,477,3],[478,2,478,3],[461,2,461,3],[462,2,462,3],[463,2,463,3],[464,2,464,3],[465,2,465,3],[466,2,466,3],[467,2,467,3],[468,2,468,3],[469,2,469,3],[452,2,452,3],[453,2,453,3],[454,2,454,3],[455,2,455,3],[456,2,456,3],[457,2,457,3],[458,2,458,3],[459,2,459,3],[460,2,460,3],[443,2,443,3],[444,2,444,3],[445,2,445,3],[446,2,446,3],[447,2,447,3],[448,2,448,3],[449,2,449,3],[450,2,450,3],[451,2,451,3],[434,2,434,3],[435,2,435,3],[436,2,436,3],[437,2,437,3],[438,2,438,3],[439,2,439,3],[440,2,440,3],[441,2,441,3],[442,2,442,3],[425,2,425,3],[426,2,426,3],[427,2,427,3],[428,2,428,3],[429,2,429,3],[430,2,430,3],[431,2,431,3],[432,2,432,3]],"merged_total":1426,"flags":["merged_cut"]}
["Date d'enlèvement","Nature du déchets","Quantité de déchets\n (en kg)",null,"Unité","Installation de destination \n(nom et adresse)","Transporteur ","Fiche d'intervention"]
["2018-01-02","TOUT VENANT",null,null,null,{"$f":"IF(B2=\"TOUT VENANT\",\"Véolia Nice Tri - Parc d'activité logistique\",IF(B2=\"DECHETS VERTS\",\"Orédui Carros Compostage - ZI de la Grave\",IF(B2=\"GRAVATS PROPRES\",\"La Gaude K3 Sita Sud - 5211 Rte de St Jeannet\",IF(B2=\"GRAVATS SALES\",\"Véolia Nice Tri - 20 Ch du Saquier\",IF(B2=\"BOIS\",\"SEAS La Glacière - 1019 Rte de la Grasse\",IF(B2=\"METAUX\",\"Carros\",IF(B2=\"NEON\",\"Sofovar - 126 Av Louis Lépine - 83600 Fréjus\",IF(B2=\"PEINTURES\",\"Orédui - ZI Bois de Grasse - 06310 Grasse\",IF(B2=\"FROIDS\",\"SEAS - 1079 Rte de Grasse - 06270 Villeneuve Loubet\",IF(B2=\"HORS FROIDS\",\"SEAS - 1079 Rte de Grasse - 06270 Villeneuve Loubet\",IF(B2=\"PAM\",\"SEAS - 1079 Rte de Grasse - 06270 Villeneuve Loubet\",IF(B2=\"ECRANS\",\"SEAS - 1079 Rte de Grasse - 06270 Villeneuve Loubet\",IF(B2=\"HUILES DE VIDANGE\",\"SERAHU - 68 Ch de la Campanette - 06800 Cagnes sur Mer\")))))))))))))","v":"Véolia Nice Tri - Parc d'activité logistique"},{"$f":"IF(OR(B2=\"TOUT VENANT\",B2=\"DECHETS VERTS\",B2=\"GRAVATS SALES\",B2=\"GRAVATS PROPRES\",B2=\"BOIS\"),\"SUEZ\",IF(OR(B2=\"FROIDS\",B2=\"HORS FROIDS\",B2=\"PAM\",B2=\"ECRANS\"),\"SEAS\",IF(OR(B2=\"METAUX\"),\"DERICHEBOURG\",IF(OR(B2=\"NEON\"),\"SOFOVAR\",IF(OR(B2=\"PEINTURES\"),\"OREDUI\",IF(OR(B2=\"HUILES DE VIDANGE\"),\"SERAHU\"))))))","v":"SUEZ"},"B0300473502"]
["2018-01-02","GRAVATS SALES",null,null,null,{"$f":"IF(B3=\"TOUT VENANT\",\"Véolia Nice Tri - Parc d'activité logistique\",IF(B3=\"DECHETS VERTS\",\"Orédui Carros Compostage - ZI de la Grave\",IF(B3=\"GRAVATS PROPRES\",\"La Gaude K3 Sita Sud - 5211 Rte de St Jeannet\",IF(B3=\"GRAVATS SALES\",\"Véolia Nice Tri - 20 Ch du Saquier\",IF(B3=\"BOIS\",\"SEAS La Glacière - 1019 Rte de la Grasse\",IF(B3=\"METAUX\",\"Carros\",IF(B3=\"NEON\",\"Sofovar - 126 Av Louis Lépine - 83600 Fréjus\",IF(B3=\"PEINTURES\",\"Orédui - ZI Bois de Grasse - 06310 Grasse\",IF(B3=\"FROIDS\",\"SEAS - 1079 Rte de Grasse - 06270 Villeneuve Loubet\",IF(B3=\"HORS FROIDS\",\"SEAS - 1079 Rte de Grasse - 06270 Villeneuve Loubet\",IF(B3=\"PAM\",\"SEAS - 1079 Rte de Grasse - 06270 Villeneuve Loubet\",IF(B3=\"ECRANS\",\"SEAS - 1079 Rte de Grasse - 06270 Villeneuve Loubet\",IF(B3=\"HUILES DE VIDANGE\",\"SERAHU - 68 Ch de la Campanette - 06800 Cagnes sur Mer\")))))))))))))","v":"Véolia Nice Tri - 20 Ch du Saquier"},{"$f":"IF(OR(B3=\"TOUT VENANT\",B3=\"DECHETS VERTS\",B3=\"GRAVATS SALES\",B3=\"GRAVATS PROPRES\",B3=\"BOIS\"),\"SUEZ\",IF(OR(B3=\"FROIDS\",B3=\"HORS FROIDS\",B3=\"PAM\",B3=\"ECRANS\"),\"SEAS\",IF(OR(B3=\"METAUX\"),\"DERICHEBOURG\",IF(OR(B3=\"NEON\"),\"SOFOVAR\",IF(OR(B3=\"PEINTURES\"),\"OREDUI\",IF(OR(B3=\"HUILES DE VIDANGE\"),\"SERAHU\"))))))","v":"SUEZ"},"B0300472042"]
["2018-01-02","BOIS",1100,null,null,"SEAS La Glacière - 1019 Rte de la Grasse","SUEZ","B0300471874"]
["2018-01-02","TOUT VENANT",1720,null,null,"Véolia Nice Tri - Parc d'activité logistique","SUEZ","B0300472374"]
["2018-01-02","METAUX",null,null,null,"Carros","DERICHEBOURG",2461]
["2018-01-02","DECHETS VERTS",1060,null,null,"Orédui Carros Compostage - ZI de la Grave","SUEZ","B0300474375"]
["2018-01-02","DECHETS VERTS",2900,null,null,"Orédui Carros Compostage - ZI de la Grave","SUEZ","B0300471805"]
["2018-01-02","DECHETS VERTS",3280,null,null,"Orédui Carros Compostage - ZI de la Grave","SUEZ","B0300471912"]
["2018-01-02","BOIS",1580,null,null,"SEAS La Glacière - 1019 Rte de la Grasse","SUEZ","B0300474376"]
["2018-01-02","DECHETS VERTS",1060,null,null,"Orédui Carros Compostage - ZI de la Grave","SUEZ","B0300474375"]
["2018-01-02","BOIS",2020,null,null,"SEAS La Glacière - 1019 Rte de la Grasse","SUEZ","B0300472004"]
["2018-01-02","BOIS",1780,null,null,"SEAS La Glacière - 1019 Rte de la Grasse","SUEZ","B0300471836"]
["2018-01-02","GRAVATS PROPRES",null,null,null,"La Gaude K3 Sita Sud - 5211 Rte de St Jeannet","SUEZ","B0300473471"]
["2017-01-03","METAUX",null,null,null,"Carros","DERICHEBOURG",2464]
["2018-01-03","TOUT VENANT",null,null,null,"Véolia Nice Tri - Parc d'activité logistique","SUEZ","B0300472349"]
["2018-01-03","TOUT VENANT",null,null,null,"Véolia Nice Tri - Parc d'activité logistique","SUEZ","B0300472476"]
["2018-01-03","TOUT VENANT",null,null,null,"Véolia Nice Tri - Parc d'activité logistique","SUEZ","B0300472380"]
["2018-01-03","TOUT VENANT",null,null,null,"Véolia Nice Tri - Parc d'activité logistique","SUEZ","B0300474482"]
["2018-01-03","TOUT VENANT",null,null,null,"Véolia Nice Tri - Parc d'activité logistique","SUEZ","B0300474481"]
["2018-01-03","TOUT VENANT",null,null,null,"Véolia Nice Tri - Parc d'activité logistique","SUEZ","B0300474480"]
["2018-01-03","TOUT VENANT",null,null,null,"Véolia Nice Tri - Parc d'activité logistique","SUEZ","B0300474479"]
["2018-01-03","GRAVATS SALES",null,null,null,"Véolia Nice Tri - 20 Ch du Saquier","SUEZ","B0300473737"]
["2018-01-03","GRAVATS PROPRES",null,null,null,"La Gaude K3 Sita Sud - 5211 Rte de St Jeannet","SUEZ","B0300473508"]
["2018-01-03","GRAVATS SALES",null,null,null,"Véolia Nice Tri - 20 Ch du Saquier","SUEZ","B0300472048"]
["2018-01-03","GRAVATS PROPRES",null,null,null,"La Gaude K3 Sita Sud - 5211 Rte de St Jeannet","SUEZ","B0300473539"]
["2018-01-03","DECHETS VERTS",980,null,null,"Orédui Carros Compostage - ZI de la Grave","SUEZ","B0300471918"]
["2018-01-03","TOUT VENANT",1340,null,null,"Véolia Nice Tri - Parc d'activité logistique","SUEZ","B0300473576"]
["2018-01-03","BOIS",2240,null,null,"SEAS La Glacière - 1019 Rte de la Grasse","SUEZ","B0300471880"]
["2018-01-03","DECHETS VERTS",640,null,null,"Orédui Carros Compostage - ZI de la Grave","SUEZ","B0300472125"]
["2018-01-03","BOIS",1320,null,null,"SEAS La Glacière - 1019 Rte de la Grasse","SUEZ","B0300471842"]
["2018-01-03","BOIS",1660,null,null,"SEAS La Glacière - 1019 Rte de la Grasse","SUEZ","B0300472010"]
["2018-01-03","BOIS",1960,null,null,"SEAS La Glacière - 1019 Rte de la Grasse","SUEZ","B0300471811"]
["2018-01-04","METAUX",null,null,null,"Carros","DERICHEBOURG",2468]
["2018-01-04","METAUX",null,null,null,"Carros","DERICHEBOURG",2470]
["2018-01-04","BOIS",1720,null,null,"SEAS La Glacière - 1019 Rte de la Grasse","SUEZ","B0300471848"]
["2018-01-04","DECHETS VERTS",1220,null,null,"Orédui Carros Compostage - ZI de la Grave","SUEZ","B0300471817"]
["2018-01-04","DECHETS VERTS",null,null,null,"Orédui Carros Compostage - ZI de la Grave","SUEZ","B0300474550"]
["2018-01-04","DECHETS VERTS",1620,null,null,"Orédui Carros Compostage - ZI de la Grave","SUEZ","B0300471924"]
["2018-01-04","DECHETS VERTS",820,null,null,"Orédui Carros Compostage - ZI de la Grave","SUEZ","B0300474555"]
["2018-01-04","BOIS",1540,null,null,"SEAS La Glacière - 1019 Rte de la Grasse","SUEZ","B0300471886"]
["2018-01-04","TOUT VENANT",2340,null,null,"Véolia Nice Tri - Parc d'activité logistique","SUEZ","B0300473582"]
["2018-01-04","TOUT VENANT",1780,null,null,"Véolia Nice Tri - Parc d'activité logistique","SUEZ","B0300474515"]
["2018-01-04","TOUT VENANT",960,null,null,"Véolia Nice Tri - Parc d'activité logistique","SUEZ","B0300474512"]
["2018-01-04","BOIS",2480,null,null,"SEAS La Glacière - 1019 Rte de la Grasse","SUEZ","B0300472016"]
["2018-01-04","TOUT VENANT",880,null,null,"Véolia Nice Tri - Parc d'activité logistique","SUEZ","B0300474514"]
["2018-01-04","TOUT VENANT",920,null,null,"Véolia Nice Tri - Parc d'activité logistique","SUEZ","B0300472482"]
["2018-01-04","TOUT VENANT",1580,null,null,"Véolia Nice Tri - Parc d'activité logistique","SUEZ","B0300472386"]
["2018-01-04","TOUT VENANT",1560,null,null,"Véolia Nice Tri - Parc d'activité logistique","SUEZ","B0300472355"]
["2018-01-04","GRAVATS SALES",null,null,null,"Véolia Nice Tri - 20 Ch du Saquier","SUEZ","B0300472054"]
["2018-01-04","GRAVATS PROPRES",null,null,null,"La Gaude K3 Sita Sud - 5211 Rte de St Jeannet","SUEZ","B0300473483"]
["2018-01-04","GRAVATS PROPRES",null,null,null,"La Gaude K3 Sita Sud - 5211 Rte de St Jeannet","SUEZ","B0300473514"]
["2018-01-05","METAUX",null,null,null,"Carros","DERICHEBOURG",2474]
["2018-01-05","GRAVATS SALES",null,null,null,"Véolia Nice Tri - 20 Ch du Saquier","SUEZ","B0300472061"]
["2018-01-05","DECHETS VERTS",null,null,null,"Orédui Carros Compostage - ZI de la Grave","SUEZ","B0300472132"]
["2018-01-05","BOIS",null,null,null,"SEAS La Glacière - 1019 Rte de la Grasse","SUEZ","B0300471893"]
["2018-01-05","DECHETS VERTS",null,null,null,"Orédui Carros Compostage - ZI de la Grave","SUEZ","B0300471824"]
["2018-01-05","BOIS",null,null,null,"SEAS La Glacière - 1019 Rte de la Grasse","SUEZ","B0300472023"]
["2018-01-05","BOIS",null,null,null,"SEAS La Glacière - 1019 Rte de la Grasse","SUEZ","B0300471855"]
["2018-01-05","GRAVATS PROPRES",null,null,null,"La Gaude K3 Sita Sud - 5211 Rte de St Jeannet","SUEZ","B0300473521"]
["2018-01-05","GRAVATS SALES",null,null,null,"Véolia Nice Tri - 20 Ch du Saquier","SUEZ","B0300473750"]
["2018-01-05","GRAVATS PROPRES",null,null,null,"La Gaude K3 Sita Sud - 5211 Rte de St Jeannet","SUEZ","B0300473552"]
["2018-01-05","GRAVATS PROPRES",null,null,null,"La Gaude K3 Sita Sud - 5211 Rte de St Jeannet","SUEZ","B0300473490"]
["2018-01-05","TOUT VENANT",null,null,null,"Véolia Nice Tri - Parc d'activité logistique","SUEZ","B0300472362"]
["2018-01-05","TOUT VENANT",1820,null,null,"Véolia Nice Tri - Parc d'activité logistique","SUEZ","B0300472393"]
["2018-01-05","TOUT VENANT",1280,null,null,"Véolia Nice Tri - Parc d'activité logistique","SUEZ","B0300472489"]
["2018-01-05","TOUT VENANT",1260,null,null,{"$f":"IF(B67=\"TOUT VENANT\",\"Véolia Nice Tri - Parc d'activité logistique\",IF(B67=\"DECHETS VERTS\",\"Orédui Carros Compostage - ZI de la Grave\",IF(B67=\"GRAVATS PROPRES\",\"La Gaude K3 Sita Sud - 5211 Rte de St Jeannet\",IF(B67=\"GRAVATS SALES\",\"Véolia Nice Tri - 20 Ch du Saquier\",IF(B67=\"BOIS\",\"SEAS La Glacière - 1019 Rte de la Grasse\",IF(B67=\"METAUX\",\"Carros\",IF(B67=\"NEON\",\"Sofovar - 126 Av Louis Lépine - 83600 Fréjus\",IF(B67=\"PEINTURES\",\"Orédui - ZI Bois de Grasse - 06310 Grasse\",IF(B67=\"FROIDS\",\"SEAS - 1079 Rte de Grasse - 06270 Villeneuve Loubet\",IF(B67=\"HORS FROIDS\",\"SEAS - 1079 Rte de Grasse - 06270 Villeneuve Loubet\",IF(B67=\"PAM\",\"SEAS - 1079 Rte de Grasse - 06270 Villeneuve Loubet\",IF(B67=\"ECRANS\",\"SEAS - 1079 Rte de Grasse - 06270 Villeneuve Loubet\",IF(B67=\"HUILES DE VIDANGE\",\"SERAHU - 68 Ch de la Campanette - 06800 Cagnes sur Mer\")))))))))))))","v":"Véolia Nice Tri - Parc d'activité logistique"},{"$f":"IF(OR(B67=\"TOUT VENANT\",B67=\"DECHETS VERTS\",B67=\"GRAVATS SALES\",B67=\"GRAVATS PROPRES\",B67=\"BOIS\"),\"SUEZ\",IF(OR(B67=\"FROIDS\",B67=\"HORS FROIDS\",B67=\"PAM\",B67=\"ECRANS\"),\"SEAS\",IF(OR(B67=\"METAUX\"),\"DERICHEBOURG\",IF(OR(B67=\"NEON\"),\"SOFOVAR\",IF(OR(B67=\"PEINTURES\"),\"OREDUI\",IF(OR(B67=\"HUILES DE VIDANGE\"),\"SERAHU\"))))))","v":"SUEZ"},"B0300474622"]
["2018-01-05","TOUT VENANT",1600,null,null,"Véolia Nice Tri - Parc d'activité logistique","SUEZ","B0300474623"]
["2018-01-05","TOUT VENANT",3580,null,null,"Véolia Nice Tri - Parc d'activité logistique","SUEZ","B0300474624"]
["2018-01-06","METAUX",null,null,null,"Carros","DERICHEBOURG",2477]
["2018-01-06","TOUT VENANT",2440,null,null,"Véolia Nice Tri - Parc d'activité logistique","SUEZ","B0300472181"]
["2018-01-06","TOUT VENANT",1040,null,null,"Véolia Nice Tri - Parc d'activité logistique","SUEZ","B0300474663"]
["2018-01-06","TOUT VENANT",800,null,null,"Véolia Nice Tri - Parc d'activité logistique","SUEZ","B0300474662"]
["2018-01-06","TOUT VENANT",1400,null,null,"Véolia Nice Tri - Parc d'activité logistique","SUEZ","B0300474664"]
["2018-01-06","TOUT VENANT",2520,null,null,"Véolia Nice Tri - Parc d'activité logistique","SUEZ","B0300472167"]
["2018-01-06","TOUT VENANT",1640,null,null,"Véolia Nice Tri - Parc d'activité logistique","SUEZ","B0300472188"]
["2018-01-06","TOUT VENANT",1560,null,null,"Véolia Nice Tri - Parc d'activité logistique","SUEZ","B0300472195"]
["2018-01-06","METAUX",null,null,null,"Carros","DERICHEBOURG",2478]
["2018-01-06","GRAVATS PROPRES",null,null,null,"La Gaude K3 Sita Sud - 5211 Rte de St Jeannet","SUEZ","B0300472699"]
["2018-01-06","BOIS",null,null,null,"SEAS La Glacière - 1019 Rte de la Grasse","SUEZ","B0300472223"]
["2018-01-06","DECHETS VERTS",null,null,null,"Orédui Carros Compostage - ZI de la Grave","SUEZ","B0300472209"]
["2018-01-06","GRAVATS SALES",null,null,null,"Véolia Nice Tri - 20 Ch du Saquier","SUEZ","B0300473757"]
["2018-01-08","TOUT VENANT",1880,null,null,"Véolia Nice Tri - Parc d'activité logistique","SUEZ","B0300474648"]
["2018-01-08","BOIS",1240,null,null,"SEAS La Glacière - 1019 Rte de la Grasse","SUEZ","B0300471999"]
["2018-01-08","BOIS",1380,null,null,"SEAS La Glacière - 1019 Rte de la Grasse","SUEZ","B0300471831"]
["2018-01-08","DECHETS VERTS",3220,null,null,"Orédui Carros Compostage - ZI de la Grave","SUEZ","B0300472120"]
["2018-01-08","BOIS",1780,null,null,"SEAS La Glacière - 1019 Rte de la Grasse","SUEZ","B0300471869"]
["2018-01-08","TOUT VENANT",1520,null,null,"Véolia Nice Tri - Parc d'activité logistique","SUEZ","B0300471800"]
["2018-01-08","GRAVATS SALES",null,null,null,"Véolia Nice Tri - 20 Ch du Saquier","SUEZ","B0300473466"]
["2018-01-08","GRAVATS PROPRES",null,null,null,"La Gaude K3 Sita Sud - 5211 Rte de St Jeannet","SUEZ","B0300471769"]
["2018-01-08","GRAVATS SALES",null,null,null,"Véolia Nice Tri - 20 Ch du Saquier","SUEZ","B0300473726"]
["2018-01-08","GRAVATS PROPRES",null,null,null,"La Gaude K3 Sita Sud - 5211 Rte de St Jeannet","SUEZ","B0300473528"]
["2018-01-08","METAUX",null,null,null,"Carros","DERICHEBOURG",2439]
["2018-01-08","GRAVATS PROPRES",null,null,null,"La Gaude K3 Sita Sud - 5211 Rte de St Jeannet","SUEZ","B0300472037"]
["2018-01-08","TOUT VENANT",1820,null,null,"Véolia Nice Tri - Parc d'activité logistique","SUEZ","B0300474644"]
["2018-01-08","DECHETS VERTS",1360,null,null,"Orédui Carros Compostage - ZI de la Grave","SUEZ","B0300474649"]
["2018-01-08","TOUT VENANT",2280,null,null,"Véolia Nice Tri - Parc d'activité logistique","SUEZ","B0300472465"]
["2018-01-08","TOUT VENANT",null,null,null,"Véolia Nice Tri - Parc d'activité logistique","SUEZ","B0300473565"]
["2018-01-08","TOUT VENANT",1740,null,null,"Véolia Nice Tri - Parc d'activité logistique","SUEZ","B0300472369"]
["2018-01-08","TOUT VENANT",1800,null,null,"Véolia Nice Tri - Parc d'activité logistique","SUEZ","B0300474647"]
["2018-01-08","TOUT VENANT",1400,null,null,"Véolia Nice Tri - Parc d'activité logistique","SUEZ","B0300474646"]
["2018-01-08","TOUT VENANT",1760,null,null,"Véolia Nice Tri - Parc d'activité logistique","SUEZ","B0300472338"]
["2018-01-09","DECHETS VERTS",1900,null,null,"Orédui Carros Compostage - ZI de la Grave","SUEZ","B0300471806"]
["2018-01-09","BOIS",1560,null,null,"SEAS La Glacière - 1019 Rte de la Grasse","SUEZ","B0300471837"]
["2018-01-09","GRAVATS PROPRES",null,null,null,"La Gaude K3 Sita Sud - 5211 Rte de St Jeannet","SUEZ","B0300473503"]
["2018-01-09","GRAVATS SALES",null,null,null,"Véolia Nice Tri - 20 Ch du Saquier","SUEZ","B0300472043"]
["2018-01-09","GRAVATS PROPRES",null,null,null,"La Gaude K3 Sita Sud - 5211 Rte de St Jeannet","SUEZ","B0300473472"]
["2018-01-09","DECHETS VERTS",600,null,null,"Orédui Carros Compostage - ZI de la Grave","SUEZ","B0300471913"]
["2018-01-09","METAUX",null,null,null,"Carros","DERICHEBOURG",2483]
["2018-01-09","DECHETS VERTS",2860,null,null,"Orédui Carros Compostage - ZI de la Grave","SUEZ","B0300474720"]
["2018-01-09","TOUT VENANT",null,null,null,"Véolia Nice Tri - Parc d'activité logistique","SUEZ","B0300472471"]
["2018-01-09","TOUT VENANT",2080,null,null,"Véolia Nice Tri - Parc d'activité logistique","SUEZ","B0300473571"]
["2018-01-09","TOUT VENANT",1180,null,null,"Véolia Nice Tri - Parc d'activité logistique","SUEZ","B0300474722"]
["2018-01-09","BOIS",1800,null,null,"SEAS La Glacière - 1019 Rte de la Grasse","SUEZ","B0300471875"]
["2018-01-09","TOUT VENANT",1640,null,null,"Véolia Nice Tri - Parc d'activité logistique","SUEZ","B0300474723"]
["2018-01-09","TOUT VENANT",null,null,null,"Véolia Nice Tri - Parc d'activité logistique","SUEZ","B0300474724"]
["2018-01-09","TOUT VENANT",3260,null,null,"Véolia Nice Tri - Parc d'activité logistique","SUEZ",652]
["2018-01-09","TOUT VENANT",3880,null,null,"Véolia Nice Tri - Parc d'activité logistique","SUEZ",651]
["2018-01-09","TOUT VENANT",3180,null,null,"Véolia Nice Tri - Parc d'activité logistique","SUEZ",653]
["2018-01-10","METAUX",null,null,null,"Carros","DERICHEBOURG",2446]
["2018-01-10","BOIS",1360,null,null,"SEAS La Glacière - 1019 Rte de la Grasse","SUEZ","B0300472011"]
["2018-01-10","DECHETS VERTS",1420,null,null,"Orédui Carros Compostage - ZI de la Grave","SUEZ","B0300471919"]
["2018-01-10","TOUT VENANT",3920,null,null,"Véolia Nice Tri - Parc d'activité logistique","SUEZ",654]
["2018-01-10","DECHETS VERTS",920,null,null,"Orédui Carros Compostage - ZI de la Grave","SUEZ","B0300472126"]
["2018-01-10","TOUT VENANT",null,null,null,"Véolia Nice Tri - Parc d'activité logistique","SUEZ","B0300473577"]
["2018-01-10","TOUT VENANT",1160,null,null,"Véolia Nice Tri - Parc d'activité logistique","SUEZ","B0300472477"]
["2018-01-10","TOUT VENANT",700,null,null,"Véolia Nice Tri - Parc d'activité logistique","SUEZ","B0300472381"]
["2018-01-10","BOIS",1520,null,null,"SEAS La Glacière - 1019 Rte de la Grasse","SUEZ","B0300471843"]
["2018-01-10","GRAVATS PROPRES",null,null,null,"La Gaude K3 Sita Sud - 5211 Rte de St Jeannet","SUEZ","B0300473540"]
["2018-01-10","GRAVATS SALES",4700,null,null,"Véolia Nice Tri - 20 Ch du Saquier","SUEZ","B0300473738"]
["2018-01-10","GRAVATS PROPRES",3850,null,null,{"$f":"IF(B131=\"TOUT VENANT\",\"Véolia Nice Tri - Parc d'activité logistique\",IF(B131=\"DECHETS VERTS\",\"Orédui Carros Compostage - ZI de la Grave\",IF(B131=\"GRAVATS PROPRES\",\"La Gaude K3 Sita Sud - 5211 Rte de St Jeannet\",IF(B131=\"GRAVATS SALES\",\"Véolia Nice Tri - 20 Ch du Saquier\",IF(B131=\"BOIS\",\"SEAS La Glacière - 1019 Rte de la Grasse\",IF(B131=\"METAUX\",\"Carros\",IF(B131=\"NEON\",\"Sofovar - 126 Av Louis Lépine - 83600 Fréjus\",IF(B131=\"PEINTURES\",\"Orédui - ZI Bois de Grasse - 06310 Grasse\",IF(B131=\"FROIDS\",\"SEAS - 1079 Rte de Grasse - 06270 Villeneuve Loubet\",IF(B131=\"HORS FROIDS\",\"SEAS - 1079 Rte de Grasse - 06270 Villeneuve Loubet\",IF(B131=\"PAM\",\"SEAS - 1079 Rte de Grasse - 06270 Villeneuve Loubet\",IF(B131=\"ECRANS\",\"SEAS - 1079 Rte de Grasse - 06270 Villeneuve Loubet\",IF(B131=\"HUILES DE VIDANGE\",\"SERAHU - 68 Ch de la Campanette - 06800 Cagnes sur Mer\")))))))))))))","v":"La Gaude K3 Sita Sud - 5211 Rte de St Jeannet"},{"$f":"IF(OR(B131=\"TOUT VENANT\",B131=\"DECHETS VERTS\",B131=\"GRAVATS SALES\",B131=\"GRAVATS PROPRES\",B131=\"BOIS\"),\"SUEZ\",IF(OR(B131=\"FROIDS\",B131=\"HORS FROIDS\",B131=\"PAM\",B131=\"ECRANS\"),\"SEAS\",IF(OR(B131=\"METAUX\"),\"DERICHEBOURG\",IF(OR(B131=\"NEON\"),\"SOFOVAR\",IF(OR(B131=\"PEINTURES\"),\"OREDUI\",IF(OR(B131=\"HUILES DE VIDANGE\"),\"SERAHU\"))))))","v":"SUEZ"},"B0300473478"]
["2018-01-10","GRAVATS PROPRES",7350,null,null,"La Gaude K3 Sita Sud - 5211 Rte de St Jeannet","SUEZ","B0300471781"]
["2018-01-10","GRAVATS SALES",5840,null,null,"Véolia Nice Tri - 20 Ch du Saquier","SUEZ","B0300472049"]
["2018-01-10","TOUT VENANT",null,null,null,"Véolia Nice Tri - Parc d'activité logistique","SUEZ",655]
["2018-01-10","DECHETS VERTS",680,null,null,"Orédui Carros Compostage - ZI de la Grave","SUEZ","B0300475995"]
["2018-01-10","TOUT VENANT",2160,null,null,"Véolia Nice Tri - Parc d'activité logistique","SUEZ","B0300475997"]
["2018-01-10","TOUT VENANT",null,null,null,"Véolia Nice Tri - Parc d'activité logistique","SUEZ","B0300475998"]
["2018-01-10","TOUT VENANT",1360,null,null,"Véolia Nice Tri - Parc d'activité logistique","SUEZ","B0300472350"]
["2018-01-11","METAUX",null,null,null,"Carros","DERICHEBOURG",2450]
["2018-01-11","DECHETS VERTS",1000,null,null,"Orédui Carros Compostage - ZI de la Grave","SUEZ","B0300471818"]
["2018-01-11","DECHETS VERTS",2520,null,null,"Orédui Carros Compostage - ZI de la Grave","SUEZ","B0300471925"]
["2018-01-11","TOUT VENANT",2140,null,null,"Véolia Nice Tri - Parc d'activité logistique","SUEZ","B0300472483"]
["2018-01-11","GRAVATS PROPRES",null,null,null,"La Gaude K3 Sita Sud - 5211 Rte de St Jeannet","SUEZ","B0300473546"]
["2018-01-11","GRAVATS SALES",null,null,null,"Véolia Nice Tri - 20 Ch du Saquier","SUEZ","B0300473744"]
["2018-01-11","GRAVATS PROPRES",null,null,null,"La Gaude K3 Sita Sud - 5211 Rte de St Jeannet","SUEZ","B0300473515"]
["2018-01-11","GRAVATS SALES",null,null,null,"Véolia Nice Tri - 20 Ch du Saquier","SUEZ","B0300472055"]
["2018-01-11","GRAVATS PROPRES",null,null,null,"La Gaude K3 Sita Sud - 5211 Rte de St Jeannet","SUEZ","B0300473484"]
["2018-01-11","TOUT VENANT",1440,null,null,"Véolia Nice Tri - Parc d'activité logistique","SUEZ","B0300472387"]
["2018-01-11","BOIS",1480,null,null,"SEAS La Glacière - 1019 Rte de la Grasse","SUEZ","B0300471849"]
["2018-01-11","TOUT VENANT",null,null,null,"Véolia Nice Tri - Parc d'activité logistique","SUEZ","B0300476015"]
["2018-01-11","TOUT VENANT",1700,null,null,"Véolia Nice Tri - Parc d'activité logistique","SUEZ","B0300476016"]
["2018-01-11","TOUT VENANT",3200,null,null,"Véolia Nice Tri - Parc d'activité logistique","SUEZ","B0300473583"]
["2018-01-11","DECHETS VERTS",1480,null,null,"Orédui Carros Compostage - ZI de la Grave","SUEZ","B0300476014"]
["2018-01-11","BOIS",2180,null,null,"SEAS La Glacière - 1019 Rte de la Grasse","SUEZ","B0300471887"]
["2018-01-11","TOUT VENANT",1580,null,null,"Véolia Nice Tri - Parc d'activité logistique","SUEZ","B0300476017"]
["2018-01-12","GRAVATS PROPRES",8850,null,null,"La Gaude K3 Sita Sud - 5211 Rte de St Jeannet","SUEZ","B0300473491"]
["2018-01-11","NEON",null,null,null,"Sofovar - 126 Av Louis Lépine - 83600 Fréjus","SOFOVAR","265116E"]
["2018-01-11","HUILES DE VIDANGE",900,null,null,"SERAHU - 68 Ch de la Campanette - 06800 Cagnes sur Mer","SERAHU","0088899A"]
["2018-01-12","GRAVATS SALES",4360,null,null,"Véolia Nice Tri - 20 Ch du Saquier","SUEZ","B0300472062"]
["2018-01-12","DECHETS VERTS",1140,null,null,"Orédui Carros Compostage - ZI de la Grave","SUEZ","B0300471825"]
["2018-01-12","BOIS",2420,null,null,"SEAS La Glacière - 1019 Rte de la Grasse","SUEZ","B0300471856"]
["2018-01-12","TOUT VENANT",1500,null,null,"Véolia Nice Tri - Parc d'activité logistique","SUEZ","B0300472490"]
["2018-01-12","TOUT VENANT",4100,null,null,"Véolia Nice Tri - Parc d'activité logistique","SUEZ",103251]
["2018-01-12","GRAVATS PROPRES",6150,null,null,"La Gaude K3 Sita Sud - 5211 Rte de St Jeannet","SUEZ","B0300473522"]
["2018-01-12","DECHETS VERTS",1040,null,null,"Orédui Carros Compostage - ZI de la Grave","SUEZ","B0300471932"]
["2018-01-12","GRAVATS PROPRES",4560,null,null,"La Gaude K3 Sita Sud - 5211 Rte de St Jeannet","SUEZ","BAL085"]
["2018-01-12","BOIS",2060,null,null,"SEAS La Glacière - 1019 Rte de la Grasse","SUEZ","B0300471894"]
["2018-01-12","GRAVATS PROPRES",6400,null,null,"La Gaude K3 Sita Sud - 5211 Rte de St Jeannet","SUEZ","B0300473553"]
["2018-01-12","TOUT VENANT",3240,null,null,"Véolia Nice Tri - Parc d'activité logistique","SUEZ",103252]
["2018-01-12","DECHETS VERTS",2160,null,null,"Orédui Carros Compostage - ZI de la Grave","SUEZ","B0300472133"]
["2018-01-12","TOUT VENANT",1820,null,null,"Véolia Nice Tri - Parc d'activité logistique","SUEZ","B0300473590"]
["2018-01-12","TOUT VENANT",2020,null,null,"Véolia Nice Tri - Parc d'activité logistique","SUEZ","B0300476072"]
["2018-01-12","BOIS",1880,null,null,"SEAS La Glacière - 1019 Rte de la Grasse","SUEZ","B0300472024"]
["2018-01-12","TOUT VENANT",2280,null,null,"Véolia Nice Tri - Parc d'activité logistique","SUEZ","B0300476073"]
["2018-01-12","BOIS",2200,null,null,"SEAS La Glacière - 1019 Rte de la Grasse","SUEZ","B0300472394"]
["2018-01-12","METAUX",null,null,null,"Carros","DERICHEBOURG",2205]
["2018-01-12","TOUT VENANT",1300,null,null,"Véolia Nice Tri - Parc d'activité logistique","SUEZ","B0300476075"]
["2018-01-13","METAUX",null,null,null,"Carros","DERICHEBOURG",2209]
["2018-01-13","BOIS",3000,null,null,"SEAS La Glacière - 1019 Rte de la Grasse","SUEZ","B0300472031"]
["2018-01-13","BOIS",860,null,null,"SEAS La Glacière - 1019 Rte de la Grasse","SUEZ","B0300471901"]
["2018-01-13","DECHETS VERTS",2400,null,null,"Orédui Carros Compostage - ZI de la Grave","SUEZ","B0300472140"]
["2018-01-13","BOIS",1440,null,null,"SEAS La Glacière - 1019 Rte de la Grasse","SUEZ","B0300471863"]
["2018-01-13","TOUT VENANT",2580,null,null,"Véolia Nice Tri - Parc d'activité logistique","SUEZ","B0300472168"]
["2018-01-13","TOUT VENANT",3020,null,null,"Véolia Nice Tri - Parc d'activité logistique","SUEZ","B0300476188"]
["2018-01-13","TOUT VENANT",1840,null,null,"Véolia Nice Tri - Parc d'activité logistique","SUEZ","B0300476189"]
["2018-01-13","TOUT VENANT",1400,null,null,"Véolia Nice Tri - Parc d'activité logistique","SUEZ","B0300476190"]
["2018-01-13","BOIS",1520,null,null,"SEAS La Glacière - 1019 Rte de la Grasse","SUEZ","B0300472182"]
["2018-01-13","TOUT VENANT",2340,null,null,"Véolia Nice Tri - Parc d'activité logistique","SUEZ","B0300472189"]
["2018-01-13","TOUT VENANT",1780,null,null,"Véolia Nice Tri - Parc d'activité logistique","SUEZ","B0300472196"]
["2018-01-13","GRAVATS PROPRES",6820,null,null,"La Gaude K3 Sita Sud - 5211 Rte de St Jeannet","SUEZ","B0300472693"]
["2018-01-13","GRAVATS PROPRES",5700,null,null,"La Gaude K3 Sita Sud - 5211 Rte de St Jeannet","SUEZ","B0300472707"]
["2018-01-13","GRAVATS PROPRES",10340,null,null,"La Gaude K3 Sita Sud - 5211 Rte de St Jeannet","SUEZ","B0300472700"]
["2018-01-13","GRAVATS SALES",4140,null,null,"Véolia Nice Tri - 20 Ch du Saquier","SUEZ","B0300473758"]
["2018-01-12","TOUT VENANT","2400",null,"","Véolia Nice Tri - Parc d'activité logistique","SUEZ","0103306"]
["12/01/18","PEINTURES","",null,"3",{"$f":"IF(B195=\"TOUT VENANT\",\"Véolia Nice Tri - Parc d'activité logistique\",IF(B195=\"DECHETS VERTS\",\"Orédui Carros Compostage - ZI de la Grave\",IF(B195=\"GRAVATS PROPRES\",\"La Gaude K3 Sita Sud - 5211 Rte de St Jeannet\",IF(B195=\"GRAVATS SALES\",\"Véolia Nice Tri - 20 Ch du Saquier\",IF(B195=\"BOIS\",\"SEAS La Glacière - 1019 Rte de la Grasse\",IF(B195=\"METAUX\",\"Carros\",IF(B195=\"NEON\",\"Sofovar - 126 Av Louis Lépine - 83600 Fréjus\",IF(B195=\"PEINTURES\",\"Orédui - ZI Bois de Grasse - 06310 Grasse\",IF(B195=\"FROIDS\",\"SEAS - 1079 Rte de Grasse - 06270 Villeneuve Loubet\",IF(B195=\"HORS FROIDS\",\"SEAS - 1079 Rte de Grasse - 06270 Villeneuve Loubet\",IF(B195=\"PAM\",\"SEAS - 1079 Rte de Grasse - 06270 Villeneuve Loubet\",IF(B195=\"ECRANS\",\"SEAS - 1079 Rte de Grasse - 06270 Villeneuve Loubet\",IF(B195=\"HUILES DE VIDANGE\",\"SERAHU - 68 Ch de la Campanette - 06800 Cagnes sur Mer\")))))))))))))","v":"Orédui - ZI Bois de Grasse - 06310 Grasse"},{"$f":"IF(OR(B195=\"TOUT VENANT\",B195=\"DECHETS VERTS\",B195=\"GRAVATS SALES\",B195=\"GRAVATS PROPRES\",B195=\"BOIS\"),\"SUEZ\",IF(OR(B195=\"FROIDS\",B195=\"HORS FROIDS\",B195=\"PAM\",B195=\"ECRANS\"),\"SEAS\",IF(OR(B195=\"METAUX\"),\"DERICHEBOURG\",IF(OR(B195=\"NEON\"),\"SOFOVAR\",IF(OR(B195=\"PEINTURES\"),\"OREDUI\",IF(OR(B195=\"HUILES DE VIDANGE\"),\"SERAHU\"))))))","v":"OREDUI"},"131077-0000200"]
[null,null,"",null,null,{"$f":"IF(B196=\"TOUT VENANT\",\"Véolia Nice Tri - Parc d'activité logistique\",IF(B196=\"DECHETS VERTS\",\"Orédui Carros Compostage - ZI de la Grave\",IF(B196=\"GRAVATS PROPRES\",\"La Gaude K3 Sita Sud - 5211 Rte de St Jeannet\",IF(B196=\"GRAVATS SALES\",\"Véolia Nice Tri - 20 Ch du Saquier\",IF(B196=\"BOIS\",\"SEAS La Glacière - 1019 Rte de la Grasse\",IF(B196=\"METAUX\",\"Carros\",IF(B196=\"NEON\",\"Sofovar - 126 Av Louis Lépine - 83600 Fréjus\",IF(B196=\"PEINTURES\",\"Orédui - ZI Bois de Grasse - 06310 Grasse\",IF(B196=\"FROIDS\",\"SEAS - 1079 Rte de Grasse - 06270 Villeneuve Loubet\",IF(B196=\"HORS FROIDS\",\"SEAS - 1079 Rte de Grasse - 06270 Villeneuve Loubet\",IF(B196=\"PAM\",\"SEAS - 1079 Rte de Grasse - 06270 Villeneuve Loubet\",IF(B196=\"ECRANS\",\"SEAS - 1079 Rte de Grasse - 06270 Villeneuve Loubet\",IF(B196=\"HUILES DE VIDANGE\",\"SERAHU - 68 Ch de la Campanette - 06800 Cagnes sur Mer\")))))))))))))","v":false},{"$f":"IF(OR(B196=\"TOUT VENANT\",B196=\"DECHETS VERTS\",B196=\"GRAVATS SALES\",B196=\"GRAVATS PROPRES\",B196=\"BOIS\"),\"SUEZ\",IF(OR(B196=\"FROIDS\",B196=\"HORS FROIDS\",B196=\"PAM\",B196=\"ECRANS\"),\"SEAS\",IF(OR(B196=\"METAUX\"),\"DERICHEBOURG\",IF(OR(B196=\"NEON\"),\"SOFOVAR\",IF(OR(B196=\"PEINTURES\"),\"OREDUI\",IF(OR(B196=\"HUILES DE VIDANGE\"),\"SERAHU\"))))))","v":false}]
[null,null,"",null,null,false,false]
[null,null,"",null,null,false,false]
[null,null,"",null,null,false,false]
[null,null,"",null,null,false,false]
[null,null,"",null,null,false,false]
[null,null,"",null,null,false,false]
[null,null,"",null,null,false,false]
[null,null,"",null,null,false,false]
[null,null,"",null,null,false,false]
[null,null,"",null,null,false,false]
[null,null,"",null,null,false,false]
[null,null,"",null,null,false,false]
[null,null,"",null,null,false,false]
[null,null,"",null,null,false,false]
[null,null,"",null,null,false,false]
[null,null,"",null,null,false,false]
[null,null,"",null,null,false,false]
[null,null,"",null,null,false,false]
[null,null,"",null,null,false,false]
[null,null,"",null,null,false,false]
[null,null,"",null,null,false,false]
[null,null,"",null,null,false,false]
[null,null,"",null,null,false,false]
[null,null,"",null,null,false,false]
[null,null,"",null,null,false,false]
[null,null,"",null,null,false,false]
[null,null,"",null,null,false,false]
[null,null,"",null,null,{"$f":"IF(B224=\"TOUT VENANT\",\"Véolia Nice Tri - Parc d'activité logistique\",IF(B224=\"DECHETS VERTS\",\"Orédui Carros Compostage - ZI de la Grave\",IF(B224=\"GRAVATS PROPRES\",\"La Gaude K3 Sita Sud - 5211 Rte de St Jeannet\",IF(B224=\"GRAVATS SALES\",\"Véolia Nice Tri - 20 Ch du Saquier\",IF(B224=\"BOIS\",\"SEAS La Glacière - 1019 Rte de la Grasse\",IF(B224=\"METAUX\",\"Carros\",IF(B224=\"NEON\",\"Sofovar - 126 Av Louis Lépine - 83600 Fréjus\",IF(B224=\"PEINTURES\",\"Orédui - ZI Bois de Grasse - 06310 Grasse\",IF(B224=\"FROIDS\",\"SEAS - 1079 Rte de Grasse - 06270 Villeneuve Loubet\",IF(B224=\"HORS FROIDS\",\"SEAS - 1079 Rte de Grasse - 06270 Villeneuve Loubet\",IF(B224=\"PAM\",\"SEAS - 1079 Rte de Grasse - 06270 Villeneuve Loubet\",IF(B224=\"ECRANS\",\"SEAS - 1079 Rte de Grasse - 06270 Villeneuve Loubet\",IF(B224=\"HUILES DE VIDANGE\",\"SERAHU - 68 Ch de la Campanette - 06800 Cagnes sur Mer\")))))))))))))","v":false},{"$f":"IF(OR(B224=\"TOUT VENANT\",B224=\"DECHETS VERTS\",B224=\"GRAVATS SALES\",B224=\"GRAVATS PROPRES\",B224=\"BOIS\"),\"SUEZ\",IF(OR(B224=\"FROIDS\",B224=\"HORS FROIDS\",B224=\"PAM\",B224=\"ECRANS\"),\"SEAS\",IF(OR(B224=\"METAUX\"),\"DERICHEBOURG\",IF(OR(B224=\"NEON\"),\"SOFOVAR\",IF(OR(B224=\"PEINTURES\"),\"OREDUI\",IF(OR(B224=\"HUILES DE VIDANGE\"),\"SERAHU\"))))))","v":false}]
[null,null,"",null,null,false,false]
[null,null,"",null,null,false,false]
[null,null,"",null,null,false,false]
[null,null,"",null,null,false,false]
[null,null,"",null,null,false,false]
[null,null,"",null,null,false,false]
[null,null,"",null,null,false,false]
[null,null,"",null,null,false,false]
[null,null,"",null,null,false,false]
[null,null,"",null,null,false,false]
[null,null,"",null,null,false,false]
[null,null,"",null,null,false,false]
[null,null,"",null,null,false,false]
[null,null,"",null,null,false,false]
[null,null,"",null,null,false,false]
[null,null,"",null,null,false,false]
[null,null,"",null,null,false,false]
[null,null,"",null,null,false,false]
[null,null,"",null,null,false,false]
[null,null,"",null,null,false,false]
[null,null,"",null,null,false,false]
[null,null,"",null,null,false,false]
[null,null,"",null,null,false,false]
[null,null,"",null,null,false,false]
[null,null,"",null,null,false,false]
[null,null,"",null,null,false,false]
[null,null,"",null,null,false,false]
[null,null,"",null,null,false,false]
[null,null,"",null,null,false,false]
[null,null,"",null,null,false,false]
[null,null,"",null,null,false,false]
[null,null,"",null,null,false,false]
[null,null,"",null,null,false,false]
[null,null,"",null,null,false,false]
[null,null,"",null,null,false,false]
[null,null,"",null,null,false,false]
[null,null,"",null,null,false,false]
[null,null,"",null,null,false,false]
[null,null,"",null,null,false,false]
[null,null,"",null,null,false,false]
[null,null,"",null,null,false,false]
[null,null,"",null,null,false,false]
[null,null,"",null,null,false,false]
[null,null,"",null,null,false,false]
[null,null,"",null,null,false,false]
[null,null,"",null,null,false,false]
[null,null,"",null,null,false,false]
[null,null,"",null,null,false,false]
[null,null,"",null,null,false,false]
[null,null,"",null,null,false,false]
[null,null,"",null,null,false,false]
[null,null,"",null,null,false,false]
[null,null,"",null,null,false,false]
[null,null,"",null,null,false,false]
[null,null,"",null,null,false,false]
[null,null,"",null,null,false,false]
[null,null,"",null,null,false,false]
[null,null,"",null,null,false,false]
[null,null,"",null,null,false,false]
[null,null,"",null,null,false,false]
[null,null,"",null,null,false,false]
[null,null,"",null,null,false,false]
[null,null,"",null,null,false,false]
[null,null,"",null,null,{"$f":"IF(B288=\"TOUT VENANT\",\"Véolia Nice Tri - Parc d'activité logistique\",IF(B288=\"DECHETS VERTS\",\"Orédui Carros Compostage - ZI de la Grave\",IF(B288=\"GRAVATS PROPRES\",\"La Gaude K3 Sita Sud - 5211 Rte de St Jeannet\",IF(B288=\"GRAVATS SALES\",\"Véolia Nice Tri - 20 Ch du Saquier\",IF(B288=\"BOIS\",\"SEAS La Glacière - 1019 Rte de la Grasse\",IF(B288=\"METAUX\",\"Carros\",IF(B288=\"NEON\",\"Sofovar - 126 Av Louis Lépine - 83600 Fréjus\",IF(B288=\"PEINTURES\",\"Orédui - ZI Bois de Grasse - 06310 Grasse\",IF(B288=\"FROIDS\",\"SEAS - 1079 Rte de Grasse - 06270 Villeneuve Loubet\",IF(B288=\"HORS FROIDS\",\"SEAS - 1079 Rte de Grasse - 06270 Villeneuve Loubet\",IF(B288=\"PAM\",\"SEAS - 1079 Rte de Grasse - 06270 Villeneuve Loubet\",IF(B288=\"ECRANS\",\"SEAS - 1079 Rte de Grasse - 06270 Villeneuve Loubet\",IF(B288=\"HUILES DE VIDANGE\",\"SERAHU - 68 Ch de la Campanette - 06800 Cagnes sur Mer\")))))))))))))","v":false},{"$f":"IF(OR(B288=\"TOUT VENANT\",B288=\"DECHETS VERTS\",B288=\"GRAVATS SALES\",B288=\"GRAVATS PROPRES\",B288=\"BOIS\"),\"SUEZ\",IF(OR(B288=\"FROIDS\",B288=\"HORS FROIDS\",B288=\"PAM\",B288=\"ECRANS\"),\"SEAS\",IF(OR(B288=\"METAUX\"),\"DERICHEBOURG\",IF(OR(B288=\"NEON\"),\"SOFOVAR\",IF(OR(B288=\"PEINTURES\"),\"OREDUI\",IF(OR(B288=\"HUILES DE VIDANGE\"),\"SERAHU\"))))))","v":false}]
[null,null,"",null,null,false,false]
[null,null,"",null,null,false,false]
[null,null,"",null,null,false,false]
[null,null,"",null,null,false,false]
[null,null,"",null,null,false,false]
[null,null,"",null,null,false,false]
[null,null,"",null,null,false,false]
[null,null,"",null,null,false,false]
[null,null,"",null,null,false,false]
[null,null,"",null,null,false,false]
[null,null,"",null,null,false,false]
[null,null,"",null,null,false,false]
[null,null,"",null,null,false,false]
[null,null,"",null,null,false,false]
[null,null,"",null,null,false,false]
[null,null,"",null,null,false,false]
[null,null,"",null,null,false,false]
[null,null,"",null,null,false,false]
[null,null,"",null,null,false,false]
[null,null,"",null,null,false,false]
[null,null,"",null,null,false,false]
[null,null,"",null,null,false,false]
[null,null,"",null,null,false,false]
[null,null,"",null,null,false,false]
[null,null,"",null,null,false,false]
[null,null,"",null,null,false,false]
[null,null,"",null,null,false,false]
[null,null,"",null,null,false,false]
[null,null,"",null,null,false,false]
[null,null,"",null,null,false,false]
[null,null,"",null,null,false,false]
[null,null,"",null,null,false,false]
[null,null,"",null,null,false,false]
[null,null,"",null,null,false,false]
[null,null,"",null,null,false,false]
[null,null,"",null,null,false,false]
[null,null,"",null,null,false,false]
[null,null,"",null,null,false,false]
[null,null,"",null,null,false,false]
[null,null,"",null,null,false,false]
[null,null,"",null,null,false,false]
[null,null,"",null,null,false,false]
[null,null,"",null,null,false,false]
[null,null,"",null,null,false,false]
[null,null,"",null,null,false,false]
[null,null,"",null,null,false,false]
[null,null,"",null,null,false,false]
[null,null,"",null,null,false,false]
[null,null,"",null,null,false,false]
[null,null,"",null,null,false,false]
[null,null,"",null,null,false,false]
[null,null,"",null,null,false,false]
[null,null,"",null,null,false,false]
[null,null,"",null,null,false,false]
[null,null,"",null,null,false,false]
[null,null,"",null,null,false,false]
[null,null,"",null,null,false,false]
[null,null,"",null,null,false,false]
[null,null,"",null,null,false,false]
[null,null,"",null,null,false,false]
[null,null,"",null,null,false,false]
[null,null,"",null,null,false,false]
[null,null,"",null,null,false,false]
[null,null,"",null,null,{"$f":"IF(B352=\"TOUT VENANT\",\"Véolia Nice Tri - Parc d'activité logistique\",IF(B352=\"DECHETS VERTS\",\"Orédui Carros Compostage - ZI de la Grave\",IF(B352=\"GRAVATS PROPRES\",\"La Gaude K3 Sita Sud - 5211 Rte de St Jeannet\",IF(B352=\"GRAVATS SALES\",\"Véolia Nice Tri - 20 Ch du Saquier\",IF(B352=\"BOIS\",\"SEAS La Glacière - 1019 Rte de la Grasse\",IF(B352=\"METAUX\",\"Carros\",IF(B352=\"NEON\",\"Sofovar - 126 Av Louis Lépine - 83600 Fréjus\",IF(B352=\"PEINTURES\",\"Orédui - ZI Bois de Grasse - 06310 Grasse\",IF(B352=\"FROIDS\",\"SEAS - 1079 Rte de Grasse - 06270 Villeneuve Loubet\",IF(B352=\"HORS FROIDS\",\"SEAS - 1079 Rte de Grasse - 06270 Villeneuve Loubet\",IF(B352=\"PAM\",\"SEAS - 1079 Rte de Grasse - 06270 Villeneuve Loubet\",IF(B352=\"ECRANS\",\"SEAS - 1079 Rte de Grasse - 06270 Villeneuve Loubet\",IF(B352=\"HUILES DE VIDANGE\",\"SERAHU - 68 Ch de la Campanette - 06800 Cagnes sur Mer\")))))))))))))","v":false},{"$f":"IF(OR(B352=\"TOUT VENANT\",B352=\"DECHETS VERTS\",B352=\"GRAVATS SALES\",B352=\"GRAVATS PROPRES\",B352=\"BOIS\"),\"SUEZ\",IF(OR(B352=\"FROIDS\",B352=\"HORS FROIDS\",B352=\"PAM\",B352=\"ECRANS\"),\"SEAS\",IF(OR(B352=\"METAUX\"),\"DERICHEBOURG\",IF(OR(B352=\"NEON\"),\"SOFOVAR\",IF(OR(B352=\"PEINTURES\"),\"OREDUI\",IF(OR(B352=\"HUILES DE VIDANGE\"),\"SERAHU\"))))))","v":false}]
[null,null,"",null,null,false,false]
[null,null,"",null,null,false,false]
[null,null,"",null,null,false,false]
[null,null,"",null,null,false,false]
[null,null,"",null,null,false,false]
[null,null,"",null,null,false,false]
[null,null,"",null,null,false,false]
[null,null,"",null,null,false,false]
[null,null,"",null,null,false,false]
[null,null,"",null,null,false,false]
[null,null,"",null,null,false,false]
[null,null,"",null,null,false,false]
[null,null,"",null,null,false,false]
[null,null,"",null,null,false,false]
[null,null,"",null,null,false,false]
[null,null,"",null,null,false,false]
[null,null,"",null,null,false,false]
[null,null,"",null,null,false,false]
[null,null,"",null,null,false,false]
[null,null,"",null,null,false,false]
[null,null,"",null,null,false,false]
[null,null,"",null,null,false,false]
[null,null,"",null,null,false,false]
[null,null,"",null,null,false,false]
[null,null,"",null,null,false,false]
[null,null,"",null,null,false,false]
[null,null,"",null,null,false,false]
[null,null,"",null,null,false,false]
[null,null,"",null,null,false,false]
[null,null,"",null,null,false,false]
[null,null,"",null,null,false,false]
[null,null,"",null,null,false,false]
[null,null,"",null,null,false,false]
[null,null,"",null,null,false,false]
[null,null,"",null,null,false,false]
[null,null,"",null,null,false,false]
[null,null,"",null,null,false,false]
[null,null,"",null,null,false,false]
[null,null,"",null,null,false,false]
[null,null,"",null,null,false,false]
[null,null,"",null,null,false,false]
[null,null,"",null,null,false,false]
[null,null,"",null,null,false,false]
[null,null,"",null,null,false,false]
[null,null,"",null,null,false,false]
[null,null,"",null,null,false,false]
[null,null,"",null,null,false,false]
[null,null,"",null,null,false,false]
[null,null,"",null,null,false,false]
[null,null,"",null,null,false,false]
[null,null,"",null,null,false,false]
[null,null,"",null,null,false,false]
[null,null,"",null,null,false,false]
[null,null,"",null,null,false,false]
[null,null,"",null,null,false,false]
[null,null,"",null,null,false,false]
[null,null,"",null,null,false,false]
[null,null,"",null,null,false,false]
[null,null,"",null,null,false,false]
[null,null,"",null,null,false,false]
[null,null,"",null,null,false,false]
[null,null,"",null,null,false,false]
[null,null,"",null,null,false,false]
[null,null,"",null,null,{"$f":"IF(B416=\"TOUT VENANT\",\"Véolia Nice Tri - Parc d'activité logistique\",IF(B416=\"DECHETS VERTS\",\"Orédui Carros Compostage - ZI de la Grave\",IF(B416=\"GRAVATS PROPRES\",\"La Gaude K3 Sita Sud - 5211 Rte de St Jeannet\",IF(B416=\"GRAVATS SALES\",\"Véolia Nice Tri - 20 Ch du Saquier\",IF(B416=\"BOIS\",\"SEAS La Glacière - 1019 Rte de la Grasse\",IF(B416=\"METAUX\",\"Carros\",IF(B416=\"NEON\",\"Sofovar - 126 Av Louis Lépine - 83600 Fréjus\",IF(B416=\"PEINTURES\",\"Orédui - ZI Bois de Grasse - 06310 Grasse\",IF(B416=\"FROIDS\",\"SEAS - 1079 Rte de Grasse - 06270 Villeneuve Loubet\",IF(B416=\"HORS FROIDS\",\"SEAS - 1079 Rte de Grasse - 06270 Villeneuve Loubet\",IF(B416=\"PAM\",\"SEAS - 1079 Rte de Grasse - 06270 Villeneuve Loubet\",IF(B416=\"ECRANS\",\"SEAS - 1079 Rte de Grasse - 06270 Villeneuve Loubet\",IF(B416=\"HUILES DE VIDANGE\",\"SERAHU - 68 Ch de la Campanette - 06800 Cagnes sur Mer\")))))))))))))","v":false},{"$f":"IF(OR(B416=\"TOUT VENANT\",B416=\"DECHETS VERTS\",B416=\"GRAVATS SALES\",B416=\"GRAVATS PROPRES\",B416=\"BOIS\"),\"SUEZ\",IF(OR(B416=\"FROIDS\",B416=\"HORS FROIDS\",B416=\"PAM\",B416=\"ECRANS\"),\"SEAS\",IF(OR(B416=\"METAUX\"),\"DERICHEBOURG\",IF(OR(B416=\"NEON\"),\"SOFOVAR\",IF(OR(B416=\"PEINTURES\"),\"OREDUI\",IF(OR(B416=\"HUILES DE VIDANGE\"),\"SERAHU\"))))))","v":false}]
[null,null,"",null,null,false,false]
[null,null,"",null,null,false,false]
[null,null,"",null,null,false,false]
[null,null,"",null,null,false,false]
[null,null,"",null,null,false,false]
[null,null,"",null,null,false,false]
[null,null,"",null,null,false,false]
[null,null,"",null,null,false,false]
[null,null,"",null,null,false,false]
[null,null,"",null,null,false,false]
[null,null,"",null,null,false,false]
[null,null,"",null,null,false,false]
[null,null,"",null,null,false,false]
[null,null,"",null,null,false,false]
[null,null,"",null,null,false,false]
[null,null,"",null,null,false,false]
[null,null,"",null,null,false,false]
[null,null,"",null,null,false,false]
[null,null,"",null,null,false,false]
[null,null,"",null,null,false,false]
[null,null,"",null,null,false,false]
[null,null,"",null,null,false,false]
[null,null,"",null,null,false,false]
[null,null,"",null,null,false,false]
[null,null,"",null,null,false,false]
[null,null,"",null,null,false,false]
[null,null,"",null,null,false,false]
[null,null,"",null,null,false,false]
[null,null,"",null,null,false,false]
[null,null,"",null,null,false,false]
[null,null,"",null,null,false,false]
[null,null,"",null,null,false,false]
[null,null,"",null,null,false,false]
[null,null,"",null,null,false,false]
[null,null,"",null,null,false,false]
[null,null,"",null,null,false,false]
[null,null,"",null,null,false,false]
[null,null,"",null,null,false,false]
[null,null,"",null,null,false,false]
[null,null,"",null,null,false,false]
[null,null,"",null,null,false,false]
[null,null,"",null,null,false,false]
[null,null,"",null,null,false,false]
[null,null,"",null,null,false,false]
[null,null,"",null,null,false,false]
[null,null,"",null,null,false,false]
[null,null,"",null,null,false,false]
[null,null,"",null,null,false,false]
[null,null,"",null,null,false,false]
[null,null,"",null,null,false,false]
[null,null,"",null,null,false,false]
[null,null,"",null,null,false,false]
[null,null,"",null,null,false,false]
[null,null,"",null,null,false,false]
[null,null,"",null,null,false,false]
[null,null,"",null,null,false,false]
[null,null,"",null,null,false,false]
[null,null,"",null,null,false,false]
[null,null,"",null,null,false,false]
[null,null,"",null,null,false,false]
[null,null,"",null,null,false,false]
[null,null,"",null,null,false,false]
[null,null,"",null,null,false,false]
[null,null,"",null,null,{"$f":"IF(B480=\"TOUT VENANT\",\"Véolia Nice Tri - Parc d'activité logistique\",IF(B480=\"DECHETS VERTS\",\"Orédui Carros Compostage - ZI de la Grave\",IF(B480=\"GRAVATS PROPRES\",\"La Gaude K3 Sita Sud - 5211 Rte de St Jeannet\",IF(B480=\"GRAVATS SALES\",\"Véolia Nice Tri - 20 Ch du Saquier\",IF(B480=\"BOIS\",\"SEAS La Glacière - 1019 Rte de la Grasse\",IF(B480=\"METAUX\",\"Carros\",IF(B480=\"NEON\",\"Sofovar - 126 Av Louis Lépine - 83600 Fréjus\",IF(B480=\"PEINTURES\",\"Orédui - ZI Bois de Grasse - 06310 Grasse\",IF(B480=\"FROIDS\",\"SEAS - 1079 Rte de Grasse - 06270 Villeneuve Loubet\",IF(B480=\"HORS FROIDS\",\"SEAS - 1079 Rte de Grasse - 06270 Villeneuve Loubet\",IF(B480=\"PAM\",\"SEAS - 1079 Rte de Grasse - 06270 Villeneuve Loubet\",IF(B480=\"ECRANS\",\"SEAS - 1079 Rte de Grasse - 06270 Villeneuve Loubet\",IF(B480=\"HUILES DE VIDANGE\",\"SERAHU - 68 Ch de la Campanette - 06800 Cagnes sur Mer\")))))))))))))","v":false},{"$f":"IF(OR(B480=\"TOUT VENANT\",B480=\"DECHETS VERTS\",B480=\"GRAVATS SALES\",B480=\"GRAVATS PROPRES\",B480=\"BOIS\"),\"SUEZ\",IF(OR(B480=\"FROIDS\",B480=\"HORS FROIDS\",B480=\"PAM\",B480=\"ECRANS\"),\"SEAS\",IF(OR(B480=\"METAUX\"),\"DERICHEBOURG\",IF(OR(B480=\"NEON\"),\"SOFOVAR\",IF(OR(B480=\"PEINTURES\"),\"OREDUI\",IF(OR(B480=\"HUILES DE VIDANGE\"),\"SERAHU\"))))))","v":false}]
[null,null,"",null,null,false,false]
[null,null,"",null,null,false,false]
[null,null,"",null,null,false,false]
[null,null,"",null,null,false,false]
[null,null,"",null,null,false,false]
[null,null,"",null,null,false,false]
[null,null,"",null,null,false,false]
[null,null,"",null,null,false,false]
[null,null,"",null,null,false,false]
[null,null,"",null,null,false,false]
[null,null,"",null,null,false,false]
[null,null,"",null,null,false,false]
[null,null,"",null,null,false,false]
[null,null,"",null,null,false,false]
[null,null,"",null,null,false,false]
[null,null,"",null,null,false,false]
[null,null,"",null,null,false,false]
[null,null,"",null,null,false,false]
[null,null,"",null,null,false,false]
[null,null,"",null,null,false,false]
[null,null,"",null,null,false,false]
[null,null,"",null,null,false,false]
[null,null,"",null,null,false,false]
[null,null,"",null,null,false,false]
[null,null,"",null,null,false,false]
[null,null,"",null,null,false,false]
[null,null,"",null,null,false,false]
[null,null,"",null,null,false,false]
[null,null,"",null,null,false,false]
[null,null,"",null,null,false,false]
[null,null,"",null,null,false,false]
[null,null,"",null,null,false,false]
[null,null,"",null,null,false,false]
[null,null,"",null,null,false,false]
[null,null,"",null,null,false,false]
[null,null,"",null,null,false,false]
[null,null,"",null,null,false,false]
[null,null,"",null,null,false,false]
[null,null,"",null,null,false,false]
[null,null,"",null,null,false,false]
[null,null,"",null,null,false,false]
[null,null,"",null,null,false,false]
[null,null,"",null,null,false,false]
[null,null,"",null,null,false,false]
[null,null,"",null,null,false,false]
[null,null,"",null,null,false,false]
[null,null,"",null,null,false,false]
[null,null,"",null,null,false,false]
[null,null,"",null,null,false,false]
[null,null,"",null,null,false,false]
[null,null,"",null,null,false,false]
[null,null,"",null,null,false,false]
[null,null,"",null,null,false,false]
[null,null,"",null,null,false,false]
[null,null,"",null,null,false,false]
[null,null,"",null,null,false,false]
[null,null,"",null,null,false,false]
[null,null,"",null,null,false,false]
[null,null,"",null,null,false,false]
[null,null,"",null,null,false,false]
[null,null,"",null,null,false,false]
[null,null,"",null,null,false,false]
[null,null,"",null,null,false,false]
[null,null,"",null,null,{"$f":"IF(B544=\"TOUT VENANT\",\"Véolia Nice Tri - Parc d'activité logistique\",IF(B544=\"DECHETS VERTS\",\"Orédui Carros Compostage - ZI de la Grave\",IF(B544=\"GRAVATS PROPRES\",\"La Gaude K3 Sita Sud - 5211 Rte de St Jeannet\",IF(B544=\"GRAVATS SALES\",\"Véolia Nice Tri - 20 Ch du Saquier\",IF(B544=\"BOIS\",\"SEAS La Glacière - 1019 Rte de la Grasse\",IF(B544=\"METAUX\",\"Carros\",IF(B544=\"NEON\",\"Sofovar - 126 Av Louis Lépine - 83600 Fréjus\",IF(B544=\"PEINTURES\",\"Orédui - ZI Bois de Grasse - 06310 Grasse\",IF(B544=\"FROIDS\",\"SEAS - 1079 Rte de Grasse - 06270 Villeneuve Loubet\",IF(B544=\"HORS FROIDS\",\"SEAS - 1079 Rte de Grasse - 06270 Villeneuve Loubet\",IF(B544=\"PAM\",\"SEAS - 1079 Rte de Grasse - 06270 Villeneuve Loubet\",IF(B544=\"ECRANS\",\"SEAS - 1079 Rte de Grasse - 06270 Villeneuve Loubet\",IF(B544=\"HUILES DE VIDANGE\",\"SERAHU - 68 Ch de la Campanette - 06800 Cagnes sur Mer\")))))))))))))","v":false},{"$f":"IF(OR(B544=\"TOUT VENANT\",B544=\"DECHETS VERTS\",B544=\"GRAVATS SALES\",B544=\"GRAVATS PROPRES\",B544=\"BOIS\"),\"SUEZ\",IF(OR(B544=\"FROIDS\",B544=\"HORS FROIDS\",B544=\"PAM\",B544=\"ECRANS\"),\"SEAS\",IF(OR(B544=\"METAUX\"),\"DERICHEBOURG\",IF(OR(B544=\"NEON\"),\"SOFOVAR\",IF(OR(B544=\"PEINTURES\"),\"OREDUI\",IF(OR(B544=\"HUILES DE VIDANGE\"),\"SERAHU\"))))))","v":false}]
[null,null,"",null,null,false,false]
[null,null,"",null,null,false,false]
[null,null,"",null,null,false,false]
[null,null,"",null,null,false,false]
[null,null,"",null,null,false,false]
[null,null,"",null,null,false,false]
[null,null,"",null,null,false,false]
[null,null,"",null,null,false,false]
[null,null,"",null,null,false,false]
[null,null,"",null,null,false,false]
[null,null,"",null,null,false,false]
[null,null,"",null,null,false,false]
[null,null,"",null,null,false,false]
[null,null,"",null,null,false,false]
[null,null,"",null,null,false,false]
[null,null,"",null,null,false,false]
[null,null,"",null,null,false,false]
[null,null,"",null,null,false,false]
[null,null,"",null,null,false,false]
[null,null,"",null,null,false,false]
[null,null,"",null,null,false,false]
[null,null,"",null,null,false,false]
[null,null,"",null,null,false,false]
[null,null,"",null,null,false,false]
[null,null,"",null,null,false,false]
[null,null,"",null,null,false,false]
[null,null,"",null,null,false,false]
[null,null,"",null,null,false,false]
[null,null,"",null,null,false,false]
[null,null,"",null,null,false,false]
[null,null,"",null,null,false,false]
[null,null,"",null,null,false,false]
[null,null,"",null,null,false,false]
[null,null,"",null,null,false,false]
[null,null,"",null,null,false,false]
[null,null,"",null,null,false,false]
[null,null,"",null,null,false,false]
[null,null,"",null,null,false,false]
[null,null,"",null,null,false,false]
[null,null,"",null,null,false,false]
[null,null,"",null,null,false,false]
[null,null,"",null,null,false,false]
[null,null,"",null,null,false,false]
[null,null,"",null,null,false,false]
[null,null,"",null,null,false,false]
[null,null,"",null,null,false,false]
[null,null,"",null,null,false,false]
[null,null,"",null,null,false,false]
[null,null,"",null,null,false,false]
[null,null,"",null,null,false,false]
[null,null,"",null,null,false,false]
[null,null,"",null,null,false,false]
[null,null,"",null,null,false,false]
[null,null,"",null,null,false,false]
[null,null,"",null,null,false,false]
[null,null,"",null,null,false,false]
[null,null,"",null,null,false,false]
[null,null,"",null,null,false,false]
[null,null,"",null,null,false,false]
[null,null,"",null,null,false,false]
[null,null,"",null,null,false,false]
[null,null,"",null,null,false,false]
[null,null,"",null,null,false,false]
[null,null,"",null,null,{"$f":"IF(B608=\"TOUT VENANT\",\"Véolia Nice Tri - Parc d'activité logistique\",IF(B608=\"DECHETS VERTS\",\"Orédui Carros Compostage - ZI de la Grave\",IF(B608=\"GRAVATS PROPRES\",\"La Gaude K3 Sita Sud - 5211 Rte de St Jeannet\",IF(B608=\"GRAVATS SALES\",\"Véolia Nice Tri - 20 Ch du Saquier\",IF(B608=\"BOIS\",\"SEAS La Glacière - 1019 Rte de la Grasse\",IF(B608=\"METAUX\",\"Carros\",IF(B608=\"NEON\",\"Sofovar - 126 Av Louis Lépine - 83600 Fréjus\",IF(B608=\"PEINTURES\",\"Orédui - ZI Bois de Grasse - 06310 Grasse\",IF(B608=\"FROIDS\",\"SEAS - 1079 Rte de Grasse - 06270 Villeneuve Loubet\",IF(B608=\"HORS FROIDS\",\"SEAS - 1079 Rte de Grasse - 06270 Villeneuve Loubet\",IF(B608=\"PAM\",\"SEAS - 1079 Rte de Grasse - 06270 Villeneuve Loubet\",IF(B608=\"ECRANS\",\"SEAS - 1079 Rte de Grasse - 06270 Villeneuve Loubet\",IF(B608=\"HUILES DE VIDANGE\",\"SERAHU - 68 Ch de la Campanette - 06800 Cagnes sur Mer\")))))))))))))","v":false},{"$f":"IF(OR(B608=\"TOUT VENANT\",B608=\"DECHETS VERTS\",B608=\"GRAVATS SALES\",B608=\"GRAVATS PROPRES\",B608=\"BOIS\"),\"SUEZ\",IF(OR(B608=\"FROIDS\",B608=\"HORS FROIDS\",B608=\"PAM\",B608=\"ECRANS\"),\"SEAS\",IF(OR(B608=\"METAUX\"),\"DERICHEBOURG\",IF(OR(B608=\"NEON\"),\"SOFOVAR\",IF(OR(B608=\"PEINTURES\"),\"OREDUI\",IF(OR(B608=\"HUILES DE VIDANGE\"),\"SERAHU\"))))))","v":false}]
[null,null,"",null,null,false,false]
[null,null,"",null,null,false,false]
[null,null,"",null,null,false,false]
[null,null,"",null,null,false,false]
[null,null,"",null,null,false,false]
[null,null,"",null,null,false,false]
[null,null,"",null,null,false,false]
[null,null,"",null,null,false,false]
[null,null,"",null,null,false,false]
[null,null,"",null,null,false,false]
[null,null,"",null,null,false,false]
[null,null,"",null,null,false,false]
[null,null,"",null,null,false,false]
[null,null,"",null,null,false,false]
[null,null,"",null,null,false,false]
[null,null,"",null,null,false,false]
[null,null,"",null,null,false,false]
[null,null,"",null,null,false,false]
[null,null,"",null,null,false,false]
[null,null,"",null,null,false,false]
[null,null,"",null,null,false,false]
[null,null,"",null,null,false,false]
[null,null,"",null,null,false,false]
[null,null,"",null,null,false,false]
[null,null,"",null,null,false,false]
[null,null,"",null,null,false,false]
[null,null,"",null,null,false,false]
[null,null,"",null,null,false,false]
[null,null,"",null,null,false,false]
[null,null,"",null,null,false,false]
[null,null,"",null,null,false,false]
[null,null,"",null,null,false,false]
[null,null,"",null,null,false,false]
[null,null,"",null,null,false,false]
[null,null,"",null,null,false,false]
[null,null,"",null,null,false,false]
[null,null,"",null,null,false,false]
[null,null,"",null,null,false,false]
[null,null,"",null,null,false,false]
[null,null,"",null,null,false,false]
[null,null,"",null,null,false,false]
[null,null,"",null,null,false,false]
[null,null,"",null,null,false,false]
[null,null,"",null,null,false,false]
[null,null,"",null,null,false,false]
[null,null,"",null,null,false,false]
[null,null,"",null,null,false,false]
[null,null,"",null,null,false,false]
[null,null,"",null,null,false,false]
[null,null,"",null,null,false,false]
[null,null,"",null,null,false,false]
[null,null,"",null,null,false,false]
[null,null,"",null,null,false,false]
[null,null,"",null,null,false,false]
[null,null,"",null,null,false,false]
[null,null,"",null,null,false,false]
[null,null,"",null,null,false,false]
[null,null,"",null,null,false,false]
[null,null,"",null,null,false,false]
[null,null,"",null,null,false,false]
[null,null,"",null,null,false,false]
[null,null,"",null,null,false,false]
[null,null,"",null,null,false,false]
[null,null,"",null,null,{"$f":"IF(B672=\"TOUT VENANT\",\"Véolia Nice Tri - Parc d'activité logistique\",IF(B672=\"DECHETS VERTS\",\"Orédui Carros Compostage - ZI de la Grave\",IF(B672=\"GRAVATS PROPRES\",\"La Gaude K3 Sita Sud - 5211 Rte de St Jeannet\",IF(B672=\"GRAVATS SALES\",\"Véolia Nice Tri - 20 Ch du Saquier\",IF(B672=\"BOIS\",\"SEAS La Glacière - 1019 Rte de la Grasse\",IF(B672=\"METAUX\",\"Carros\",IF(B672=\"NEON\",\"Sofovar - 126 Av Louis Lépine - 83600 Fréjus\",IF(B672=\"PEINTURES\",\"Orédui - ZI Bois de Grasse - 06310 Grasse\",IF(B672=\"FROIDS\",\"SEAS - 1079 Rte de Grasse - 06270 Villeneuve Loubet\",IF(B672=\"HORS FROIDS\",\"SEAS - 1079 Rte de Grasse - 06270 Villeneuve Loubet\",IF(B672=\"PAM\",\"SEAS - 1079 Rte de Grasse - 06270 Villeneuve Loubet\",IF(B672=\"ECRANS\",\"SEAS - 1079 Rte de Grasse - 06270 Villeneuve Loubet\",IF(B672=\"HUILES DE VIDANGE\",\"SERAHU - 68 Ch de la Campanette - 06800 Cagnes sur Mer\")))))))))))))","v":false},{"$f":"IF(OR(B672=\"TOUT VENANT\",B672=\"DECHETS VERTS\",B672=\"GRAVATS SALES\",B672=\"GRAVATS PROPRES\",B672=\"BOIS\"),\"SUEZ\",IF(OR(B672=\"FROIDS\",B672=\"HORS FROIDS\",B672=\"PAM\",B672=\"ECRANS\"),\"SEAS\",IF(OR(B672=\"METAUX\"),\"DERICHEBOURG\",IF(OR(B672=\"NEON\"),\"SOFOVAR\",IF(OR(B672=\"PEINTURES\"),\"OREDUI\",IF(OR(B672=\"HUILES DE VIDANGE\"),\"SERAHU\"))))))","v":false}]
[null,null,"",null,null,false,false]
[null,null,"",null,null,false,false]
[null,null,"",null,null,false,false]
[null,null,"",null,null,false,false]
[null,null,"",null,null,false,false]
[null,null,"",null,null,false,false]
[null,null,"",null,null,false,false]
[null,null,"",null,null,false,false]
[null,null,"",null,null,false,false]
[null,null,"",null,null,false,false]
[null,null,"",null,null,false,false]
[null,null,"",null,null,false,false]
[null,null,"",null,null,false,false]
[null,null,"",null,null,false,false]
[null,null,"",null,null,false,false]
[null,null,"",null,null,false,false]
[null,null,"",null,null,false,false]
[null,null,"",null,null,false,false]
[null,null,"",null,null,false,false]
[null,null,"",null,null,false,false]
[null,null,"",null,null,false,false]
[null,null,"",null,null,false,false]
[null,null,"",null,null,false,false]
[null,null,"",null,null,false,false]
[null,null,"",null,null,false,false]
[null,null,"",null,null,false,false]
[null,null,"",null,null,false,false]
[null,null,"",null,null,false,false]
[null,null,"",null,null,false,false]
[null,null,"",null,null,false,false]
[null,null,"",null,null,false,false]
[null,null,"",null,null,false,false]
[null,null,"",null,null,false,false]
[null,null,"",null,null,false,false]
[null,null,"",null,null,false,false]
[null,null,"",null,null,false,false]
[null,null,"",null,null,false,false]
[null,null,"",null,null,false,false]
[null,null,"",null,null,false,false]
[null,null,"",null,null,false,false]
[null,null,"",null,null,false,false]
[null,null,"",null,null,false,false]
[null,null,"",null,null,false,false]
[null,null,"",null,null,false,false]
[null,null,"",null,null,false,false]
[null,null,"",null,null,false,false]
[null,null,"",null,null,false,false]
[null,null,"",null,null,false,false]
[null,null,"",null,null,false,false]
[null,null,"",null,null,false,false]
[null,null,"",null,null,false,false]
[null,null,"",null,null,false,false]
[null,null,"",null,null,false,false]
[null,null,"",null,null,false,false]
[null,null,"",null,null,false,false]
[null,null,"",null,null,false,false]
[null,null,"",null,null,false,false]
[null,null,"",null,null,false,false]
[null,null,"",null,null,false,false]
[null,null,"",null,null,false,false]
[null,null,"",null,null,false,false]
[null,null,"",null,null,false,false]
[null,null,"",null,null,false,false]
[null,null,"",null,null,{"$f":"IF(B736=\"TOUT VENANT\",\"Véolia Nice Tri - Parc d'activité logistique\",IF(B736=\"DECHETS VERTS\",\"Orédui Carros Compostage - ZI de la Grave\",IF(B736=\"GRAVATS PROPRES\",\"La Gaude K3 Sita Sud - 5211 Rte de St Jeannet\",IF(B736=\"GRAVATS SALES\",\"Véolia Nice Tri - 20 Ch du Saquier\",IF(B736=\"BOIS\",\"SEAS La Glacière - 1019 Rte de la Grasse\",IF(B736=\"METAUX\",\"Carros\",IF(B736=\"NEON\",\"Sofovar - 126 Av Louis Lépine - 83600 Fréjus\",IF(B736=\"PEINTURES\",\"Orédui - ZI Bois de Grasse - 06310 Grasse\",IF(B736=\"FROIDS\",\"SEAS - 1079 Rte de Grasse - 06270 Villeneuve Loubet\",IF(B736=\"HORS FROIDS\",\"SEAS - 1079 Rte de Grasse - 06270 Villeneuve Loubet\",IF(B736=\"PAM\",\"SEAS - 1079 Rte de Grasse - 06270 Villeneuve Loubet\",IF(B736=\"ECRANS\",\"SEAS - 1079 Rte de Grasse - 06270 Villeneuve Loubet\",IF(B736=\"HUILES DE VIDANGE\",\"SERAHU - 68 Ch de la Campanette - 06800 Cagnes sur Mer\")))))))))))))","v":false},{"$f":"IF(OR(B736=\"TOUT VENANT\",B736=\"DECHETS VERTS\",B736=\"GRAVATS SALES\",B736=\"GRAVATS PROPRES\",B736=\"BOIS\"),\"SUEZ\",IF(OR(B736=\"FROIDS\",B736=\"HORS FROIDS\",B736=\"PAM\",B736=\"ECRANS\"),\"SEAS\",IF(OR(B736=\"METAUX\"),\"DERICHEBOURG\",IF(OR(B736=\"NEON\"),\"SOFOVAR\",IF(OR(B736=\"PEINTURES\"),\"OREDUI\",IF(OR(B736=\"HUILES DE VIDANGE\"),\"SERAHU\"))))))","v":false}]
[null,null,"",null,null,false,false]
[null,null,"",null,null,false,false]
[null,null,"",null,null,false,false]
[null,null,"",null,null,false,false]
[null,null,"",null,null,false,false]
[null,null,"",null,null,false,false]
[null,null,"",null,null,false,false]
[null,null,"",null,null,false,false]
[null,null,"",null,null,false,false]
[null,null,"",null,null,false,false]
[null,null,"",null,null,false,false]
[null,null,"",null,null,false,false]
[null,null,"",null,null,false,false]
[null,null,"",null,null,false,false]
[null,null,"",null,null,false,false]
[null,null,"",null,null,false,false]
[null,null,"",null,null,false,false]
[null,null,"",null,null,false,false]
[null,null,"",null,null,false,false]
[null,null,"",null,null,false,false]
[null,null,"",null,null,false,false]
[null,null,"",null,null,false,false]
[null,null,"",null,null,false,false]
[null,null,"",null,null,false,false]
[null,null,"",null,null,false,false]
[null,null,"",null,null,false,false]
[null,null,"",null,null,false,false]
[null,null,"",null,null,false,false]
[null,null,"",null,null,false,false]
[null,null,"",null,null,false,false]
[null,null,"",null,null,false,false]
[null,null,"",null,null,false,false]
[null,null,"",null,null,false,false]
[null,null,"",null,null,false,false]
[null,null,"",null,null,false,false]
[null,null,"",null,null,false,false]
[null,null,"",null,null,false,false]
[null,null,"",null,null,false,false]
[null,null,"",null,null,false,false]
[null,null,"",null,null,false,false]
[null,null,"",null,null,false,false]
[null,null,"",null,null,false,false]
[null,null,"",null,null,false,false]
[null,null,"",null,null,false,false]
[null,null,"",null,null,false,false]
[null,null,"",null,null,false,false]
[null,null,"",null,null,false,false]
[null,null,"",null,null,false,false]
[null,null,"",null,null,false,false]
[null,null,"",null,null,false,false]
[null,null,"",null,null,false,false]
[null,null,"",null,null,false,false]
[null,null,"",null,null,false,false]
[null,null,"",null,null,false,false]
[null,null,"",null,null,false,false]
[null,null,"",null,null,false,false]
[null,null,"",null,null,false,false]
[null,null,"",null,null,false,false]
[null,null,"",null,null,false,false]
[null,null,"",null,null,false,false]
[null,null,"",null,null,false,false]
[null,null,"",null,null,false,false]
[null,null,"",null,null,false,false]
[null,null,"",null,null,{"$f":"IF(B800=\"TOUT VENANT\",\"Véolia Nice Tri - Parc d'activité logistique\",IF(B800=\"DECHETS VERTS\",\"Orédui Carros Compostage - ZI de la Grave\",IF(B800=\"GRAVATS PROPRES\",\"La Gaude K3 Sita Sud - 5211 Rte de St Jeannet\",IF(B800=\"GRAVATS SALES\",\"Véolia Nice Tri - 20 Ch du Saquier\",IF(B800=\"BOIS\",\"SEAS La Glacière - 1019 Rte de la Grasse\",IF(B800=\"METAUX\",\"Carros\",IF(B800=\"NEON\",\"Sofovar - 126 Av Louis Lépine - 83600 Fréjus\",IF(B800=\"PEINTURES\",\"Orédui - ZI Bois de Grasse - 06310 Grasse\",IF(B800=\"FROIDS\",\"SEAS - 1079 Rte de Grasse - 06270 Villeneuve Loubet\",IF(B800=\"HORS FROIDS\",\"SEAS - 1079 Rte de Grasse - 06270 Villeneuve Loubet\",IF(B800=\"PAM\",\"SEAS - 1079 Rte de Grasse - 06270 Villeneuve Loubet\",IF(B800=\"ECRANS\",\"SEAS - 1079 Rte de Grasse - 06270 Villeneuve Loubet\",IF(B800=\"HUILES DE VIDANGE\",\"SERAHU - 68 Ch de la Campanette - 06800 Cagnes sur Mer\")))))))))))))","v":false},{"$f":"IF(OR(B800=\"TOUT VENANT\",B800=\"DECHETS VERTS\",B800=\"GRAVATS SALES\",B800=\"GRAVATS PROPRES\",B800=\"BOIS\"),\"SUEZ\",IF(OR(B800=\"FROIDS\",B800=\"HORS FROIDS\",B800=\"PAM\",B800=\"ECRANS\"),\"SEAS\",IF(OR(B800=\"METAUX\"),\"DERICHEBOURG\",IF(OR(B800=\"NEON\"),\"SOFOVAR\",IF(OR(B800=\"PEINTURES\"),\"OREDUI\",IF(OR(B800=\"HUILES DE VIDANGE\"),\"SERAHU\"))))))","v":false}]
[null,null,"",null,null,false,false]
[null,null,"",null,null,false,false]
[null,null,"",null,null,false,false]
[null,null,"",null,null,false,false]
[null,null,"",null,null,false,false]
[null,null,"",null,null,false,false]
[null,null,"",null,null,false,false]
[null,null,"",null,null,false,false]
[null,null,"",null,null,false,false]
[null,null,"",null,null,false,false]
[null,null,"",null,null,false,false]
[null,null,"",null,null,false,false]
[null,null,"",null,null,false,false]
[null,null,"",null,null,false,false]
[null,null,"",null,null,false,false]
[null,null,"",null,null,false,false]
[null,null,"",null,null,false,false]
[null,null,"",null,null,false,false]
[null,null,"",null,null,false,false]
[null,null,"",null,null,false,false]
[null,null,"",null,null,false,false]
[null,null,"",null,null,false,false]
[null,null,"",null,null,false,false]
[null,null,"",null,null,false,false]
[null,null,"",null,null,false,false]
[null,null,"",null,null,false,false]
[null,null,"",null,null,false,false]
[null,null,"",null,null,false,false]
[null,null,"",null,null,false,false]
[null,null,"",null,null,false,false]
[null,null,"",null,null,false,false]
[null,null,"",null,null,false,false]
[null,null,"",null,null,false,false]
[null,null,"",null,null,false,false]
[null,null,"",null,null,false,false]
[null,null,"",null,null,false,false]
[null,null,"",null,null,false,false]
[null,null,"",null,null,false,false]
[null,null,"",null,null,false,false]
[null,null,"",null,null,false,false]
[null,null,"",null,null,false,false]
[null,null,"",null,null,false,false]
[null,null,"",null,null,false,false]
[null,null,"",null,null,false,false]
[null,null,"",null,null,false,false]
[null,null,"",null,null,false,false]
[null,null,"",null,null,false,false]
[null,null,"",null,null,false,false]
[null,null,"",null,null,false,false]
[null,null,"",null,null,false,false]
[null,null,"",null,null,false,false]
[null,null,"",null,null,false,false]
[null,null,"",null,null,false,false]
[null,null,"",null,null,false,false]
[null,null,"",null,null,false,false]
[null,null,"",null,null,false,false]
[null,null,"",null,null,false,false]
[null,null,"",null,null,false,false]
[null,null,"",null,null,false,false]
[null,null,"",null,null,false,false]
[null,null,"",null,null,{"$f":"IF(B861=\"TOUT VENANT\",\"Véolia Nice Tri - Parc d'activité logistique\",IF(B861=\"DECHETS VERTS\",\"Orédui Carros Compostage - ZI de la Grave\",IF(B861=\"GRAVATS PROPRES\",\"La Gaude K3 Sita Sud - 5211 Rte de St Jeannet\",IF(B861=\"GRAVATS SALES\",\"Véolia Nice Tri - 20 Ch du Saquier\",IF(B861=\"BOIS\",\"SEAS La Glacière - 1019 Rte de la Grasse\",IF(B861=\"METAUX\",\"Carros\",IF(B861=\"NEON\",\"Sofovar - 126 Av Louis Lépine - 83600 Fréjus\",IF(B861=\"PEINTURES\",\"Orédui - ZI Bois de Grasse - 06310 Grasse\",IF(B861=\"FROIDS\",\"SEAS - 1079 Rte de Grasse - 06270 Villeneuve Loubet\",IF(B861=\"HORS FROIDS\",\"SEAS - 1079 Rte de Grasse - 06270 Villeneuve Loubet\",IF(B861=\"PAM\",\"SEAS - 1079 Rte de Grasse - 06270 Villeneuve Loubet\",IF(B861=\"ECRANS\",\"SEAS - 1079 Rte de Grasse - 06270 Villeneuve Loubet\",IF(B861=\"HUILES DE VIDANGE\",\"SERAHU - 68 Ch de la Campanette - 06800 Cagnes sur Mer\")))))))))))))","v":false},{"$f":"IF(OR(B861=\"TOUT VENANT\",B861=\"DECHETS VERTS\",B861=\"GRAVATS SALES\",B861=\"GRAVATS PROPRES\",B861=\"BOIS\"),\"SUEZ\",IF(OR(B861=\"FROIDS\",B861=\"HORS FROIDS\",B861=\"PAM\",B861=\"ECRANS\"),\"SEAS\",IF(OR(B861=\"METAUX\"),\"DERICHEBOURG\",IF(OR(B861=\"NEON\"),\"SOFOVAR\",IF(OR(B861=\"PEINTURES\"),\"OREDUI\",IF(OR(B861=\"HUILES DE VIDANGE\"),\"SERAHU\"))))))","v":false}]
[null,null,"",null,null,false,false]
[null,null,"",null,null,false,false]
[null,null,"",null,null,false,false]
[null,null,"",null,null,false,false]
[null,null,"",null,null,false,false]
[null,null,"",null,null,false,false]
[null,null,"",null,null,false,false]
[null,null,"",null,null,false,false]
[null,null,"",null,null,false,false]
[null,null,"",null,null,false,false]
[null,null,"",null,null,false,false]
[null,null,"",null,null,false,false]
[null,null,"",null,null,false,false]
[null,null,"",null,null,false,false]
[null,null,"",null,null,false,false]
[null,null,"",null,null,false,false]
[null,null,"",null,null,false,false]
[null,null,"",null,null,false,false]
[null,null,"",null,null,false,false]
[null,null,"",null,null,false,false]
[null,null,"",null,null,false,false]
[null,null,"",null,null,false,false]
[null,null,"",null,null,false,false]
[null,null,"",null,null,false,false]
[null,null,"",null,null,false,false]
[null,null,"",null,null,false,false]
[null,null,"",null,null,false,false]
[null,null,"",null,null,false,false]
[null,null,"",null,null,false,false]
[null,null,"",null,null,false,false]
[null,null,"",null,null,false,false]
[null,null,"",null,null,false,false]
[null,null,"",null,null,false,false]
[null,null,"",null,null,false,false]
[null,null,"",null,null,false,false]
[null,null,"",null,null,false,false]
[null,null,"",null,null,false,false]
[null,null,"",null,null,false,false]
[null,null,"",null,null,false,false]
[null,null,"",null,null,false,false]
[null,null,"",null,null,false,false]
[null,null,"",null,null,false,false]
[null,null,"",null,null,false,false]
[null,null,"",null,null,false,false]
[null,null,"",null,null,false,false]
[null,null,"",null,null,false,false]
[null,null,"",null,null,false,false]
[null,null,"",null,null,false,false]
[null,null,"",null,null,false,false]
[null,null,"",null,null,false,false]
[null,null,"",null,null,false,false]
[null,null,"",null,null,false,false]
[null,null,"",null,null,false,false]
[null,null,"",null,null,false,false]
[null,null,"",null,null,false,false]
[null,null,"",null,null,false,false]
[null,null,"",null,null,false,false]
[null,null,"",null,null,false,false]
[null,null,"",null,null,false,false]
[null,null,"",null,null,false,false]
[null,null,"",null,null,false,false]
[null,null,"",null,null,false,false]
[null,null,"",null,null,false,false]
[null,null,"",null,null,{"$f":"IF(B925=\"TOUT VENANT\",\"Véolia Nice Tri - Parc d'activité logistique\",IF(B925=\"DECHETS VERTS\",\"Orédui Carros Compostage - ZI de la Grave\",IF(B925=\"GRAVATS PROPRES\",\"La Gaude K3 Sita Sud - 5211 Rte de St Jeannet\",IF(B925=\"GRAVATS SALES\",\"Véolia Nice Tri - 20 Ch du Saquier\",IF(B925=\"BOIS\",\"SEAS La Glacière - 1019 Rte de la Grasse\",IF(B925=\"METAUX\",\"Carros\",IF(B925=\"NEON\",\"Sofovar - 126 Av Louis Lépine - 83600 Fréjus\",IF(B925=\"PEINTURES\",\"Orédui - ZI Bois de Grasse - 06310 Grasse\",IF(B925=\"FROIDS\",\"SEAS - 1079 Rte de Grasse - 06270 Villeneuve Loubet\",IF(B925=\"HORS FROIDS\",\"SEAS - 1079 Rte de Grasse - 06270 Villeneuve Loubet\",IF(B925=\"PAM\",\"SEAS - 1079 Rte de Grasse - 06270 Villeneuve Loubet\",IF(B925=\"ECRANS\",\"SEAS - 1079 Rte de Grasse - 06270 Villeneuve Loubet\",IF(B925=\"HUILES DE VIDANGE\",\"SERAHU - 68 Ch de la Campanette - 06800 Cagnes sur Mer\")))))))))))))","v":false},{"$f":"IF(OR(B925=\"TOUT VENANT\",B925=\"DECHETS VERTS\",B925=\"GRAVATS SALES\",B925=\"GRAVATS PROPRES\",B925=\"BOIS\"),\"SUEZ\",IF(OR(B925=\"FROIDS\",B925=\"HORS FROIDS\",B925=\"PAM\",B925=\"ECRANS\"),\"SEAS\",IF(OR(B925=\"METAUX\"),\"DERICHEBOURG\",IF(OR(B925=\"NEON\"),\"SOFOVAR\",IF(OR(B925=\"PEINTURES\"),\"OREDUI\",IF(OR(B925=\"HUILES DE VIDANGE\"),\"SERAHU\"))))))","v":false}]
[null,null,"",null,null,false,false]
[null,null,"",null,null,false,false]
[null,null,"",null,null,false,false]
[null,null,"",null,null,false,false]
[null,null,"",null,null,false,false]
[null,null,"",null,null,false,false]
[null,null,"",null,null,false,false]
[null,null,"",null,null,false,false]
[null,null,"",null,null,false,false]
[null,null,"",null,null,false,false]
[null,null,"",null,null,false,false]
[null,null,"",null,null,false,false]
[null,null,"",null,null,false,false]
[null,null,"",null,null,false,false]
[null,null,"",null,null,false,false]
[null,null,"",null,null,false,false]
[null,null,"",null,null,false,false]
[null,null,"",null,null,false,false]
[null,null,"",null,null,false,false]
[null,null,"",null,null,false,false]
[null,null,"",null,null,false,false]
[null,null,"",null,null,false,false]
[null,null,"",null,null,false,false]
[null,null,"",null,null,false,false]
[null,null,"",null,null,false,false]
[null,null,"",null,null,false,false]
[null,null,"",null,null,false,false]
[null,null,"",null,null,false,false]
[null,null,"",null,null,false,false]
[null,null,"",null,null,false,false]
[null,null,"",null,null,false,false]
[null,null,"",null,null,false,false]
[null,null,"",null,null,false,false]
[null,null,"",null,null,false,false]
[null,null,"",null,null,false,false]
[null,null,"",null,null,false,false]
[null,null,"",null,null,false,false]
[null,null,"",null,null,false,false]
[null,null,"",null,null,false,false]
[null,null,"",null,null,false,false]
[null,null,"",null,null,false,false]
[null,null,"",null,null,false,false]
[null,null,"",null,null,false,false]
[null,null,"",null,null,false,false]
[null,null,"",null,null,false,false]
[null,null,"",null,null,false,false]
[null,null,"",null,null,false,false]
[null,null,"",null,null,false,false]
[null,null,"",null,null,false,false]
[null,null,"",null,null,false,false]
[null,null,"",null,null,false,false]
[null,null,"",null,null,false,false]
[null,null,"",null,null,false,false]
[null,null,"",null,null,false,false]
[null,null,"",null,null,false,false]
[null,null,"",null,null,false,false]
[null,null,"",null,null,false,false]
[null,null,"",null,null,false,false]
[null,null,"",null,null,false,false]
[null,null,"",null,null,false,false]
[null,null,"",null,null,false,false]
[null,null,"",null,null,false,false]
[null,null,"",null,null,false,false]
[null,null,"",null,null,{"$f":"IF(B989=\"TOUT VENANT\",\"Véolia Nice Tri - Parc d'activité logistique\",IF(B989=\"DECHETS VERTS\",\"Orédui Carros Compostage - ZI de la Grave\",IF(B989=\"GRAVATS PROPRES\",\"La Gaude K3 Sita Sud - 5211 Rte de St Jeannet\",IF(B989=\"GRAVATS SALES\",\"Véolia Nice Tri - 20 Ch du Saquier\",IF(B989=\"BOIS\",\"SEAS La Glacière - 1019 Rte de la Grasse\",IF(B989=\"METAUX\",\"Carros\",IF(B989=\"NEON\",\"Sofovar - 126 Av Louis Lépine - 83600 Fréjus\",IF(B989=\"PEINTURES\",\"Orédui - ZI Bois de Grasse - 06310 Grasse\",IF(B989=\"FROIDS\",\"SEAS - 1079 Rte de Grasse - 06270 Villeneuve Loubet\",IF(B989=\"HORS FROIDS\",\"SEAS - 1079 Rte de Grasse - 06270 Villeneuve Loubet\",IF(B989=\"PAM\",\"SEAS - 1079 Rte de Grasse - 06270 Villeneuve Loubet\",IF(B989=\"ECRANS\",\"SEAS - 1079 Rte de Grasse - 06270 Villeneuve Loubet\",IF(B989=\"HUILES DE VIDANGE\",\"SERAHU - 68 Ch de la Campanette - 06800 Cagnes sur Mer\")))))))))))))","v":false},{"$f":"IF(OR(B989=\"TOUT VENANT\",B989=\"DECHETS VERTS\",B989=\"GRAVATS SALES\",B989=\"GRAVATS PROPRES\",B989=\"BOIS\"),\"SUEZ\",IF(OR(B989=\"FROIDS\",B989=\"HORS FROIDS\",B989=\"PAM\",B989=\"ECRANS\"),\"SEAS\",IF(OR(B989=\"METAUX\"),\"DERICHEBOURG\",IF(OR(B989=\"NEON\"),\"SOFOVAR\",IF(OR(B989=\"PEINTURES\"),\"OREDUI\",IF(OR(B989=\"HUILES DE VIDANGE\"),\"SERAHU\"))))))","v":false}]
[null,null,"",null,null,false,false]
[null,null,"",null,null,false,false]
[null,null,"",null,null,false,false]
[null,null,"",null,null,false,false]
[null,null,"",null,null,false,false]
[null,null,"",null,null,false,false]
[null,null,"",null,null,false,false]
[null,null,"",null,null,false,false]
[null,null,"",null,null,false,false]
[null,null,"",null,null,false,false]
[null,null,"",null,null,false,false]
[null,null,"",null,null,false,false]
[null,null,"",null,null,false,false]
[null,null,"",null,null,false,false]
[null,null,"",null,null,false,false]
[null,null,"",null,null,false,false]
[null,null,"",null,null,false,false]
[null,null,"",null,null,false,false]
[null,null,"",null,null,false,false]
[null,null,"",null,null,false,false]
[null,null,"",null,null,false,false]
[null,null,"",null,null,false,false]
[null,null,"",null,null,false,false]
[null,null,"",null,null,false,false]
[null,null,"",null,null,false,false]
[null,null,"",null,null,false,false]
[null,null,"",null,null,false,false]
[null,null,"",null,null,false,false]
[null,null,"",null,null,false,false]
[null,null,"",null,null,false,false]
[null,null,"",null,null,false,false]
[null,null,"",null,null,false,false]
[null,null,"",null,null,false,false]
[null,null,"",null,null,false,false]
[null,null,"",null,null,false,false]
[null,null,"",null,null,false,false]
[null,null,"",null,null,false,false]
[null,null,"",null,null,false,false]
[null,null,"",null,null,false,false]
[null,null,"",null,null,false,false]
[null,null,"",null,null,false,false]
[null,null,"",null,null,false,false]
[null,null,"",null,null,false,false]
[null,null,"",null,null,false,false]
[null,null,"",null,null,false,false]
[null,null,"",null,null,false,false]
[null,null,"",null,null,false,false]
[null,null,"",null,null,false,false]
[null,null,"",null,null,false,false]
[null,null,"",null,null,false,false]
[null,null,"",null,null,false,false]
[null,null,"",null,null,false,false]
[null,null,"",null,null,false,false]
[null,null,"",null,null,false,false]
[null,null,"",null,null,false,false]
[null,null,"",null,null,false,false]
[null,null,"",null,null,false,false]
[null,null,"",null,null,false,false]
[null,null,"",null,null,false,false]
[null,null,"",null,null,false,false]
[null,null,"",null,null,false,false]
[null,null,"",null,null,false,false]
[null,null,"",null,null,false,false]
[null,null,"",null,null,{"$f":"IF(B1053=\"TOUT VENANT\",\"Véolia Nice Tri - Parc d'activité logistique\",IF(B1053=\"DECHETS VERTS\",\"Orédui Carros Compostage - ZI de la Grave\",IF(B1053=\"GRAVATS PROPRES\",\"La Gaude K3 Sita Sud - 5211 Rte de St Jeannet\",IF(B1053=\"GRAVATS SALES\",\"Véolia Nice Tri - 20 Ch du Saquier\",IF(B1053=\"BOIS\",\"SEAS La Glacière - 1019 Rte de la Grasse\",IF(B1053=\"METAUX\",\"Carros\",IF(B1053=\"NEON\",\"Sofovar - 126 Av Louis Lépine - 83600 Fréjus\",IF(B1053=\"PEINTURES\",\"Orédui - ZI Bois de Grasse - 06310 Grasse\",IF(B1053=\"FROIDS\",\"SEAS - 1079 Rte de Grasse - 06270 Villeneuve Loubet\",IF(B1053=\"HORS FROIDS\",\"SEAS - 1079 Rte de Grasse - 06270 Villeneuve Loubet\",IF(B1053=\"PAM\",\"SEAS - 1079 Rte de Grasse - 06270 Villeneuve Loubet\",IF(B1053=\"ECRANS\",\"SEAS - 1079 Rte de Grasse - 06270 Villeneuve Loubet\",IF(B1053=\"HUILES DE VIDANGE\",\"SERAHU - 68 Ch de la Campanette - 06800 Cagnes sur Mer\")))))))))))))","v":false},{"$f":"IF(OR(B1053=\"TOUT VENANT\",B1053=\"DECHETS VERTS\",B1053=\"GRAVATS SALES\",B1053=\"GRAVATS PROPRES\",B1053=\"BOIS\"),\"SUEZ\",IF(OR(B1053=\"FROIDS\",B1053=\"HORS FROIDS\",B1053=\"PAM\",B1053=\"ECRANS\"),\"SEAS\",IF(OR(B1053=\"METAUX\"),\"DERICHEBOURG\",IF(OR(B1053=\"NEON\"),\"SOFOVAR\",IF(OR(B1053=\"PEINTURES\"),\"OREDUI\",IF(OR(B1053=\"HUILES DE VIDANGE\"),\"SERAHU\"))))))","v":false}]
[null,null,"",null,null,false,false]
[null,null,"",null,null,false,false]
[null,null,"",null,null,false,false]
[null,null,"",null,null,false,false]
[null,null,"",null,null,false,false]
[null,null,"",null,null,false,false]
[null,null,"",null,null,false,false]
[null,null,"",null,null,false,false]
[null,null,"",null,null,false,false]
[null,null,"",null,null,false,false]
[null,null,"",null,null,false,false]
[null,null,"",null,null,false,false]
[null,null,"",null,null,false,false]
[null,null,"",null,null,false,false]
[null,null,"",null,null,false,false]
[null,null,"",null,null,false,false]
[null,null,"",null,null,false,false]
[null,null,"",null,null,false,false]
[null,null,"",null,null,false,false]
[null,null,"",null,null,false,false]
[null,null,"",null,null,false,false]
[null,null,"",null,null,false,false]
[null,null,"",null,null,false,false]
[null,null,"",null,null,false,false]
[null,null,"",null,null,false,false]
[null,null,"",null,null,false,false]
[null,null,"",null,null,false,false]
[null,null,"",null,null,false,false]
[null,null,"",null,null,false,false]
[null,null,"",null,null,false,false]
[null,null,"",null,null,false,false]
[null,null,"",null,null,false,false]
[null,null,"",null,null,false,false]
[null,null,"",null,null,false,false]
[null,null,"",null,null,false,false]
[null,null,"",null,null,false,false]
[null,null,"",null,null,false,false]
[null,null,"",null,null,false,false]
[null,null,"",null,null,false,false]
[null,null,"",null,null,false,false]
[null,null,"",null,null,false,false]
[null,null,"",null,null,false,false]
[null,null,"",null,null,false,false]
[null,null,"",null,null,false,false]
[null,null,"",null,null,false,false]
[null,null,"",null,null,false,false]
[null,null,"",null,null,false,false]
[null,null,"",null,null,false,false]
[null,null,"",null,null,false,false]
[null,null,"",null,null,false,false]
[null,null,"",null,null,false,false]
[null,null,"",null,null,false,false]
[null,null,"",null,null,false,false]
[null,null,"",null,null,false,false]
[null,null,"",null,null,false,false]
[null,null,"",null,null,false,false]
[null,null,"",null,null,false,false]
[null,null,"",null,null,false,false]
[null,null,"",null,null,false,false]
[null,null,"",null,null,false,false]
[null,null,"",null,null,false,false]
[null,null,"",null,null,false,false]
[null,null,"",null,null,false,false]
[null,null,"",null,null,{"$f":"IF(B1117=\"TOUT VENANT\",\"Véolia Nice Tri - Parc d'activité logistique\",IF(B1117=\"DECHETS VERTS\",\"Orédui Carros Compostage - ZI de la Grave\",IF(B1117=\"GRAVATS PROPRES\",\"La Gaude K3 Sita Sud - 5211 Rte de St Jeannet\",IF(B1117=\"GRAVATS SALES\",\"Véolia Nice Tri - 20 Ch du Saquier\",IF(B1117=\"BOIS\",\"SEAS La Glacière - 1019 Rte de la Grasse\",IF(B1117=\"METAUX\",\"Carros\",IF(B1117=\"NEON\",\"Sofovar - 126 Av Louis Lépine - 83600 Fréjus\",IF(B1117=\"PEINTURES\",\"Orédui - ZI Bois de Grasse - 06310 Grasse\",IF(B1117=\"FROIDS\",\"SEAS - 1079 Rte de Grasse - 06270 Villeneuve Loubet\",IF(B1117=\"HORS FROIDS\",\"SEAS - 1079 Rte de Grasse - 06270 Villeneuve Loubet\",IF(B1117=\"PAM\",\"SEAS - 1079 Rte de Grasse - 06270 Villeneuve Loubet\",IF(B1117=\"ECRANS\",\"SEAS - 1079 Rte de Grasse - 06270 Villeneuve Loubet\",IF(B1117=\"HUILES DE VIDANGE\",\"SERAHU - 68 Ch de la Campanette - 06800 Cagnes sur Mer\")))))))))))))","v":false},{"$f":"IF(OR(B1117=\"TOUT VENANT\",B1117=\"DECHETS VERTS\",B1117=\"GRAVATS SALES\",B1117=\"GRAVATS PROPRES\",B1117=\"BOIS\"),\"SUEZ\",IF(OR(B1117=\"FROIDS\",B1117=\"HORS FROIDS\",B1117=\"PAM\",B1117=\"ECRANS\"),\"SEAS\",IF(OR(B1117=\"METAUX\"),\"DERICHEBOURG\",IF(OR(B1117=\"NEON\"),\"SOFOVAR\",IF(OR(B1117=\"PEINTURES\"),\"OREDUI\",IF(OR(B1117=\"HUILES DE VIDANGE\"),\"SERAHU\"))))))","v":false}]
[null,null,"",null,null,false,false]
[null,null,"",null,null,false,false]
[null,null,"",null,null,false,false]
[null,null,"",null,null,false,false]
[null,null,"",null,null,false,false]
[null,null,"",null,null,false,false]
[null,null,"",null,null,false,false]
[null,null,"",null,null,false,false]
[null,null,"",null,null,false,false]
[null,null,"",null,null,false,false]
[null,null,"",null,null,false,false]
[null,null,"",null,null,false,false]
[null,null,"",null,null,false,false]
[null,null,"",null,null,false,false]
[null,null,"",null,null,false,false]
[null,null,"",null,null,false,false]
[null,null,"",null,null,false,false]
[null,null,"",null,null,false,false]
[null,null,"",null,null,false,false]
[null,null,"",null,null,false,false]
[null,null,"",null,null,false,false]
[null,null,"",null,null,false,false]
[null,null,"",null,null,false,false]
[null,null,"",null,null,false,false]
[null,null,"",null,null,false,false]
[null,null,"",null,null,false,false]
[null,null,"",null,null,false,false]
[null,null,"",null,null,false,false]
[null,null,"",null,null,false,false]
[null,null,"",null,null,false,false]
[null,null,"",null,null,false,false]
[null,null,"",null,null,false,false]
[null,null,"",null,null,false,false]
[null,null,"",null,null,false,false]
[null,null,"",null,null,false,false]
[null,null,"",null,null,false,false]
[null,null,"",null,null,false,false]
[null,null,"",null,null,false,false]
[null,null,"",null,null,false,false]
[null,null,"",null,null,false,false]
[null,null,"",null,null,false,false]
[null,null,"",null,null,false,false]
[null,null,"",null,null,false,false]
[null,null,"",null,null,false,false]
[null,null,"",null,null,false,false]
[null,null,"",null,null,false,false]
[null,null,"",null,null,false,false]
[null,null,"",null,null,false,false]
[null,null,"",null,null,false,false]
[null,null,"",null,null,false,false]
[null,null,"",null,null,false,false]
[null,null,"",null,null,false,false]
[null,null,"",null,null,false,false]
[null,null,"",null,null,false,false]
[null,null,"",null,null,false,false]
[null,null,"",null,null,false,false]
[null,null,"",null,null,false,false]
[null,null,"",null,null,false,false]
[null,null,"",null,null,false,false]
[null,null,"",null,null,false,false]
[null,null,"",null,null,false,false]
[null,null,"",null,null,false,false]
[null,null,"",null,null,false,false]
[null,null,"",null,null,{"$f":"IF(B1181=\"TOUT VENANT\",\"Véolia Nice Tri - Parc d'activité logistique\",IF(B1181=\"DECHETS VERTS\",\"Orédui Carros Compostage - ZI de la Grave\",IF(B1181=\"GRAVATS PROPRES\",\"La Gaude K3 Sita Sud - 5211 Rte de St Jeannet\",IF(B1181=\"GRAVATS SALES\",\"Véolia Nice Tri - 20 Ch du Saquier\",IF(B1181=\"BOIS\",\"SEAS La Glacière - 1019 Rte de la Grasse\",IF(B1181=\"METAUX\",\"Carros\",IF(B1181=\"NEON\",\"Sofovar - 126 Av Louis Lépine - 83600 Fréjus\",IF(B1181=\"PEINTURES\",\"Orédui - ZI Bois de Grasse - 06310 Grasse\",IF(B1181=\"FROIDS\",\"SEAS - 1079 Rte de Grasse - 06270 Villeneuve Loubet\",IF(B1181=\"HORS FROIDS\",\"SEAS - 1079 Rte de Grasse - 06270 Villeneuve Loubet\",IF(B1181=\"PAM\",\"SEAS - 1079 Rte de Grasse - 06270 Villeneuve Loubet\",IF(B1181=\"ECRANS\",\"SEAS - 1079 Rte de Grasse - 06270 Villeneuve Loubet\",IF(B1181=\"HUILES DE VIDANGE\",\"SERAHU - 68 Ch de la Campanette - 06800 Cagnes sur Mer\")))))))))))))","v":false},{"$f":"IF(OR(B1181=\"TOUT VENANT\",B1181=\"DECHETS VERTS\",B1181=\"GRAVATS SALES\",B1181=\"GRAVATS PROPRES\",B1181=\"BOIS\"),\"SUEZ\",IF(OR(B1181=\"FROIDS\",B1181=\"HORS FROIDS\",B1181=\"PAM\",B1181=\"ECRANS\"),\"SEAS\",IF(OR(B1181=\"METAUX\"),\"DERICHEBOURG\",IF(OR(B1181=\"NEON\"),\"SOFOVAR\",IF(OR(B1181=\"PEINTURES\"),\"OREDUI\",IF(OR(B1181=\"HUILES DE VIDANGE\"),\"SERAHU\"))))))","v":false}]
[null,null,"",null,null,false,false]
[null,null,"",null,null,false,false]
[null,null,"",null,null,false,false]
[null,null,"",null,null,false,false]
[null,null,"",null,null,false,false]
[null,null,"",null,null,false,false]
[null,null,"",null,null,false,false]
[null,null,"",null,null,false,false]
[null,null,"",null,null,false,false]
[null,null,"",null,null,false,false]
[null,null,"",null,null,false,false]
[null,null,"",null,null,false,false]
[null,null,"",null,null,false,false]
[null,null,"",null,null,false,false]
[null,null,"",null,null,false,false]
[null,null,"",null,null,false,false]
[null,null,"",null,null,false,false]
[null,null,"",null,null,false,false]
[null,null,"",null,null,false,false]
[null,null,"",null,null,false,false]
[null,null,"",null,null,false,false]
[null,null,"",null,null,false,false]
[null,null,"",null,null,false,false]
[null,null,"",null,null,false,false]
[null,null,"",null,null,false,false]
[null,null,"",null,null,false,false]
[null,null,"",null,null,false,false]
[null,null,"",null,null,false,false]
[null,null,"",null,null,false,false]
[null,null,"",null,null,false,false]
[null,null,"",null,null,false,false]
[null,null,"",null,null,false,false]
[null,null,"",null,null,false,false]
[null,null,"",null,null,false,false]
[null,null,"",null,null,false,false]
[null,null,"",null,null,false,false]
[null,null,"",null,null,false,false]
[null,null,"",null,null,false,false]
[null,null,"",null,null,false,false]
[null,null,"",null,null,false,false]
[null,null,"",null,null,false,false]
[null,null,"",null,null,false,false]
[null,null,"",null,null,false,false]
[null,null,"",null,null,false,false]
[null,null,"",null,null,false,false]
[null,null,"",null,null,false,false]
[null,null,"",null,null,false,false]
[null,null,"",null,null,false,false]
[null,null,"",null,null,false,false]
[null,null,"",null,null,false,false]
[null,null,"",null,null,false,false]
[null,null,"",null,null,false,false]
[null,null,"",null,null,false,false]
[null,null,"",null,null,false,false]
[null,null,"",null,null,false,false]
[null,null,"",null,null,false,false]
[null,null,"",null,null,false,false]
[null,null,"",null,null,false,false]
[null,null,"",null,null,false,false]
[null,null,"",null,null,false,false]
[null,null,"",null,null,false,false]
[null,null,"",null,null,false,false]
[null,null,"",null,null,false,false]
[null,null,"",null,null,{"$f":"IF(B1245=\"TOUT VENANT\",\"Véolia Nice Tri - Parc d'activité logistique\",IF(B1245=\"DECHETS VERTS\",\"Orédui Carros Compostage - ZI de la Grave\",IF(B1245=\"GRAVATS PROPRES\",\"La Gaude K3 Sita Sud - 5211 Rte de St Jeannet\",IF(B1245=\"GRAVATS SALES\",\"Véolia Nice Tri - 20 Ch du Saquier\",IF(B1245=\"BOIS\",\"SEAS La Glacière - 1019 Rte de la Grasse\",IF(B1245=\"METAUX\",\"Carros\",IF(B1245=\"NEON\",\"Sofovar - 126 Av Louis Lépine - 83600 Fréjus\",IF(B1245=\"PEINTURES\",\"Orédui - ZI Bois de Grasse - 06310 Grasse\",IF(B1245=\"FROIDS\",\"SEAS - 1079 Rte de Grasse - 06270 Villeneuve Loubet\",IF(B1245=\"HORS FROIDS\",\"SEAS - 1079 Rte de Grasse - 06270 Villeneuve Loubet\",IF(B1245=\"PAM\",\"SEAS - 1079 Rte de Grasse - 06270 Villeneuve Loubet\",IF(B1245=\"ECRANS\",\"SEAS - 1079 Rte de Grasse - 06270 Villeneuve Loubet\",IF(B1245=\"HUILES DE VIDANGE\",\"SERAHU - 68 Ch de la Campanette - 06800 Cagnes sur Mer\")))))))))))))","v":false},{"$f":"IF(OR(B1245=\"TOUT VENANT\",B1245=\"DECHETS VERTS\",B1245=\"GRAVATS SALES\",B1245=\"GRAVATS PROPRES\",B1245=\"BOIS\"),\"SUEZ\",IF(OR(B1245=\"FROIDS\",B1245=\"HORS FROIDS\",B1245=\"PAM\",B1245=\"ECRANS\"),\"SEAS\",IF(OR(B1245=\"METAUX\"),\"DERICHEBOURG\",IF(OR(B1245=\"NEON\"),\"SOFOVAR\",IF(OR(B1245=\"PEINTURES\"),\"OREDUI\",IF(OR(B1245=\"HUILES DE VIDANGE\"),\"SERAHU\"))))))","v":false}]
[null,null,"",null,null,false,false]
[null,null,"",null,null,false,false]
[null,null,"",null,null,false,false]
[null,null,"",null,null,false,false]
[null,null,"",null,null,false,false]
[null,null,"",null,null,false,false]
[null,null,"",null,null,false,false]
[null,null,"",null,null,false,false]
[null,null,"",null,null,false,false]
[null,null,"",null,null,false,false]
[null,null,"",null,null,false,false]
[null,null,"",null,null,false,false]
[null,null,"",null,null,false,false]
[null,null,"",null,null,false,false]
[null,null,"",null,null,false,false]
[null,null,"",null,null,false,false]
[null,null,"",null,null,false,false]
[null,null,"",null,null,false,false]
[null,null,"",null,null,false,false]
[null,null,"",null,null,false,false]
[null,null,"",null,null,false,false]
[null,null,"",null,null,false,false]
[null,null,"",null,null,false,false]
[null,null,"",null,null,false,false]
[null,null,"",null,null,false,false]
[null,null,"",null,null,false,false]
[null,null,"",null,null,false,false]
[null,null,"",null,null,false,false]
[null,null,"",null,null,false,false]
[null,null,"",null,null,false,false]
[null,null,"",null,null,false,false]
[null,null,"",null,null,false,false]
[null,null,"",null,null,false,false]
[null,null,"",null,null,false,false]
[null,null,"",null,null,false,false]
[null,null,"",null,null,false,false]
[null,null,"",null,null,false,false]
[null,null,"",null,null,false,false]
[null,null,"",null,null,false,false]
[null,null,"",null,null,false,false]
[null,null,"",null,null,false,false]
[null,null,"",null,null,false,false]
[null,null,"",null,null,false,false]
[null,null,"",null,null,false,false]
[null,null,"",null,null,false,false]
[null,null,"",null,null,false,false]
[null,null,"",null,null,false,false]
[null,null,"",null,null,false,false]
[null,null,"",null,null,false,false]
[null,null,"",null,null,false,false]
[null,null,"",null,null,false,false]
[null,null,"",null,null,false,false]
[null,null,"",null,null,false,false]
[null,null,"",null,null,false,false]
[null,null,"",null,null,false,false]
[null,null,"",null,null,false,false]
[null,null,"",null,null,false,false]
[null,null,"",null,null,false,false]
[null,null,"",null,null,false,false]
[null,null,"",null,null,false,false]
[null,null,"",null,null,false,false]
[null,null,"",null,null,false,false]
[null,null,"",null,null,false,false]
[null,null,"",null,null,{"$f":"IF(B1309=\"TOUT VENANT\",\"Véolia Nice Tri - Parc d'activité logistique\",IF(B1309=\"DECHETS VERTS\",\"Orédui Carros Compostage - ZI de la Grave\",IF(B1309=\"GRAVATS PROPRES\",\"La Gaude K3 Sita Sud - 5211 Rte de St Jeannet\",IF(B1309=\"GRAVATS SALES\",\"Véolia Nice Tri - 20 Ch du Saquier\",IF(B1309=\"BOIS\",\"SEAS La Glacière - 1019 Rte de la Grasse\",IF(B1309=\"METAUX\",\"Carros\",IF(B1309=\"NEON\",\"Sofovar - 126 Av Louis Lépine - 83600 Fréjus\",IF(B1309=\"PEINTURES\",\"Orédui - ZI Bois de Grasse - 06310 Grasse\",IF(B1309=\"FROIDS\",\"SEAS - 1079 Rte de Grasse - 06270 Villeneuve Loubet\",IF(B1309=\"HORS FROIDS\",\"SEAS - 1079 Rte de Grasse - 06270 Villeneuve Loubet\",IF(B1309=\"PAM\",\"SEAS - 1079 Rte de Grasse - 06270 Villeneuve Loubet\",IF(B1309=\"ECRANS\",\"SEAS - 1079 Rte de Grasse - 06270 Villeneuve Loubet\",IF(B1309=\"HUILES DE VIDANGE\",\"SERAHU - 68 Ch de la Campanette - 06800 Cagnes sur Mer\")))))))))))))","v":false},{"$f":"IF(OR(B1309=\"TOUT VENANT\",B1309=\"DECHETS VERTS\",B1309=\"GRAVATS SALES\",B1309=\"GRAVATS PROPRES\",B1309=\"BOIS\"),\"SUEZ\",IF(OR(B1309=\"FROIDS\",B1309=\"HORS FROIDS\",B1309=\"PAM\",B1309=\"ECRANS\"),\"SEAS\",IF(OR(B1309=\"METAUX\"),\"DERICHEBOURG\",IF(OR(B1309=\"NEON\"),\"SOFOVAR\",IF(OR(B1309=\"PEINTURES\"),\"OREDUI\",IF(OR(B1309=\"HUILES DE VIDANGE\"),\"SERAHU\"))))))","v":false}]
[null,null,"",null,null,false,false]
[null,null,"",null,null,false,false]
[null,null,"",null,null,false,false]
[null,null,"",null,null,false,false]
[null,null,"",null,null,false,false]
[null,null,"",null,null,false,false]
[null,null,"",null,null,false,false]
[null,null,"",null,null,false,false]
[null,null,"",null,null,false,false]
[null,null,"",null,null,false,false]
[null,null,"",null,null,false,false]
[null,null,"",null,null,false,false]
[null,null,"",null,null,false,false]
[null,null,"",null,null,false,false]
[null,null,"",null,null,false,false]
[null,null,"",null,null,false,false]
[null,null,"",null,null,false,false]
[null,null,"",null,null,false,false]
[null,null,"",null,null,false,false]
[null,null,"",null,null,false,false]
[null,null,"",null,null,false,false]
[null,null,"",null,null,false,false]
[null,null,"",null,null,false,false]
[null,null,"",null,null,false,false]
[null,null,"",null,null,false,false]
[null,null,"",null,null,false,false]
[null,null,"",null,null,false,false]
[null,null,"",null,null,false,false]
[null,null,"",null,null,false,false]
[null,null,"",null,null,false,false]
[null,null,"",null,null,false,false]
[null,null,"",null,null,false,false]
[null,null,"",null,null,false,false]
[null,null,"",null,null,false,false]
[null,null,"",null,null,false,false]
[null,null,"",null,null,false,false]
[null,null,"",null,null,false,false]
[null,null,"",null,null,false,false]
[null,null,"",null,null,false,false]
[null,null,"",null,null,false,false]
[null,null,"",null,null,false,false]
[null,null,"",null,null,false,false]
[null,null,"",null,null,false,false]
[null,null,"",null,null,false,false]
[null,null,"",null,null,false,false]
[null,null,"",null,null,false,false]
[null,null,"",null,null,false,false]
[null,null,"",null,null,false,false]
[null,null,"",null,null,false,false]
[null,null,"",null,null,false,false]
[null,null,"",null,null,false,false]
[null,null,"",null,null,false,false]
[null,null,"",null,null,false,false]
[null,null,"",null,null,false,false]
[null,null,"",null,null,false,false]
[null,null,"",null,null,false,false]
[null,null,"",null,null,false,false]
[null,null,"",null,null,false,false]
[null,null,"",null,null,false,false]
[null,null,"",null,null,false,false]
[null,null,"",null,null,false,false]
[null,null,"",null,null,false,false]
[null,null,"",null,null,false,false]
[null,null,"",null,null,{"$f":"IF(B1373=\"TOUT VENANT\",\"Véolia Nice Tri - Parc d'activité logistique\",IF(B1373=\"DECHETS VERTS\",\"Orédui Carros Compostage - ZI de la Grave\",IF(B1373=\"GRAVATS PROPRES\",\"La Gaude K3 Sita Sud - 5211 Rte de St Jeannet\",IF(B1373=\"GRAVATS SALES\",\"Véolia Nice Tri - 20 Ch du Saquier\",IF(B1373=\"BOIS\",\"SEAS La Glacière - 1019 Rte de la Grasse\",IF(B1373=\"METAUX\",\"Carros\",IF(B1373=\"NEON\",\"Sofovar - 126 Av Louis Lépine - 83600 Fréjus\",IF(B1373=\"PEINTURES\",\"Orédui - ZI Bois de Grasse - 06310 Grasse\",IF(B1373=\"FROIDS\",\"SEAS - 1079 Rte de Grasse - 06270 Villeneuve Loubet\",IF(B1373=\"HORS FROIDS\",\"SEAS - 1079 Rte de Grasse - 06270 Villeneuve Loubet\",IF(B1373=\"PAM\",\"SEAS - 1079 Rte de Grasse - 06270 Villeneuve Loubet\",IF(B1373=\"ECRANS\",\"SEAS - 1079 Rte de Grasse - 06270 Villeneuve Loubet\",IF(B1373=\"HUILES DE VIDANGE\",\"SERAHU - 68 Ch de la Campanette - 06800 Cagnes sur Mer\")))))))))))))","v":false},{"$f":"IF(OR(B1373=\"TOUT VENANT\",B1373=\"DECHETS VERTS\",B1373=\"GRAVATS SALES\",B1373=\"GRAVATS PROPRES\",B1373=\"BOIS\"),\"SUEZ\",IF(OR(B1373=\"FROIDS\",B1373=\"HORS FROIDS\",B1373=\"PAM\",B1373=\"ECRANS\"),\"SEAS\",IF(OR(B1373=\"METAUX\"),\"DERICHEBOURG\",IF(OR(B1373=\"NEON\"),\"SOFOVAR\",IF(OR(B1373=\"PEINTURES\"),\"OREDUI\",IF(OR(B1373=\"HUILES DE VIDANGE\"),\"SERAHU\"))))))","v":false}]
[null,null,"",null,null,false,false]
[null,null,"",null,null,false,false]
[null,null,"",null,null,false,false]
[null,null,"",null,null,false,false]
[null,null,"",null,null,false,false]
[null,null,"",null,null,false,false]
[null,null,"",null,null,false,false]
[null,null,"",null,null,false,false]
[null,null,"",null,null,false,false]
[null,null,"",null,null,false,false]
[null,null,"",null,null,false,false]
[null,null,"",null,null,false,false]
[null,null,"",null,null,false,false]
[null,null,"",null,null,false,false]
[null,null,"",null,null,false,false]
[null,null,"",null,null,false,false]
[null,null,"",null,null,false,false]
[null,null,"",null,null,false,false]
[null,null,"",null,null,false,false]
[null,null,"",null,null,false,false]
[null,null,"",null,null,false,false]
[null,null,"",null,null,false,false]
[null,null,"",null,null,false,false]
[null,null,"",null,null,false,false]
[null,null,"",null,null,false,false]
[null,null,"",null,null,false,false]
[null,null,"",null,null,false,false]
[null,null,"",null,null,false,false]
[null,null,"",null,null,false,false]
[null,null,"",null,null,false,false]
[null,null,"",null,null,false,false]
[null,null,"",null,null,false,false]
[null,null,"",null,null,false,false]
[null,null,"",null,null,false,false]
[null,null,"",null,null,false,false]
[null,null,"",null,null,false,false]
[null,null,"",null,null,false,false]
[null,null,"",null,null,false,false]
[null,null,"",null,null,false,false]
[null,null,"",null,null,false,false]
[null,null,"",null,null,false,false]
[null,null,"",null,null,false,false]
[null,null,"",null,null,false,false]
[null,null,"",null,null,false,false]
[null,null,"",null,null,false,false]
[null,null,"",null,null,false,false]
[null,null,"",null,null,false,false]
[null,null,"",null,null,false,false]
[null,null,"",null,null,false,false]
[null,null,"",null,null,false,false]
[null,null,"",null,null,false,false]
[null,null,"",null,null,false,false]
[null,null,"",null,null,false,false]

{"sheet":"Registre_1","index":1,"n_rows":82,"n_cols":8,"rows_kept":82,"cut":false,"hidden":false,"merged":[[9,2,9,3],[0,2,0,3],[1,2,1,3],[2,2,2,3],[3,2,3,3],[4,2,4,3],[5,2,5,3],[6,2,6,3],[7,2,7,3],[8,2,8,3],[21,2,21,3],[10,2,10,3],[11,2,11,3],[12,2,12,3],[13,2,13,3],[14,2,14,3],[15,2,15,3],[16,2,16,3],[17,2,17,3],[18,2,18,3],[19,2,19,3],[20,2,20,3],[33,2,33,3],[22,2,22,3],[23,2,23,3],[24,2,24,3],[25,2,25,3],[26,2,26,3],[27,2,27,3],[28,2,28,3],[29,2,29,3],[30,2,30,3],[31,2,31,3],[32,2,32,3],[45,2,45,3],[34,2,34,3],[35,2,35,3],[36,2,36,3],[37,2,37,3],[38,2,38,3],[39,2,39,3],[40,2,40,3],[41,2,41,3],[42,2,42,3],[43,2,43,3],[44,2,44,3],[57,2,57,3],[46,2,46,3],[47,2,47,3],[48,2,48,3],[49,2,49,3],[50,2,50,3],[51,2,51,3],[52,2,52,3],[53,2,53,3],[54,2,54,3],[55,2,55,3],[56,2,56,3],[69,2,69,3],[58,2,58,3],[59,2,59,3],[60,2,60,3],[61,2,61,3],[62,2,62,3],[63,2,63,3],[64,2,64,3],[65,2,65,3],[66,2,66,3],[67,2,67,3],[68,2,68,3],[81,2,81,3],[70,2,70,3],[71,2,71,3],[72,2,72,3],[73,2,73,3],[74,2,74,3],[75,2,75,3],[76,2,76,3],[77,2,77,3],[78,2,78,3],[79,2,79,3],[80,2,80,3]]}
["Date d'enlèvement","Nature du déchets","Quantité de déchets\n (en kg)",null,"Unité","Installation de destination \n(nom et adresse)","Transporteur ","Fiche d'intervention"]
["2018-01-02","TOUT VENANT",null,null,null,{"$f":"IF(B2=\"TOUT VENANT\",\"Véolia Nice Tri - Parc d'activité logistique\",IF(B2=\"DECHETS VERTS\",\"Orédui Carros Compostage - ZI de la Grave\",IF(B2=\"GRAVATS PROPRES\",\"La Gaude K3 Sita Sud - 5211 Rte de St Jeannet\",IF(B2=\"GRAVATS SALES\",\"Véolia Nice Tri - 20 Ch du Saquier\",IF(B2=\"BOIS\",\"SEAS La Glacière - 1019 Rte de la Grasse\",IF(B2=\"METAUX\",\"Carros\",IF(B2=\"NEON\",\"Sofovar - 126 Av Louis Lépine - 83600 Fréjus\",IF(B2=\"PEINTURES\",\"Orédui - ZI Bois de Grasse - 06310 Grasse\",IF(B2=\"FROIDS\",\"SEAS - 1079 Rte de Grasse - 06270 Villeneuve Loubet\",IF(B2=\"HORS FROIDS\",\"SEAS - 1079 Rte de Grasse - 06270 Villeneuve Loubet\",IF(B2=\"PAM\",\"SEAS - 1079 Rte de Grasse - 06270 Villeneuve Loubet\",IF(B2=\"ECRANS\",\"SEAS - 1079 Rte de Grasse - 06270 Villeneuve Loubet\",IF(B2=\"HUILES DE VIDANGE\",\"SERAHU - 68 Ch de la Campanette - 06800 Cagnes sur Mer\")))))))))))))","v":"Véolia Nice Tri - Parc d'activité logistique"},{"$f":"IF(OR(B2=\"TOUT VENANT\",B2=\"DECHETS VERTS\",B2=\"GRAVATS SALES\",B2=\"GRAVATS PROPRES\",B2=\"BOIS\"),\"SUEZ\",IF(OR(B2=\"FROIDS\",B2=\"HORS FROIDS\",B2=\"PAM\",B2=\"ECRANS\"),\"SEAS\",IF(OR(B2=\"METAUX\"),\"DERICHEBOURG\",IF(OR(B2=\"NEON\"),\"SOFOVAR\",IF(OR(B2=\"PEINTURES\"),\"OREDUI\",IF(OR(B2=\"HUILES DE VIDANGE\"),\"SERAHU\"))))))","v":"SUEZ"},"B0300473502"]
["2018-01-02","GRAVATS SALES",null,null,null,{"$f":"IF(B3=\"TOUT VENANT\",\"Véolia Nice Tri - Parc d'activité logistique\",IF(B3=\"DECHETS VERTS\",\"Orédui Carros Compostage - ZI de la Grave\",IF(B3=\"GRAVATS PROPRES\",\"La Gaude K3 Sita Sud - 5211 Rte de St Jeannet\",IF(B3=\"GRAVATS SALES\",\"Véolia Nice Tri - 20 Ch du Saquier\",IF(B3=\"BOIS\",\"SEAS La Glacière - 1019 Rte de la Grasse\",IF(B3=\"METAUX\",\"Carros\",IF(B3=\"NEON\",\"Sofovar - 126 Av Louis Lépine - 83600 Fréjus\",IF(B3=\"PEINTURES\",\"Orédui - ZI Bois de Grasse - 06310 Grasse\",IF(B3=\"FROIDS\",\"SEAS - 1079 Rte de Grasse - 06270 Villeneuve Loubet\",IF(B3=\"HORS FROIDS\",\"SEAS - 1079 Rte de Grasse - 06270 Villeneuve Loubet\",IF(B3=\"PAM\",\"SEAS - 1079 Rte de Grasse - 06270 Villeneuve Loubet\",IF(B3=\"ECRANS\",\"SEAS - 1079 Rte de Grasse - 06270 Villeneuve Loubet\",IF(B3=\"HUILES DE VIDANGE\",\"SERAHU - 68 Ch de la Campanette - 06800 Cagnes sur Mer\")))))))))))))","v":"Véolia Nice Tri - 20 Ch du Saquier"},{"$f":"IF(OR(B3=\"TOUT VENANT\",B3=\"DECHETS VERTS\",B3=\"GRAVATS SALES\",B3=\"GRAVATS PROPRES\",B3=\"BOIS\"),\"SUEZ\",IF(OR(B3=\"FROIDS\",B3=\"HORS FROIDS\",B3=\"PAM\",B3=\"ECRANS\"),\"SEAS\",IF(OR(B3=\"METAUX\"),\"DERICHEBOURG\",IF(OR(B3=\"NEON\"),\"SOFOVAR\",IF(OR(B3=\"PEINTURES\"),\"OREDUI\",IF(OR(B3=\"HUILES DE VIDANGE\"),\"SERAHU\"))))))","v":"SUEZ"},"B0300472042"]
["2018-01-02","BOIS",1100,null,null,"SEAS La Glacière - 1019 Rte de la Grasse","SUEZ","B0300471874"]
["2018-01-02","TOUT VENANT",1720,null,null,"Véolia Nice Tri - Parc d'activité logistique","SUEZ","B0300472374"]
["2018-01-02","METAUX",null,null,null,"Carros","DERICHEBOURG",2461]
["2018-01-02","DECHETS VERTS",1060,null,null,"Orédui Carros Compostage - ZI de la Grave","SUEZ","B0300474375"]
["2018-01-02","DECHETS VERTS",2900,null,null,"Orédui Carros Compostage - ZI de la Grave","SUEZ","B0300471805"]
["2018-01-02","DECHETS VERTS",3280,null,null,"Orédui Carros Compostage - ZI de la Grave","SUEZ","B0300471912"]
["2018-01-02","BOIS",1580,null,null,"SEAS La Glacière - 1019 Rte de la Grasse","SUEZ","B0300474376"]
["2018-01-02","DECHETS VERTS",1060,null,null,"Orédui Carros Compostage - ZI de la Grave","SUEZ","B0300474375"]
["2018-01-02","BOIS",2020,null,null,"SEAS La Glacière - 1019 Rte de la Grasse","SUEZ","B0300472004"]
["2018-01-02","BOIS",1780,null,null,"SEAS La Glacière - 1019 Rte de la Grasse","SUEZ","B0300471836"]
["2018-01-02","GRAVATS PROPRES",null,null,null,"La Gaude K3 Sita Sud - 5211 Rte de St Jeannet","SUEZ","B0300473471"]
["2017-01-03","METAUX",null,null,null,"Carros","DERICHEBOURG",2464]
["2018-01-03","TOUT VENANT",null,null,null,"Véolia Nice Tri - Parc d'activité logistique","SUEZ","B0300472349"]
["2018-01-03","TOUT VENANT",null,null,null,"Véolia Nice Tri - Parc d'activité logistique","SUEZ","B0300472476"]
["2018-01-03","TOUT VENANT",null,null,null,"Véolia Nice Tri - Parc d'activité logistique","SUEZ","B0300472380"]
["2018-01-03","TOUT VENANT",null,null,null,"Véolia Nice Tri - Parc d'activité logistique","SUEZ","B0300474482"]
["2018-01-03","TOUT VENANT",null,null,null,"Véolia Nice Tri - Parc d'activité logistique","SUEZ","B0300474481"]
["2018-01-03","TOUT VENANT",null,null,null,"Véolia Nice Tri - Parc d'activité logistique","SUEZ","B0300474480"]
["2018-01-03","TOUT VENANT",null,null,null,"Véolia Nice Tri - Parc d'activité logistique","SUEZ","B0300474479"]
["2018-01-03","GRAVATS SALES",null,null,null,"Véolia Nice Tri - 20 Ch du Saquier","SUEZ","B0300473737"]
["2018-01-03","GRAVATS PROPRES",null,null,null,"La Gaude K3 Sita Sud - 5211 Rte de St Jeannet","SUEZ","B0300473508"]
["2018-01-03","GRAVATS SALES",null,null,null,"Véolia Nice Tri - 20 Ch du Saquier","SUEZ","B0300472048"]
["2018-01-03","GRAVATS PROPRES",null,null,null,"La Gaude K3 Sita Sud - 5211 Rte de St Jeannet","SUEZ","B0300473539"]
["2018-01-03","DECHETS VERTS",980,null,null,"Orédui Carros Compostage - ZI de la Grave","SUEZ","B0300471918"]
["2018-01-03","TOUT VENANT",1340,null,null,"Véolia Nice Tri - Parc d'activité logistique","SUEZ","B0300473576"]
["2018-01-03","BOIS",2240,null,null,"SEAS La Glacière - 1019 Rte de la Grasse","SUEZ","B0300471880"]
["2018-01-03","DECHETS VERTS",640,null,null,"Orédui Carros Compostage - ZI de la Grave","SUEZ","B0300472125"]
["2018-01-03","BOIS",1320,null,null,"SEAS La Glacière - 1019 Rte de la Grasse","SUEZ","B0300471842"]
["2018-01-03","BOIS",1660,null,null,"SEAS La Glacière - 1019 Rte de la Grasse","SUEZ","B0300472010"]
["2018-01-03","BOIS",1960,null,null,"SEAS La Glacière - 1019 Rte de la Grasse","SUEZ","B0300471811"]
["2018-01-04","METAUX",null,null,null,"Carros","DERICHEBOURG",2468]
["2018-01-04","METAUX",null,null,null,"Carros","DERICHEBOURG",2470]
["2018-01-04","BOIS",1720,null,null,"SEAS La Glacière - 1019 Rte de la Grasse","SUEZ","B0300471848"]
["2018-01-04","DECHETS VERTS",1220,null,null,"Orédui Carros Compostage - ZI de la Grave","SUEZ","B0300471817"]
["2018-01-04","DECHETS VERTS",null,null,null,"Orédui Carros Compostage - ZI de la Grave","SUEZ","B0300474550"]
["2018-01-04","DECHETS VERTS",1620,null,null,"Orédui Carros Compostage - ZI de la Grave","SUEZ","B0300471924"]
["2018-01-04","DECHETS VERTS",820,null,null,"Orédui Carros Compostage - ZI de la Grave","SUEZ","B0300474555"]
["2018-01-04","BOIS",1540,null,null,"SEAS La Glacière - 1019 Rte de la Grasse","SUEZ","B0300471886"]
["2018-01-04","TOUT VENANT",2340,null,null,"Véolia Nice Tri - Parc d'activité logistique","SUEZ","B0300473582"]
["2018-01-04","TOUT VENANT",1780,null,null,"Véolia Nice Tri - Parc d'activité logistique","SUEZ","B0300474515"]
["2018-01-04","TOUT VENANT",960,null,null,"Véolia Nice Tri - Parc d'activité logistique","SUEZ","B0300474512"]
["2018-01-04","BOIS",2480,null,null,"SEAS La Glacière - 1019 Rte de la Grasse","SUEZ","B0300472016"]
["2018-01-04","TOUT VENANT",880,null,null,"Véolia Nice Tri - Parc d'activité logistique","SUEZ","B0300474514"]
["2018-01-04","TOUT VENANT",920,null,null,"Véolia Nice Tri - Parc d'activité logistique","SUEZ","B0300472482"]
["2018-01-04","TOUT VENANT",1580,null,null,"Véolia Nice Tri - Parc d'activité logistique","SUEZ","B0300472386"]
["2018-01-04","TOUT VENANT",1560,null,null,"Véolia Nice Tri - Parc d'activité logistique","SUEZ","B0300472355"]
["2018-01-04","GRAVATS SALES",null,null,null,"Véolia Nice Tri - 20 Ch du Saquier","SUEZ","B0300472054"]
["2018-01-04","GRAVATS PROPRES",null,null,null,"La Gaude K3 Sita Sud - 5211 Rte de St Jeannet","SUEZ","B0300473483"]
["2018-01-04","GRAVATS PROPRES",null,null,null,"La Gaude K3 Sita Sud - 5211 Rte de St Jeannet","SUEZ","B0300473514"]
["2018-01-05","METAUX",null,null,null,"Carros","DERICHEBOURG",2474]
["2018-01-05","GRAVATS SALES",null,null,null,"Véolia Nice Tri - 20 Ch du Saquier","SUEZ","B0300472061"]
["2018-01-05","DECHETS VERTS",null,null,null,"Orédui Carros Compostage - ZI de la Grave","SUEZ","B0300472132"]
["2018-01-05","BOIS",null,null,null,"SEAS La Glacière - 1019 Rte de la Grasse","SUEZ","B0300471893"]
["2018-01-05","DECHETS VERTS",null,null,null,"Orédui Carros Compostage - ZI de la Grave","SUEZ","B0300471824"]
["2018-01-05","BOIS",null,null,null,"SEAS La Glacière - 1019 Rte de la Grasse","SUEZ","B0300472023"]
["2018-01-05","BOIS",null,null,null,"SEAS La Glacière - 1019 Rte de la Grasse","SUEZ","B0300471855"]
["2018-01-05","GRAVATS PROPRES",null,null,null,"La Gaude K3 Sita Sud - 5211 Rte de St Jeannet","SUEZ","B0300473521"]
["2018-01-05","GRAVATS SALES",null,null,null,"Véolia Nice Tri - 20 Ch du Saquier","SUEZ","B0300473750"]
["2018-01-05","GRAVATS PROPRES",null,null,null,"La Gaude K3 Sita Sud - 5211 Rte de St Jeannet","SUEZ","B0300473552"]
["2018-01-05","GRAVATS PROPRES",null,null,null,"La Gaude K3 Sita Sud - 5211 Rte de St Jeannet","SUEZ","B0300473490"]
["2018-01-05","TOUT VENANT",null,null,null,"Véolia Nice Tri - Parc d'activité logistique","SUEZ","B0300472362"]
["2018-01-05","TOUT VENANT",1820,null,null,"Véolia Nice Tri - Parc d'activité logistique","SUEZ","B0300472393"]
["2018-01-05","TOUT VENANT",1280,null,null,"Véolia Nice Tri - Parc d'activité logistique","SUEZ","B0300472489"]
["2018-01-05","TOUT VENANT",1260,null,null,{"$f":"IF(B67=\"TOUT VENANT\",\"Véolia Nice Tri - Parc d'activité logistique\",IF(B67=\"DECHETS VERTS\",\"Orédui Carros Compostage - ZI de la Grave\",IF(B67=\"GRAVATS PROPRES\",\"La Gaude K3 Sita Sud - 5211 Rte de St Jeannet\",IF(B67=\"GRAVATS SALES\",\"Véolia Nice Tri - 20 Ch du Saquier\",IF(B67=\"BOIS\",\"SEAS La Glacière - 1019 Rte de la Grasse\",IF(B67=\"METAUX\",\"Carros\",IF(B67=\"NEON\",\"Sofovar - 126 Av Louis Lépine - 83600 Fréjus\",IF(B67=\"PEINTURES\",\"Orédui - ZI Bois de Grasse - 06310 Grasse\",IF(B67=\"FROIDS\",\"SEAS - 1079 Rte de Grasse - 06270 Villeneuve Loubet\",IF(B67=\"HORS FROIDS\",\"SEAS - 1079 Rte de Grasse - 06270 Villeneuve Loubet\",IF(B67=\"PAM\",\"SEAS - 1079 Rte de Grasse - 06270 Villeneuve Loubet\",IF(B67=\"ECRANS\",\"SEAS - 1079 Rte de Grasse - 06270 Villeneuve Loubet\",IF(B67=\"HUILES DE VIDANGE\",\"SERAHU - 68 Ch de la Campanette - 06800 Cagnes sur Mer\")))))))))))))","v":"Véolia Nice Tri - Parc d'activité logistique"},{"$f":"IF(OR(B67=\"TOUT VENANT\",B67=\"DECHETS VERTS\",B67=\"GRAVATS SALES\",B67=\"GRAVATS PROPRES\",B67=\"BOIS\"),\"SUEZ\",IF(OR(B67=\"FROIDS\",B67=\"HORS FROIDS\",B67=\"PAM\",B67=\"ECRANS\"),\"SEAS\",IF(OR(B67=\"METAUX\"),\"DERICHEBOURG\",IF(OR(B67=\"NEON\"),\"SOFOVAR\",IF(OR(B67=\"PEINTURES\"),\"OREDUI\",IF(OR(B67=\"HUILES DE VIDANGE\"),\"SERAHU\"))))))","v":"SUEZ"},"B0300474622"]
["2018-01-05","TOUT VENANT",1600,null,null,"Véolia Nice Tri - Parc d'activité logistique","SUEZ","B0300474623"]
["2018-01-05","TOUT VENANT",3580,null,null,"Véolia Nice Tri - Parc d'activité logistique","SUEZ","B0300474624"]
["2018-01-06","METAUX",null,null,null,"Carros","DERICHEBOURG",2477]
["2018-01-06","TOUT VENANT",2440,null,null,"Véolia Nice Tri - Parc d'activité logistique","SUEZ","B0300472181"]
["2018-01-06","TOUT VENANT",1040,null,null,"Véolia Nice Tri - Parc d'activité logistique","SUEZ","B0300474663"]
["2018-01-06","TOUT VENANT",800,null,null,"Véolia Nice Tri - Parc d'activité logistique","SUEZ","B0300474662"]
["2018-01-06","TOUT VENANT",1400,null,null,"Véolia Nice Tri - Parc d'activité logistique","SUEZ","B0300474664"]
["2018-01-06","TOUT VENANT",2520,null,null,"Véolia Nice Tri - Parc d'activité logistique","SUEZ","B0300472167"]
["2018-01-06","TOUT VENANT",1640,null,null,"Véolia Nice Tri - Parc d'activité logistique","SUEZ","B0300472188"]
["2018-01-06","TOUT VENANT",1560,null,null,"Véolia Nice Tri - Parc d'activité logistique","SUEZ","B0300472195"]
["2018-01-06","METAUX",null,null,null,"Carros","DERICHEBOURG",2478]
["2018-01-06","GRAVATS PROPRES",null,null,null,"La Gaude K3 Sita Sud - 5211 Rte de St Jeannet","SUEZ","B0300472699"]
["2018-01-06","BOIS",null,null,null,"SEAS La Glacière - 1019 Rte de la Grasse","SUEZ","B0300472223"]
["2018-01-06","DECHETS VERTS",null,null,null,"Orédui Carros Compostage - ZI de la Grave","SUEZ","B0300472209"]
["2018-01-06","GRAVATS SALES",null,null,null,"Véolia Nice Tri - 20 Ch du Saquier","SUEZ","B0300473757"]

{"sheet":"Registre_2","index":2,"n_rows":773,"n_cols":8,"rows_kept":773,"cut":false,"hidden":false,"merged":[[0,2,0,3],[1,2,1,3],[2,2,2,3],[3,2,3,3],[10,2,10,3],[11,2,11,3],[12,2,12,3],[13,2,13,3],[14,2,14,3],[15,2,15,3],[4,2,4,3],[5,2,5,3],[6,2,6,3],[7,2,7,3],[8,2,8,3],[9,2,9,3],[22,2,22,3],[23,2,23,3],[24,2,24,3],[25,2,25,3],[26,2,26,3],[27,2,27,3],[16,2,16,3],[17,2,17,3],[18,2,18,3],[19,2,19,3],[20,2,20,3],[21,2,21,3],[34,2,34,3],[35,2,35,3],[36,2,36,3],[37,2,37,3],[38,2,38,3],[39,2,39,3],[28,2,28,3],[29,2,29,3],[30,2,30,3],[31,2,31,3],[32,2,32,3],[33,2,33,3],[46,2,46,3],[47,2,47,3],[48,2,48,3],[49,2,49,3],[50,2,50,3],[51,2,51,3],[40,2,40,3],[41,2,41,3],[42,2,42,3],[43,2,43,3],[44,2,44,3],[45,2,45,3],[58,2,58,3],[59,2,59,3],[60,2,60,3],[61,2,61,3],[62,2,62,3],[63,2,63,3],[52,2,52,3],[53,2,53,3],[54,2,54,3],[55,2,55,3],[56,2,56,3],[57,2,57,3],[70,2,70,3],[71,2,71,3],[72,2,72,3],[73,2,73,3],[74,2,74,3],[75,2,75,3],[64,2,64,3],[65,2,65,3],[66,2,66,3],[67,2,67,3],[68,2,68,3],[69,2,69,3],[82,2,82,3],[83,2,83,3],[84,2,84,3],[85,2,85,3],[86,2,86,3],[87,2,87,3],[76,2,76,3],[77,2,77,3],[78,2,78,3],[79,2,79,3],[80,2,80,3],[81,2,81,3],[94,2,94,3],[95,2,95,3],[96,2,96,3],[97,2,97,3],[98,2,98,3],[99,2,99,3],[88,2,88,3],[89,2,89,3],[90,2,90,3],[91,2,91,3],[92,2,92,3],[93,2,93,3],[106,2,106,3],[107,2,107,3],[108,2,108,3],[109,2,109,3],[110,2,110,3],[111,2,111,3],[100,2,100,3],[101,2,101,3],[102,2,102,3],[103,2,103,3],[104,2,104,3],[105,2,105,3],[118,2,118,3],[119,2,119,3],[120,2,120,3],[121,2,121,3],[122,2,122,3],[123,2,123,3],[112,2,112,3],[113,2,113,3],[114,2,114,3],[115,2,115,3],[116,2,116,3],[117,2,117,3],[130,2,130,3],[131,2,131,3],[132,2,132,3],[133,2,133,3],[134,2,134,3],[135,2,135,3],[124,2,124,3],[125,2,125,3],[126,2,126,3],[127,2,127,3],[128,2,128,3],[129,2,129,3],[142,2,142,3],[143,2,143,3],[144,2,144,3],[145,2,145,3],[146,2,146,3],[147,2,147,3],[136,2,136,3],[137,2,137,3],[138,2,138,3],[139,2,139,3],[140,2,140,3],[141,2,141,3],[154,2,154,3],[155,2,155,3],[156,2,156,3],[157,2,157,3],[158,2,158,3],[159,2,159,3],[148,2,148,3],[149,2,149,3],[150,2,150,3],[151,2,151,3],[152,2,152,3],[153,2,153,3],[166,2,166,3],[167,2,167,3],[168,2,168,3],[169,2,169,3],[170,2,170,3],[171,2,171,3],[160,2,160,3],[161,2,161,3],[162,2,162,3],[163,2,163,3],[164,2,164,3],[165,2,165,3],[178,2,178,3],[179,2,179,3],[180,2,180,3],[181,2,181,3],[182,2,182,3],[183,2,183,3],[172,2,172,3],[173,2,173,3],[174,2,174,3],[175,2,175,3],[176,2,176,3],[177,2,177,3],[190,2,190,3],[191,2,191,3],[192,2,192,3],[193,2,193,3],[194,2,194,3],[195,2,195,3],[184,2,184,3],[185,2,185,3],[186,2,186,3],[187,2,187,3],[188,2,188,3],[189,2,189,3],[202,2,202,3],[203,2,203,3],[204,2,204,3],[205,2,205,3],[206,2,206,3],[207,2,207,3],[196,2,196,3],[197,2,197,3],[198,2,198,3],[199,2,199,3],[200,2,200,3],[201,2,201,3],[214,2,214,3],[215,2,215,3],[216,2,216,3],[217,2,217,3],[218,2,218,3],[219,2,219,3],[208,2,208,3],[209,2,209,3],[210,2,210,3],[211,2,211,3],[212,2,212,3],[213,2,213,3],[226,2,226,3],[227,2,227,3],[228,2,228,3],[229,2,229,3],[230,2,230,3],[231,2,231,3],[220,2,220,3],[221,2,221,3],[222,2,222,3],[223,2,223,3],[224,2,224,3],[225,2,225,3],[238,2,238,3],[239,2,239,3],[240,2,240,3],[241,2,241,3],[242,2,242,3],[243,2,243,3],[232,2,232,3],[233,2,233,3],[234,2,234,3],[235,2,235,3],[236,2,236,3],[237,2,237,3],[250,2,250,3],[251,2,251,3],[252,2,252,3],[253,2,253,3],[254,2,254,3],[255,2,255,3],[244,2,244,3],[245,2,245,3],[246,2,246,3],[247,2,247,3],[248,2,248,3],[249,2,249,3],[262,2,262,3],[263,2,263,3],[264,2,264,3],[265,2,265,3],[266,2,266,3],[267,2,267,3],[256,2,256,3],[257,2,257,3],[258,2,258,3],[259,2,259,3],[260,2,260,3],[261,2,261,3],[274,2,274,3],[275,2,275,3],[276,2,276,3],[277,2,277,3],[278,2,278,3],[279,2,279,3],[268,2,268,3],[269,2,269,3],[270,2,270,3],[271,2,271,3],[272,2,272,3],[273,2,273,3],[286,2,286,3],[287,2,287,3],[288,2,288,3],[289,2,289,3],[290,2,290,3],[291,2,291,3],[280,2,280,3],[281,2,281,3],[282,2,282,3],[283,2,283,3],[284,2,284,3],[285,2,285,3],[298,2,298,3],[299,2,299,3],[300,2,300,3],[301,2,301,3],[302,2,302,3],[303,2,303,3],[292,2,292,3],[293,2,293,3],[294,2,294,3],[295,2,295,3],[296,2,296,3],[297,2,297,3],[310,2,310,3],[311,2,311,3],[312,2,312,3],[313,2,313,3],[314,2,314,3],[315,2,315,3],[304,2,304,3],[305,2,305,3],[306,2,306,3],[307,2,307,3],[308,2,308,3],[309,2,309,3],[322,2,322,3],[323,2,323,3],[324,2,324,3],[325,2,325,3],[326,2,326,3],[327,2,327,3],[316,2,316,3],[317,2,317,3],[318,2,318,3],[319,2,319,3],[320,2,320,3],[321,2,321,3],[334,2,334,3],[335,2,335,3],[336,2,336,3],[337,2,337,3],[338,2,338,3],[339,2,339,3],[328,2,328,3],[329,2,329,3],[330,2,330,3],[331,2,331,3],[332,2,332,3],[333,2,333,3],[346,2,346,3],[347,2,347,3],[348,2,348,3],[349,2,349,3],[350,2,350,3],[351,2,351,3],[340,2,340,3],[341,2,341,3],[342,2,342,3],[343,2,343,3],[344,2,344,3],[345,2,345,3],[358,2,358,3],[359,2,359,3],[360,2,360,3],[361,2,361,3],[362,2,362,3],[363,2,363,3],[352,2,352,3],[353,2,353,3],[354,2,354,3],[355,2,355,3],[356,2,356,3],[357,2,357,3],[370,2,370,3],[371,2,371,3],[372,2,372,3],[373,2,373,3],[374,2,374,3],[375,2,375,3],[364,2,364,3],[365,2,365,3],[366,2,366,3],[367,2,367,3],[368,2,368,3],[369,2,369,3],[382,2,382,3],[383,2,383,3],[384,2,384,3],[385,2,385,3],[386,2,386,3],[387,2,387,3],[376,2,376,3],[377,2,377,3],[378,2,378,3],[379,2,379,3],[380,2,380,3],[381,2,381,3],[394,2,394,3],[395,2,395,3],[396,2,396,3],[397,2,397,3],[398,2,398,3],[399,2,399,3],[388,2,388,3],[389,2,389,3],[390,2,390,3],[391,2,391,3],[392,2,392,3],[393,2,393,3],[406,2,406,3],[407,2,407,3],[408,2,408,3],[409,2,409,3],[410,2,410,3],[411,2,411,3],[400,2,400,3],[401,2,401,3],[402,2,402,3],[403,2,403,3],[404,2,404,3],[405,2,405,3],[418,2,418,3],[419,2,419,3],[420,2,420,3],[421,2,421,3],[422,2,422,3],[423,2,423,3],[412,2,412,3],[413,2,413,3],[414,2,414,3],[415,2,415,3],[416,2,416,3],[417,2,417,3],[430,2,430,3],[431,2,431,3],[432,2,432,3],[433,2,433,3],[434,2,434,3],[435,2,435,3],[424,2,424,3],[425,2,425,3],[426,2,426,3],[427,2,427,3],[428,2,428,3],[429,2,429,3],[442,2,442,3],[443,2,443,3],[444,2,444,3],[445,2,445,3],[446,2,446,3],[447,2,447,3],[436,2,436,3],[437,2,437,3],[438,2,438,3],[439,2,439,3],[440,2,440,3],[441,2,441,3],[454,2,454,3],[455,2,455,3],[456,2,456,3],[457,2,457,3],[458,2,458,3],[459,2,459,3],[448,2,448,3],[449,2,449,3],[450,2,450,3],[451,2,451,3],[452,2,452,3],[453,2,453,3],[466,2,466,3],[467,2,467,3],[468,2,468,3],[469,2,469,3],[470,2,470,3],[471,2,471,3],[460,2,460,3],[461,2,461,3],[462,2,462,3],[463,2,463,3],[464,2,464,3],[465,2,465,3],[478,2,478,3],[479,2,479,3],[480,2,480,3],[481,2,481,3],[482,2,482,3],[483,2,483,3],[472,2,472,3],[473,2,473,3],[474,2,474,3],[475,2,475,3],[476,2,476,3],[477,2,477,3],[490,2,490,3],[491,2,491,3],[492,2,492,3],[493,2,493,3],[494,2,494,3],[495,2,495,3],[484,2,484,3],[485,2,485,3],[486,2,486,3],[487,2,487,3],[488,2,488,3],[489,2,489,3],[502,2,502,3],[503,2,503,3],[504,2,504,3],[505,2,505,3],[506,2,506,3],[507,2,507,3],[496,2,496,3],[497,2,497,3],[498,2,498,3],[499,2,499,3],[500,2,500,3],[501,2,501,3],[514,2,514,3],[515,2,515,3],[516,2,516,3],[517,2,517,3],[518,2,518,3],[519,2,519,3],[508,2,508,3],[509,2,509,3],[510,2,510,3],[511,2,511,3],[512,2,512,3],[513,2,513,3],[526,2,526,3],[527,2,527,3],[528,2,528,3],[529,2,529,3],[530,2,530,3],[531,2,531,3],[520,2,520,3],[521,2,521,3],[522,2,522,3],[523,2,523,3],[524,2,524,3],[525,2,525,3],[538,2,538,3],[539,2,539,3],[540,2,540,3],[541,2,541,3],[542,2,542,3],[543,2,543,3],[532,2,532,3],[533,2,533,3],[534,2,534,3],[535,2,535,3],[536,2,536,3],[537,2,537,3],[550,2,550,3],[551,2,551,3],[552,2,552,3],[553,2,553,3],[554,2,554,3],[555,2,555,3],[544,2,544,3],[545,2,545,3],[546,2,546,3],[547,2,547,3],[548,2,548,3],[549,2,549,3],[562,2,562,3],[563,2,563,3],[564,2,564,3],[565,2,565,3],[566,2,566,3],[567,2,567,3],[556,2,556,3],[557,2,557,3],[558,2,558,3],[559,2,559,3],[560,2,560,3],[561,2,561,3],[574,2,574,3],[575,2,575,3],[576,2,576,3],[577,2,577,3],[578,2,578,3],[579,2,579,3],[568,2,568,3],[569,2,569,3],[570,2,570,3],[571,2,571,3],[572,2,572,3],[573,2,573,3],[586,2,586,3],[587,2,587,3],[588,2,588,3],[589,2,589,3],[590,2,590,3],[591,2,591,3],[580,2,580,3],[581,2,581,3],[582,2,582,3],[583,2,583,3],[584,2,584,3],[585,2,585,3],[598,2,598,3],[599,2,599,3],[600,2,600,3],[601,2,601,3],[602,2,602,3],[603,2,603,3],[592,2,592,3],[593,2,593,3],[594,2,594,3],[595,2,595,3],[596,2,596,3],[597,2,597,3],[610,2,610,3],[611,2,611,3],[612,2,612,3],[613,2,613,3],[614,2,614,3],[615,2,615,3],[604,2,604,3],[605,2,605,3],[606,2,606,3],[607,2,607,3],[608,2,608,3],[609,2,609,3],[622,2,622,3],[623,2,623,3],[624,2,624,3],[625,2,625,3],[626,2,626,3],[627,2,627,3],[616,2,616,3],[617,2,617,3],[618,2,618,3],[619,2,619,3],[620,2,620,3],[621,2,621,3],[634,2,634,3],[635,2,635,3],[636,2,636,3],[637,2,637,3],[638,2,638,3],[639,2,639,3],[628,2,628,3],[629,2,629,3],[630,2,630,3],[631,2,631,3],[632,2,632,3],[633,2,633,3],[646,2,646,3],[647,2,647,3],[648,2,648,3],[649,2,649,3],[650,2,650,3],[651,2,651,3],[640,2,640,3],[641,2,641,3],[642,2,642,3],[643,2,643,3],[644,2,644,3],[645,2,645,3],[658,2,658,3],[659,2,659,3],[660,2,660,3],[661,2,661,3],[662,2,662,3],[663,2,663,3],[652,2,652,3],[653,2,653,3],[654,2,654,3],[655,2,655,3],[656,2,656,3],[657,2,657,3],[670,2,670,3],[671,2,671,3],[672,2,672,3],[673,2,673,3],[674,2,674,3],[675,2,675,3],[664,2,664,3],[665,2,665,3],[666,2,666,3],[667,2,667,3],[668,2,668,3],[669,2,669,3],[682,2,682,3],[683,2,683,3],[684,2,684,3],[685,2,685,3],[686,2,686,3],[687,2,687,3],[676,2,676,3],[677,2,677,3],[678,2,678,3],[679,2,679,3],[680,2,680,3],[681,2,681,3],[694,2,694,3],[695,2,695,3],[696,2,696,3],[697,2,697,3],[698,2,698,3],[699,2,699,3],[688,2,688,3],[689,2,689,3],[690,2,690,3],[691,2,691,3],[692,2,692,3],[693,2,693,3],[706,2,706,3],[707,2,707,3],[708,2,708,3],[709,2,709,3],[710,2,710,3],[711,2,711,3],[700,2,700,3],[701,2,701,3],[702,2,702,3],[703,2,703,3],[704,2,704,3],[705,2,705,3],[718,2,718,3],[719,2,719,3],[720,2,720,3],[721,2,721,3],[722,2,722,3],[723,2,723,3],[712,2,712,3],[713,2,713,3],[714,2,714,3],[715,2,715,3],[716,2,716,3],[717,2,717,3],[730,2,730,3],[731,2,731,3],[732,2,732,3],[733,2,733,3],[734,2,734,3],[735,2,735,3],[724,2,724,3],[725,2,725,3],[726,2,726,3],[727,2,727,3],[728,2,728,3],[729,2,729,3],[742,2,742,3],[743,2,743,3],[744,2,744,3],[745,2,745,3],[746,2,746,3],[747,2,747,3],[736,2,736,3],[737,2,737,3],[738,2,738,3],[739,2,739,3],[740,2,740,3],[741,2,741,3],[754,2,754,3],[755,2,755,3],[756,2,756,3],[757,2,757,3],[758,2,758,3],[759,2,759,3],[748,2,748,3],[749,2,749,3],[750,2,750,3],[751,2,751,3],[752,2,752,3],[753,2,753,3],[772,2,772,3],[766,2,766,3],[767,2,767,3],[768,2,768,3],[769,2,769,3],[770,2,770,3],[771,2,771,3],[760,2,760,3],[761,2,761,3],[762,2,762,3],[763,2,763,3],[764,2,764,3],[765,2,765,3]]}
["Date d'enlèvement","Nature du déchets","Quantité de déchets\n (en kg)",null,"Unité","Installation de destination \n(nom et adresse)","Transporteur ","Fiche d'intervention"]
["2018-01-08","TOUT VENANT",1880,null,null,{"$f":"IF(B2=\"TOUT VENANT\",\"Véolia Nice Tri - Parc d'activité logistique\",IF(B2=\"DECHETS VERTS\",\"Orédui Carros Compostage - ZI de la Grave\",IF(B2=\"GRAVATS PROPRES\",\"La Gaude K3 Sita Sud - 5211 Rte de St Jeannet\",IF(B2=\"GRAVATS SALES\",\"Véolia Nice Tri - 20 Ch du Saquier\",IF(B2=\"BOIS\",\"SEAS La Glacière - 1019 Rte de la Grasse\",IF(B2=\"METAUX\",\"Carros\",IF(B2=\"NEON\",\"Sofovar - 126 Av Louis Lépine - 83600 Fréjus\",IF(B2=\"PEINTURES\",\"Orédui - ZI Bois de Grasse - 06310 Grasse\",IF(B2=\"FROIDS\",\"SEAS - 1079 Rte de Grasse - 06270 Villeneuve Loubet\",IF(B2=\"HORS FROIDS\",\"SEAS - 1079 Rte de Grasse - 06270 Villeneuve Loubet\",IF(B2=\"PAM\",\"SEAS - 1079 Rte de Grasse - 06270 Villeneuve Loubet\",IF(B2=\"ECRANS\",\"SEAS - 1079 Rte de Grasse - 06270 Villeneuve Loubet\",IF(B2=\"HUILES DE VIDANGE\",\"SERAHU - 68 Ch de la Campanette - 06800 Cagnes sur Mer\")))))))))))))","v":"Véolia Nice Tri - Parc d'activité logistique"},{"$f":"IF(OR(B2=\"TOUT VENANT\",B2=\"DECHETS VERTS\",B2=\"GRAVATS SALES\",B2=\"GRAVATS PROPRES\",B2=\"BOIS\"),\"SUEZ\",IF(OR(B2=\"FROIDS\",B2=\"HORS FROIDS\",B2=\"PAM\",B2=\"ECRANS\"),\"SEAS\",IF(OR(B2=\"METAUX\"),\"DERICHEBOURG\",IF(OR(B2=\"NEON\"),\"SOFOVAR\",IF(OR(B2=\"PEINTURES\"),\"OREDUI\",IF(OR(B2=\"HUILES DE VIDANGE\"),\"SERAHU\"))))))","v":"SUEZ"},"B0300474648"]
["2018-01-08","BOIS",1240,null,null,{"$f":"IF(B3=\"TOUT VENANT\",\"Véolia Nice Tri - Parc d'activité logistique\",IF(B3=\"DECHETS VERTS\",\"Orédui Carros Compostage - ZI de la Grave\",IF(B3=\"GRAVATS PROPRES\",\"La Gaude K3 Sita Sud - 5211 Rte de St Jeannet\",IF(B3=\"GRAVATS SALES\",\"Véolia Nice Tri - 20 Ch du Saquier\",IF(B3=\"BOIS\",\"SEAS La Glacière - 1019 Rte de la Grasse\",IF(B3=\"METAUX\",\"Carros\",IF(B3=\"NEON\",\"Sofovar - 126 Av Louis Lépine - 83600 Fréjus\",IF(B3=\"PEINTURES\",\"Orédui - ZI Bois de Grasse - 06310 Grasse\",IF(B3=\"FROIDS\",\"SEAS - 1079 Rte de Grasse - 06270 Villeneuve Loubet\",IF(B3=\"HORS FROIDS\",\"SEAS - 1079 Rte de Grasse - 06270 Villeneuve Loubet\",IF(B3=\"PAM\",\"SEAS - 1079 Rte de Grasse - 06270 Villeneuve Loubet\",IF(B3=\"ECRANS\",\"SEAS - 1079 Rte de Grasse - 06270 Villeneuve Loubet\",IF(B3=\"HUILES DE VIDANGE\",\"SERAHU - 68 Ch de la Campanette - 06800 Cagnes sur Mer\")))))))))))))","v":"SEAS La Glacière - 1019 Rte de la Grasse"},{"$f":"IF(OR(B3=\"TOUT VENANT\",B3=\"DECHETS VERTS\",B3=\"GRAVATS SALES\",B3=\"GRAVATS PROPRES\",B3=\"BOIS\"),\"SUEZ\",IF(OR(B3=\"FROIDS\",B3=\"HORS FROIDS\",B3=\"PAM\",B3=\"ECRANS\"),\"SEAS\",IF(OR(B3=\"METAUX\"),\"DERICHEBOURG\",IF(OR(B3=\"NEON\"),\"SOFOVAR\",IF(OR(B3=\"PEINTURES\"),\"OREDUI\",IF(OR(B3=\"HUILES DE VIDANGE\"),\"SERAHU\"))))))","v":"SUEZ"},"B0300471999"]
["2018-01-08","BOIS",1380,null,null,"SEAS La Glacière - 1019 Rte de la Grasse","SUEZ","B0300471831"]
["2018-01-08","DECHETS VERTS",3220,null,null,"Orédui Carros Compostage - ZI de la Grave","SUEZ","B0300472120"]
["2018-01-08","BOIS",1780,null,null,"SEAS La Glacière - 1019 Rte de la Grasse","SUEZ","B0300471869"]
["2018-01-08","TOUT VENANT",1520,null,null,"Véolia Nice Tri - Parc d'activité logistique","SUEZ","B0300471800"]
["2018-01-08","GRAVATS SALES",null,null,null,"Véolia Nice Tri - 20 Ch du Saquier","SUEZ","B0300473466"]
["2018-01-08","GRAVATS PROPRES",null,null,null,"La Gaude K3 Sita Sud - 5211 Rte de St Jeannet","SUEZ","B0300471769"]
["2018-01-08","GRAVATS SALES",null,null,null,"Véolia Nice Tri - 20 Ch du Saquier","SUEZ","B0300473726"]
["2018-01-08","GRAVATS PROPRES",null,null,null,"La Gaude K3 Sita Sud - 5211 Rte de St Jeannet","SUEZ","B0300473528"]
["2018-01-08","METAUX",null,null,null,"Carros","DERICHEBOURG",2439]
["2018-01-08","GRAVATS PROPRES",null,null,null,"La Gaude K3 Sita Sud - 5211 Rte de St Jeannet","SUEZ","B0300472037"]
["2018-01-08","TOUT VENANT",1820,null,null,"Véolia Nice Tri - Parc d'activité logistique","SUEZ","B0300474644"]
["2018-01-08","DECHETS VERTS",1360,null,null,"Orédui Carros Compostage - ZI de la Grave","SUEZ","B0300474649"]
["2018-01-08","TOUT VENANT",2280,null,null,"Véolia Nice Tri - Parc d'activité logistique","SUEZ","B0300472465"]
["2018-01-08","TOUT VENANT",null,null,null,"Véolia Nice Tri - Parc d'activité logistique","SUEZ","B0300473565"]
["2018-01-08","TOUT VENANT",1740,null,null,"Véolia Nice Tri - Parc d'activité logistique","SUEZ","B0300472369"]
["2018-01-08","TOUT VENANT",1800,null,null,"Véolia Nice Tri - Parc d'activité logistique","SUEZ","B0300474647"]
["2018-01-08","TOUT VENANT",1400,null,null,"Véolia Nice Tri - Parc d'activité logistique","SUEZ","B0300474646"]
["2018-01-08","TOUT VENANT",1760,null,null,"Véolia Nice Tri - Parc d'activité logistique","SUEZ","B0300472338"]
["2018-01-09","DECHETS VERTS",1900,null,null,"Orédui Carros Compostage - ZI de la Grave","SUEZ","B0300471806"]
["2018-01-09","BOIS",1560,null,null,"SEAS La Glacière - 1019 Rte de la Grasse","SUEZ","B0300471837"]
["2018-01-09","GRAVATS PROPRES",null,null,null,"La Gaude K3 Sita Sud - 5211 Rte de St Jeannet","SUEZ","B0300473503"]
["2018-01-09","GRAVATS SALES",null,null,null,"Véolia Nice Tri - 20 Ch du Saquier","SUEZ","B0300472043"]
["2018-01-09","GRAVATS PROPRES",null,null,null,"La Gaude K3 Sita Sud - 5211 Rte de St Jeannet","SUEZ","B0300473472"]
["2018-01-09","DECHETS VERTS",600,null,null,"Orédui Carros Compostage - ZI de la Grave","SUEZ","B0300471913"]
["2018-01-09","METAUX",null,null,null,"Carros","DERICHEBOURG",2483]
["2018-01-09","DECHETS VERTS",2860,null,null,"Orédui Carros Compostage - ZI de la Grave","SUEZ","B0300474720"]
["2018-01-09","TOUT VENANT",null,null,null,"Véolia Nice Tri - Parc d'activité logistique","SUEZ","B0300472471"]
["2018-01-09","TOUT VENANT",2080,null,null,"Véolia Nice Tri - Parc d'activité logistique","SUEZ","B0300473571"]
["2018-01-09","TOUT VENANT",1180,null,null,"Véolia Nice Tri - Parc d'activité logistique","SUEZ","B0300474722"]
["2018-01-09","BOIS",1800,null,null,"SEAS La Glacière - 1019 Rte de la Grasse","SUEZ","B0300471875"]
["2018-01-09","TOUT VENANT",1640,null,null,"Véolia Nice Tri - Parc d'activité logistique","SUEZ","B0300474723"]
["2018-01-09","TOUT VENANT",null,null,null,"Véolia Nice Tri - Parc d'activité logistique","SUEZ","B0300474724"]
["2018-01-09","TOUT VENANT",3260,null,null,"Véolia Nice Tri - Parc d'activité logistique","SUEZ",652]
["2018-01-09","TOUT VENANT",3880,null,null,"Véolia Nice Tri - Parc d'activité logistique","SUEZ",651]
["2018-01-09","TOUT VENANT",3180,null,null,"Véolia Nice Tri - Parc d'activité logistique","SUEZ",653]
["2018-01-10","METAUX",null,null,null,"Carros","DERICHEBOURG",2446]
["2018-01-10","BOIS",1360,null,null,"SEAS La Glacière - 1019 Rte de la Grasse","SUEZ","B0300472011"]
["2018-01-10","DECHETS VERTS",1420,null,null,"Orédui Carros Compostage - ZI de la Grave","SUEZ","B0300471919"]
["2018-01-10","TOUT VENANT",3920,null,null,"Véolia Nice Tri - Parc d'activité logistique","SUEZ",654]
["2018-01-10","DECHETS VERTS",920,null,null,"Orédui Carros Compostage - ZI de la Grave","SUEZ","B0300472126"]
["2018-01-10","TOUT VENANT",null,null,null,"Véolia Nice Tri - Parc d'activité logistique","SUEZ","B0300473577"]
["2018-01-10","TOUT VENANT",1160,null,null,"Véolia Nice Tri - Parc d'activité logistique","SUEZ","B0300472477"]
["2018-01-10","TOUT VENANT",700,null,null,"Véolia Nice Tri - Parc d'activité logistique","SUEZ","B0300472381"]
["2018-01-10","BOIS",1520,null,null,"SEAS La Glacière - 1019 Rte de la Grasse","SUEZ","B0300471843"]
["2018-01-10","GRAVATS PROPRES",null,null,null,"La Gaude K3 Sita Sud - 5211 Rte de St Jeannet","SUEZ","B0300473540"]
["2018-01-10","GRAVATS SALES",4700,null,null,"Véolia Nice Tri - 20 Ch du Saquier","SUEZ","B0300473738"]
["2018-01-10","GRAVATS PROPRES",3850,null,null,"La Gaude K3 Sita Sud - 5211 Rte de St Jeannet","SUEZ","B0300473478"]
["2018-01-10","GRAVATS PROPRES",7350,null,null,"La Gaude K3 Sita Sud - 5211 Rte de St Jeannet","SUEZ","B0300471781"]
["2018-01-10","GRAVATS SALES",5840,null,null,"Véolia Nice Tri - 20 Ch du Saquier","SUEZ","B0300472049"]
["2018-01-10","TOUT VENANT",null,null,null,"Véolia Nice Tri - Parc d'activité logistique","SUEZ",655]
["2018-01-10","DECHETS VERTS",680,null,null,"Orédui Carros Compostage - ZI de la Grave","SUEZ","B0300475995"]
["2018-01-10","TOUT VENANT",2160,null,null,"Véolia Nice Tri - Parc d'activité logistique","SUEZ","B0300475997"]
["2018-01-10","TOUT VENANT",null,null,null,"Véolia Nice Tri - Parc d'activité logistique","SUEZ","B0300475998"]
["2018-01-10","TOUT VENANT",1360,null,null,"Véolia Nice Tri - Parc d'activité logistique","SUEZ","B0300472350"]
["2018-01-11","METAUX",null,null,null,"Carros","DERICHEBOURG",2450]
["2018-01-11","DECHETS VERTS",1000,null,null,"Orédui Carros Compostage - ZI de la Grave","SUEZ","B0300471818"]
["2018-01-11","DECHETS VERTS",2520,null,null,"Orédui Carros Compostage - ZI de la Grave","SUEZ","B0300471925"]
["2018-01-11","TOUT VENANT",2140,null,null,"Véolia Nice Tri - Parc d'activité logistique","SUEZ","B0300472483"]
["2018-01-11","GRAVATS PROPRES",null,null,null,"La Gaude K3 Sita Sud - 5211 Rte de St Jeannet","SUEZ","B0300473546"]
["2018-01-11","GRAVATS SALES",null,null,null,"Véolia Nice Tri - 20 Ch du Saquier","SUEZ","B0300473744"]
["2018-01-11","GRAVATS PROPRES",null,null,null,"La Gaude K3 Sita Sud - 5211 Rte de St Jeannet","SUEZ","B0300473515"]
["2018-01-11","GRAVATS SALES",null,null,null,"Véolia Nice Tri - 20 Ch du Saquier","SUEZ","B0300472055"]
["2018-01-11","GRAVATS PROPRES",null,null,null,"La Gaude K3 Sita Sud - 5211 Rte de St Jeannet","SUEZ","B0300473484"]
["2018-01-11","TOUT VENANT",1440,null,null,{"$f":"IF(B67=\"TOUT VENANT\",\"Véolia Nice Tri - Parc d'activité logistique\",IF(B67=\"DECHETS VERTS\",\"Orédui Carros Compostage - ZI de la Grave\",IF(B67=\"GRAVATS PROPRES\",\"La Gaude K3 Sita Sud - 5211 Rte de St Jeannet\",IF(B67=\"GRAVATS SALES\",\"Véolia Nice Tri - 20 Ch du Saquier\",IF(B67=\"BOIS\",\"SEAS La Glacière - 1019 Rte de la Grasse\",IF(B67=\"METAUX\",\"Carros\",IF(B67=\"NEON\",\"Sofovar - 126 Av Louis Lépine - 83600 Fréjus\",IF(B67=\"PEINTURES\",\"Orédui - ZI Bois de Grasse - 06310 Grasse\",IF(B67=\"FROIDS\",\"SEAS - 1079 Rte de Grasse - 06270 Villeneuve Loubet\",IF(B67=\"HORS FROIDS\",\"SEAS - 1079 Rte de Grasse - 06270 Villeneuve Loubet\",IF(B67=\"PAM\",\"SEAS - 1079 Rte de Grasse - 06270 Villeneuve Loubet\",IF(B67=\"ECRANS\",\"SEAS - 1079 Rte de Grasse - 06270 Villeneuve Loubet\",IF(B67=\"HUILES DE VIDANGE\",\"SERAHU - 68 Ch de la Campanette - 06800 Cagnes sur Mer\")))))))))))))","v":"Véolia Nice Tri - Parc d'activité logistique"},{"$f":"IF(OR(B67=\"TOUT VENANT\",B67=\"DECHETS VERTS\",B67=\"GRAVATS SALES\",B67=\"GRAVATS PROPRES\",B67=\"BOIS\"),\"SUEZ\",IF(OR(B67=\"FROIDS\",B67=\"HORS FROIDS\",B67=\"PAM\",B67=\"ECRANS\"),\"SEAS\",IF(OR(B67=\"METAUX\"),\"DERICHEBOURG\",IF(OR(B67=\"NEON\"),\"SOFOVAR\",IF(OR(B67=\"PEINTURES\"),\"OREDUI\",IF(OR(B67=\"HUILES DE VIDANGE\"),\"SERAHU\"))))))","v":"SUEZ"},"B0300472387"]
["2018-01-11","BOIS",1480,null,null,"SEAS La Glacière - 1019 Rte de la Grasse","SUEZ","B0300471849"]
["2018-01-11","TOUT VENANT",null,null,null,"Véolia Nice Tri - Parc d'activité logistique","SUEZ","B0300476015"]
["2018-01-11","TOUT VENANT",1700,null,null,"Véolia Nice Tri - Parc d'activité logistique","SUEZ","B0300476016"]
["2018-01-11","TOUT VENANT",3200,null,null,"Véolia Nice Tri - Parc d'activité logistique","SUEZ","B0300473583"]
["2018-01-11","DECHETS VERTS",1480,null,null,"Orédui Carros Compostage - ZI de la Grave","SUEZ","B0300476014"]
["2018-01-11","BOIS",2180,null,null,"SEAS La Glacière - 1019 Rte de la Grasse","SUEZ","B0300471887"]
["2018-01-11","TOUT VENANT",1580,null,null,"Véolia Nice Tri - Parc d'activité logistique","SUEZ","B0300476017"]
["2018-01-12","GRAVATS PROPRES",8850,null,null,"La Gaude K3 Sita Sud - 5211 Rte de St Jeannet","SUEZ","B0300473491"]
["2018-01-11","NEON",null,null,null,"Sofovar - 126 Av Louis Lépine - 83600 Fréjus","SOFOVAR","265116E"]
["2018-01-11","HUILES DE VIDANGE",900,null,null,"SERAHU - 68 Ch de la Campanette - 06800 Cagnes sur Mer","SERAHU","0088899A"]
["2018-01-12","GRAVATS SALES",4360,null,null,"Véolia Nice Tri - 20 Ch du Saquier","SUEZ","B0300472062"]
["2018-01-12","DECHETS VERTS",1140,null,null,"Orédui Carros Compostage - ZI de la Grave","SUEZ","B0300471825"]
["2018-01-12","BOIS",2420,null,null,"SEAS La Glacière - 1019 Rte de la Grasse","SUEZ","B0300471856"]
["2018-01-12","TOUT VENANT",1500,null,null,"Véolia Nice Tri - Parc d'activité logistique","SUEZ","B0300472490"]
["2018-01-12","TOUT VENANT",4100,null,null,"Véolia Nice Tri - Parc d'activité logistique","SUEZ",103251]
["2018-01-12","GRAVATS PROPRES",6150,null,null,"La Gaude K3 Sita Sud - 5211 Rte de St Jeannet","SUEZ","B0300473522"]
["2018-01-12","DECHETS VERTS",1040,null,null,"Orédui Carros Compostage - ZI de la Grave","SUEZ","B0300471932"]
["2018-01-12","GRAVATS PROPRES",4560,null,null,"La Gaude K3 Sita Sud - 5211 Rte de St Jeannet","SUEZ","BAL085"]
["2018-01-12","BOIS",2060,null,null,"SEAS La Glacière - 1019 Rte de la Grasse","SUEZ","B0300471894"]
["2018-01-12","GRAVATS PROPRES",6400,null,null,"La Gaude K3 Sita Sud - 5211 Rte de St Jeannet","SUEZ","B0300473553"]
["2018-01-12","TOUT VENANT",3240,null,null,"Véolia Nice Tri - Parc d'activité logistique","SUEZ",103252]
["2018-01-12","DECHETS VERTS",2160,null,null,"Orédui Carros Compostage - ZI de la Grave","SUEZ","B0300472133"]
["2018-01-12","TOUT VENANT",1820,null,null,"Véolia Nice Tri - Parc d'activité logistique","SUEZ","B0300473590"]
["2018-01-12","TOUT VENANT",2020,null,null,"Véolia Nice Tri - Parc d'activité logistique","SUEZ","B0300476072"]
["2018-01-12","BOIS",1880,null,null,"SEAS La Glacière - 1019 Rte de la Grasse","SUEZ","B0300472024"]
["2018-01-12","TOUT VENANT",2280,null,null,"Véolia Nice Tri - Parc d'activité logistique","SUEZ","B0300476073"]
["2018-01-12","BOIS",2200,null,null,"SEAS La Glacière - 1019 Rte de la Grasse","SUEZ","B0300472394"]
["2018-01-12","METAUX",null,null,null,"Carros","DERICHEBOURG",2205]
["2018-01-12","TOUT VENANT",1300,null,null,"Véolia Nice Tri - Parc d'activité logistique","SUEZ","B0300476075"]
["2018-01-13","METAUX",null,null,null,"Carros","DERICHEBOURG",2209]
["2018-01-13","BOIS",3000,null,null,"SEAS La Glacière - 1019 Rte de la Grasse","SUEZ","B0300472031"]
["2018-01-13","BOIS",860,null,null,"SEAS La Glacière - 1019 Rte de la Grasse","SUEZ","B0300471901"]
["2018-01-13","DECHETS VERTS",2400,null,null,"Orédui Carros Compostage - ZI de la Grave","SUEZ","B0300472140"]
["2018-01-13","BOIS",1440,null,null,"SEAS La Glacière - 1019 Rte de la Grasse","SUEZ","B0300471863"]
["2018-01-13","TOUT VENANT",2580,null,null,"Véolia Nice Tri - Parc d'activité logistique","SUEZ","B0300472168"]
["2018-01-13","TOUT VENANT",3020,null,null,"Véolia Nice Tri - Parc d'activité logistique","SUEZ","B0300476188"]
["2018-01-13","TOUT VENANT",1840,null,null,"Véolia Nice Tri - Parc d'activité logistique","SUEZ","B0300476189"]
["2018-01-13","TOUT VENANT",1400,null,null,"Véolia Nice Tri - Parc d'activité logistique","SUEZ","B0300476190"]
["2018-01-13","BOIS",1520,null,null,"SEAS La Glacière - 1019 Rte de la Grasse","SUEZ","B0300472182"]
["2018-01-13","TOUT VENANT",2340,null,null,"Véolia Nice Tri - Parc d'activité logistique","SUEZ","B0300472189"]
["2018-01-13","TOUT VENANT",1780,null,null,"Véolia Nice Tri - Parc d'activité logistique","SUEZ","B0300472196"]
["2018-01-13","GRAVATS PROPRES",6820,null,null,"La Gaude K3 Sita Sud - 5211 Rte de St Jeannet","SUEZ","B0300472693"]
["2018-01-13","GRAVATS PROPRES",5700,null,null,"La Gaude K3 Sita Sud - 5211 Rte de St Jeannet","SUEZ","B0300472707"]
["2018-01-13","GRAVATS PROPRES",10340,null,null,"La Gaude K3 Sita Sud - 5211 Rte de St Jeannet","SUEZ","B0300472700"]
["2018-01-13","GRAVATS SALES",4140,null,null,"Véolia Nice Tri - 20 Ch du Saquier","SUEZ","B0300473758"]
["2018-01-12","TOUT VENANT","2400",null,"","Véolia Nice Tri - Parc d'activité logistique","SUEZ","0103306"]
["12/01/18","PEINTURES","",null,"3","Orédui - ZI Bois de Grasse - 06310 Grasse","OREDUI","131077-0000200"]
[null,null,null,null,null,false,false]
[null,null,null,null,null,false,false]
[null,null,null,null,null,false,false]
[null,null,null,null,null,false,false]
[null,null,null,null,null,false,false]
[null,null,null,null,null,false,false]
[null,null,null,null,null,false,false]
[null,null,null,null,null,false,false]
[null,null,null,null,null,false,false]
[null,null,null,null,null,false,false]
[null,null,null,null,null,false,false]
[null,null,null,null,null,false,false]
[null,null,null,null,null,false,false]
[null,null,null,null,null,false,false]
[null,null,null,null,null,false,false]
[null,null,null,null,null,false,false]
[null,null,null,null,null,{"$f":"IF(B131=\"TOUT VENANT\",\"Véolia Nice Tri - Parc d'activité logistique\",IF(B131=\"DECHETS VERTS\",\"Orédui Carros Compostage - ZI de la Grave\",IF(B131=\"GRAVATS PROPRES\",\"La Gaude K3 Sita Sud - 5211 Rte de St Jeannet\",IF(B131=\"GRAVATS SALES\",\"Véolia Nice Tri - 20 Ch du Saquier\",IF(B131=\"BOIS\",\"SEAS La Glacière - 1019 Rte de la Grasse\",IF(B131=\"METAUX\",\"Carros\",IF(B131=\"NEON\",\"Sofovar - 126 Av Louis Lépine - 83600 Fréjus\",IF(B131=\"PEINTURES\",\"Orédui - ZI Bois de Grasse - 06310 Grasse\",IF(B131=\"FROIDS\",\"SEAS - 1079 Rte de Grasse - 06270 Villeneuve Loubet\",IF(B131=\"HORS FROIDS\",\"SEAS - 1079 Rte de Grasse - 06270 Villeneuve Loubet\",IF(B131=\"PAM\",\"SEAS - 1079 Rte de Grasse - 06270 Villeneuve Loubet\",IF(B131=\"ECRANS\",\"SEAS - 1079 Rte de Grasse - 06270 Villeneuve Loubet\",IF(B131=\"HUILES DE VIDANGE\",\"SERAHU - 68 Ch de la Campanette - 06800 Cagnes sur Mer\")))))))))))))","v":false},{"$f":"IF(OR(B131=\"TOUT VENANT\",B131=\"DECHETS VERTS\",B131=\"GRAVATS SALES\",B131=\"GRAVATS PROPRES\",B131=\"BOIS\"),\"SUEZ\",IF(OR(B131=\"FROIDS\",B131=\"HORS FROIDS\",B131=\"PAM\",B131=\"ECRANS\"),\"SEAS\",IF(OR(B131=\"METAUX\"),\"DERICHEBOURG\",IF(OR(B131=\"NEON\"),\"SOFOVAR\",IF(OR(B131=\"PEINTURES\"),\"OREDUI\",IF(OR(B131=\"HUILES DE VIDANGE\"),\"SERAHU\"))))))","v":false}]
[null,null,null,null,null,false,false]
[null,null,null,null,null,false,false]
[null,null,null,null,null,false,false]
[null,null,null,null,null,false,false]
[null,null,null,null,null,false,false]
[null,null,null,null,null,false,false]
[null,null,null,null,null,false,false]
[null,null,null,null,null,false,false]
[null,null,null,null,null,false,false]
[null,null,null,null,null,false,false]
[null,null,null,null,null,false,false]
[null,null,null,null,null,false,false]
[null,null,null,null,null,false,false]
[null,null,null,null,null,false,false]
[null,null,null,null,null,false,false]
[null,null,null,null,null,false,false]
[null,null,null,null,null,false,false]
[null,null,null,null,null,false,false]
[null,null,null,null,null,false,false]
[null,null,null,null,null,false,false]
[null,null,null,null,null,false,false]
[null,null,null,null,null,false,false]
[null,null,null,null,null,false,false]
[null,null,null,null,null,false,false]
[null,null,null,null,null,false,false]
[null,null,null,null,null,false,false]
[null,null,null,null,null,false,false]
[null,null,null,null,null,false,false]
[null,null,null,null,null,false,false]
[null,null,null,null,null,false,false]
[null,null,null,null,null,false,false]
[null,null,null,null,null,false,false]
[null,null,null,null,null,false,false]
[null,null,null,null,null,false,false]
[null,null,null,null,null,false,false]
[null,null,null,null,null,false,false]
[null,null,null,null,null,false,false]
[null,null,null,null,null,false,false]
[null,null,null,null,null,false,false]
[null,null,null,null,null,false,false]
[null,null,null,null,null,false,false]
[null,null,null,null,null,false,false]
[null,null,null,null,null,false,false]
[null,null,null,null,null,false,false]
[null,null,null,null,null,false,false]
[null,null,null,null,null,false,false]
[null,null,null,null,null,false,false]
[null,null,null,null,null,false,false]
[null,null,null,null,null,false,false]
[null,null,null,null,null,false,false]
[null,null,null,null,null,false,false]
[null,null,null,null,null,false,false]
[null,null,null,null,null,false,false]
[null,null,null,null,null,false,false]
[null,null,null,null,null,false,false]
[null,null,null,null,null,false,false]
[null,null,null,null,null,false,false]
[null,null,null,null,null,false,false]
[null,null,null,null,null,false,false]
[null,null,null,null,null,false,false]
[null,null,null,null,null,false,false]
[null,null,null,null,null,false,false]
[null,null,null,null,null,false,false]
[null,null,null,null,null,{"$f":"IF(B195=\"TOUT VENANT\",\"Véolia Nice Tri - Parc d'activité logistique\",IF(B195=\"DECHETS VERTS\",\"Orédui Carros Compostage - ZI de la Grave\",IF(B195=\"GRAVATS PROPRES\",\"La Gaude K3 Sita Sud - 5211 Rte de St Jeannet\",IF(B195=\"GRAVATS SALES\",\"Véolia Nice Tri - 20 Ch du Saquier\",IF(B195=\"BOIS\",\"SEAS La Glacière - 1019 Rte de la Grasse\",IF(B195=\"METAUX\",\"Carros\",IF(B195=\"NEON\",\"Sofovar - 126 Av Louis Lépine - 83600 Fréjus\",IF(B195=\"PEINTURES\",\"Orédui - ZI Bois de Grasse - 06310 Grasse\",IF(B195=\"FROIDS\",\"SEAS - 1079 Rte de Grasse - 06270 Villeneuve Loubet\",IF(B195=\"HORS FROIDS\",\"SEAS - 1079 Rte de Grasse - 06270 Villeneuve Loubet\",IF(B195=\"PAM\",\"SEAS - 1079 Rte de Grasse - 06270 Villeneuve Loubet\",IF(B195=\"ECRANS\",\"SEAS - 1079 Rte de Grasse - 06270 Villeneuve Loubet\",IF(B195=\"HUILES DE VIDANGE\",\"SERAHU - 68 Ch de la Campanette - 06800 Cagnes sur Mer\")))))))))))))","v":false},{"$f":"IF(OR(B195=\"TOUT VENANT\",B195=\"DECHETS VERTS\",B195=\"GRAVATS SALES\",B195=\"GRAVATS PROPRES\",B195=\"BOIS\"),\"SUEZ\",IF(OR(B195=\"FROIDS\",B195=\"HORS FROIDS\",B195=\"PAM\",B195=\"ECRANS\"),\"SEAS\",IF(OR(B195=\"METAUX\"),\"DERICHEBOURG\",IF(OR(B195=\"NEON\"),\"SOFOVAR\",IF(OR(B195=\"PEINTURES\"),\"OREDUI\",IF(OR(B195=\"HUILES DE VIDANGE\"),\"SERAHU\"))))))","v":false}]
[null,null,null,null,null,false,false]
[null,null,null,null,null,false,false]
[null,null,null,null,null,false,false]
[null,null,null,null,null,false,false]
[null,null,null,null,null,false,false]
[null,null,null,null,null,false,false]
[null,null,null,null,null,false,false]
[null,null,null,null,null,false,false]
[null,null,null,null,null,false,false]
[null,null,null,null,null,false,false]
[null,null,null,null,null,false,false]
[null,null,null,null,null,false,false]
[null,null,null,null,null,false,false]
[null,null,null,null,null,false,false]
[null,null,null,null,null,false,false]
[null,null,null,null,null,false,false]
[null,null,null,null,null,false,false]
[null,null,null,null,null,false,false]
[null,null,null,null,null,false,false]
[null,null,null,null,null,false,false]
[null,null,null,null,null,false,false]
[null,null,null,null,null,false,false]
[null,null,null,null,null,false,false]
[null,null,null,null,null,false,false]
[null,null,null,null,null,false,false]
[null,null,null,null,null,false,false]
[null,null,null,null,null,false,false]
[null,null,null,null,null,false,false]
[null,null,null,null,null,false,false]
[null,null,null,null,null,false,false]
[null,null,null,null,null,false,false]
[null,null,null,null,null,false,false]
[null,null,null,null,null,false,false]
[null,null,null,null,null,false,false]
[null,null,null,null,null,false,false]
[null,null,null,null,null,false,false]
[null,null,null,null,null,false,false]
[null,null,null,null,null,false,false]
[null,null,null,null,null,false,false]
[null,null,null,null,null,false,false]
[null,null,null,null,null,false,false]
[null,null,null,null,null,false,false]
[null,null,null,null,null,false,false]
[null,null,null,null,null,false,false]
[null,null,null,null,null,false,false]
[null,null,null,null,null,false,false]
[null,null,null,null,null,false,false]
[null,null,null,null,null,false,false]
[null,null,null,null,null,false,false]
[null,null,null,null,null,false,false]
[null,null,null,null,null,false,false]
[null,null,null,null,null,false,false]
[null,null,null,null,null,false,false]
[null,null,null,null,null,false,false]
[null,null,null,null,null,false,false]
[null,null,null,null,null,false,false]
[null,null,null,null,null,false,false]
[null,null,null,null,null,false,false]
[null,null,null,null,null,false,false]
[null,null,null,null,null,false,false]
[null,null,null,null,null,false,false]
[null,null,null,null,null,false,false]
[null,null,null,null,null,false,false]
[null,null,null,null,null,{"$f":"IF(B259=\"TOUT VENANT\",\"Véolia Nice Tri - Parc d'activité logistique\",IF(B259=\"DECHETS VERTS\",\"Orédui Carros Compostage - ZI de la Grave\",IF(B259=\"GRAVATS PROPRES\",\"La Gaude K3 Sita Sud - 5211 Rte de St Jeannet\",IF(B259=\"GRAVATS SALES\",\"Véolia Nice Tri - 20 Ch du Saquier\",IF(B259=\"BOIS\",\"SEAS La Glacière - 1019 Rte de la Grasse\",IF(B259=\"METAUX\",\"Carros\",IF(B259=\"NEON\",\"Sofovar - 126 Av Louis Lépine - 83600 Fréjus\",IF(B259=\"PEINTURES\",\"Orédui - ZI Bois de Grasse - 06310 Grasse\",IF(B259=\"FROIDS\",\"SEAS - 1079 Rte de Grasse - 06270 Villeneuve Loubet\",IF(B259=\"HORS FROIDS\",\"SEAS - 1079 Rte de Grasse - 06270 Villeneuve Loubet\",IF(B259=\"PAM\",\"SEAS - 1079 Rte de Grasse - 06270 Villeneuve Loubet\",IF(B259=\"ECRANS\",\"SEAS - 1079 Rte de Grasse - 06270 Villeneuve Loubet\",IF(B259=\"HUILES DE VIDANGE\",\"SERAHU - 68 Ch de la Campanette - 06800 Cagnes sur Mer\")))))))))))))","v":false},{"$f":"IF(OR(B259=\"TOUT VENANT\",B259=\"DECHETS VERTS\",B259=\"GRAVATS SALES\",B259=\"GRAVATS PROPRES\",B259=\"BOIS\"),\"SUEZ\",IF(OR(B259=\"FROIDS\",B259=\"HORS FROIDS\",B259=\"PAM\",B259=\"ECRANS\"),\"SEAS\",IF(OR(B259=\"METAUX\"),\"DERICHEBOURG\",IF(OR(B259=\"NEON\"),\"SOFOVAR\",IF(OR(B259=\"PEINTURES\"),\"OREDUI\",IF(OR(B259=\"HUILES DE VIDANGE\"),\"SERAHU\"))))))","v":false}]
[null,null,null,null,null,false,false]
[null,null,null,null,null,false,false]
[null,null,null,null,null,false,false]
[null,null,null,null,null,false,false]
[null,null,null,null,null,false,false]
[null,null,null,null,null,false,false]
[null,null,null,null,null,false,false]
[null,null,null,null,null,false,false]
[null,null,null,null,null,false,false]
[null,null,null,null,null,false,false]
[null,null,null,null,null,false,false]
[null,null,null,null,null,false,false]
[null,null,null,null,null,false,false]
[null,null,null,null,null,false,false]
[null,null,null,null,null,false,false]
[null,null,null,null,null,false,false]
[null,null,null,null,null,false,false]
[null,null,null,null,null,false,false]
[null,null,null,null,null,false,false]
[null,null,null,null,null,false,false]
[null,null,null,null,null,false,false]
[null,null,null,null,null,false,false]
[null,null,null,null,null,false,false]
[null,null,null,null,null,false,false]
[null,null,null,null,null,false,false]
[null,null,null,null,null,false,false]
[null,null,null,null,null,false,false]
[null,null,null,null,null,false,false]
[null,null,null,null,null,false,false]
[null,null,null,null,null,false,false]
[null,null,null,null,null,false,false]
[null,null,null,null,null,false,false]
[null,null,null,null,null,false,false]
[null,null,null,null,null,false,false]
[null,null,null,null,null,false,false]
[null,null,null,null,null,false,false]
[null,null,null,null,null,false,false]
[null,null,null,null,null,false,false]
[null,null,null,null,null,false,false]
[null,null,null,null,null,false,false]
[null,null,null,null,null,false,false]
[null,null,null,null,null,false,false]
[null,null,null,null,null,false,false]
[null,null,null,null,null,false,false]
[null,null,null,null,null,false,false]
[null,null,null,null,null,false,false]
[null,null,null,null,null,false,false]
[null,null,null,null,null,false,false]
[null,null,null,null,null,false,false]
[null,null,null,null,null,false,false]
[null,null,null,null,null,false,false]
[null,null,null,null,null,false,false]
[null,null,null,null,null,false,false]
[null,null,null,null,null,false,false]
[null,null,null,null,null,false,false]
[null,null,null,null,null,false,false]
[null,null,null,null,null,false,false]
[null,null,null,null,null,false,false]
[null,null,null,null,null,false,false]
[null,null,null,null,null,false,false]
[null,null,null,null,null,false,false]
[null,null,null,null,null,false,false]
[null,null,null,null,null,false,false]
[null,null,null,null,null,{"$f":"IF(B323=\"TOUT VENANT\",\"Véolia Nice Tri - Parc d'activité logistique\",IF(B323=\"DECHETS VERTS\",\"Orédui Carros Compostage - ZI de la Grave\",IF(B323=\"GRAVATS PROPRES\",\"La Gaude K3 Sita Sud - 5211 Rte de St Jeannet\",IF(B323=\"GRAVATS SALES\",\"Véolia Nice Tri - 20 Ch du Saquier\",IF(B323=\"BOIS\",\"SEAS La Glacière - 1019 Rte de la Grasse\",IF(B323=\"METAUX\",\"Carros\",IF(B323=\"NEON\",\"Sofovar - 126 Av Louis Lépine - 83600 Fréjus\",IF(B323=\"PEINTURES\",\"Orédui - ZI Bois de Grasse - 06310 Grasse\",IF(B323=\"FROIDS\",\"SEAS - 1079 Rte de Grasse - 06270 Villeneuve Loubet\",IF(B323=\"HORS FROIDS\",\"SEAS - 1079 Rte de Grasse - 06270 Villeneuve Loubet\",IF(B323=\"PAM\",\"SEAS - 1079 Rte de Grasse - 06270 Villeneuve Loubet\",IF(B323=\"ECRANS\",\"SEAS - 1079 Rte de Grasse - 06270 Villeneuve Loubet\",IF(B323=\"HUILES DE VIDANGE\",\"SERAHU - 68 Ch de la Campanette - 06800 Cagnes sur Mer\")))))))))))))","v":false},{"$f":"IF(OR(B323=\"TOUT VENANT\",B323=\"DECHETS VERTS\",B323=\"GRAVATS SALES\",B323=\"GRAVATS PROPRES\",B323=\"BOIS\"),\"SUEZ\",IF(OR(B323=\"FROIDS\",B323=\"HORS FROIDS\",B323=\"PAM\",B323=\"ECRANS\"),\"SEAS\",IF(OR(B323=\"METAUX\"),\"DERICHEBOURG\",IF(OR(B323=\"NEON\"),\"SOFOVAR\",IF(OR(B323=\"PEINTURES\"),\"OREDUI\",IF(OR(B323=\"HUILES DE VIDANGE\"),\"SERAHU\"))))))","v":false}]
[null,null,null,null,null,false,false]
[null,null,null,null,null,false,false]
[null,null,null,null,null,false,false]
[null,null,null,null,null,false,false]
[null,null,null,null,null,false,false]
[null,null,null,null,null,false,false]
[null,null,null,null,null,false,false]
[null,null,null,null,null,false,false]
[null,null,null,null,null,false,false]
[null,null,null,null,null,false,false]
[null,null,null,null,null,false,false]
[null,null,null,null,null,false,false]
[null,null,null,null,null,false,false]
[null,null,null,null,null,false,false]
[null,null,null,null,null,false,false]
[null,null,null,null,null,false,false]
[null,null,null,null,null,false,false]
[null,null,null,null,null,false,false]
[null,null,null,null,null,false,false]
[null,null,null,null,null,false,false]
[null,null,null,null,null,false,false]
[null,null,null,null,null,false,false]
[null,null,null,null,null,false,false]
[null,null,null,null,null,false,false]
[null,null,null,null,null,false,false]
[null,null,null,null,null,false,false]
[null,null,null,null,null,false,false]
[null,null,null,null,null,false,false]
[null,null,null,null,null,false,false]
[null,null,null,null,null,false,false]
[null,null,null,null,null,false,false]
[null,null,null,null,null,false,false]
[null,null,null,null,null,false,false]
[null,null,null,null,null,false,false]
[null,null,null,null,null,false,false]
[null,null,null,null,null,false,false]
[null,null,null,null,null,false,false]
[null,null,null,null,null,false,false]
[null,null,null,null,null,false,false]
[null,null,null,null,null,false,false]
[null,null,null,null,null,false,false]
[null,null,null,null,null,false,false]
[null,null,null,null,null,false,false]
[null,null,null,null,null,false,false]
[null,null,null,null,null,false,false]
[null,null,null,null,null,false,false]
[null,null,null,null,null,false,false]
[null,null,null,null,null,false,false]
[null,null,null,null,null,false,false]
[null,null,null,null,null,false,false]
[null,null,null,null,null,false,false]
[null,null,null,null,null,false,false]
[null,null,null,null,null,false,false]
[null,null,null,null,null,false,false]
[null,null,null,null,null,false,false]
[null,null,null,null,null,false,false]
[null,null,null,null,null,false,false]
[null,null,null,null,null,false,false]
[null,null,null,null,null,false,false]
[null,null,null,null,null,false,false]
[null,null,null,null,null,false,false]
[null,null,null,null,null,false,false]
[null,null,null,null,null,false,false]
[null,null,null,null,null,{"$f":"IF(B387=\"TOUT VENANT\",\"Véolia Nice Tri - Parc d'activité logistique\",IF(B387=\"DECHETS VERTS\",\"Orédui Carros Compostage - ZI de la Grave\",IF(B387=\"GRAVATS PROPRES\",\"La Gaude K3 Sita Sud - 5211 Rte de St Jeannet\",IF(B387=\"GRAVATS SALES\",\"Véolia Nice Tri - 20 Ch du Saquier\",IF(B387=\"BOIS\",\"SEAS La Glacière - 1019 Rte de la Grasse\",IF(B387=\"METAUX\",\"Carros\",IF(B387=\"NEON\",\"Sofovar - 126 Av Louis Lépine - 83600 Fréjus\",IF(B387=\"PEINTURES\",\"Orédui - ZI Bois de Grasse - 06310 Grasse\",IF(B387=\"FROIDS\",\"SEAS - 1079 Rte de Grasse - 06270 Villeneuve Loubet\",IF(B387=\"HORS FROIDS\",\"SEAS - 1079 Rte de Grasse - 06270 Villeneuve Loubet\",IF(B387=\"PAM\",\"SEAS - 1079 Rte de Grasse - 06270 Villeneuve Loubet\",IF(B387=\"ECRANS\",\"SEAS - 1079 Rte de Grasse - 06270 Villeneuve Loubet\",IF(B387=\"HUILES DE VIDANGE\",\"SERAHU - 68 Ch de la Campanette - 06800 Cagnes sur Mer\")))))))))))))","v":false},{"$f":"IF(OR(B387=\"TOUT VENANT\",B387=\"DECHETS VERTS\",B387=\"GRAVATS SALES\",B387=\"GRAVATS PROPRES\",B387=\"BOIS\"),\"SUEZ\",IF(OR(B387=\"FROIDS\",B387=\"HORS FROIDS\",B387=\"PAM\",B387=\"ECRANS\"),\"SEAS\",IF(OR(B387=\"METAUX\"),\"DERICHEBOURG\",IF(OR(B387=\"NEON\"),\"SOFOVAR\",IF(OR(B387=\"PEINTURES\"),\"OREDUI\",IF(OR(B387=\"HUILES DE VIDANGE\"),\"SERAHU\"))))))","v":false}]
[null,null,null,null,null,false,false]
[null,null,null,null,null,false,false]
[null,null,null,null,null,false,false]
[null,null,null,null,null,false,false]
[null,null,null,null,null,false,false]
[null,null,null,null,null,false,false]
[null,null,null,null,null,false,false]
[null,null,null,null,null,false,false]
[null,null,null,null,null,false,false]
[null,null,null,null,null,false,false]
[null,null,null,null,null,false,false]
[null,null,null,null,null,false,false]
[null,null,null,null,null,false,false]
[null,null,null,null,null,false,false]
[null,null,null,null,null,false,false]
[null,null,null,null,null,false,false]
[null,null,null,null,null,false,false]
[null,null,null,null,null,false,false]
[null,null,null,null,null,false,false]
[null,null,null,null,null,false,false]
[null,null,null,null,null,false,false]
[null,null,null,null,null,false,false]
[null,null,null,null,null,false,false]
[null,null,null,null,null,false,false]
[null,null,null,null,null,false,false]
[null,null,null,null,null,false,false]
[null,null,null,null,null,false,false]
[null,null,null,null,null,false,false]
[null,null,null,null,null,false,false]
[null,null,null,null,null,false,false]
[null,null,null,null,null,false,false]
[null,null,null,null,null,false,false]
[null,null,null,null,null,false,false]
[null,null,null,null,null,false,false]
[null,null,null,null,null,false,false]
[null,null,null,null,null,false,false]
[null,null,null,null,null,false,false]
[null,null,null,null,null,false,false]
[null,null,null,null,null,false,false]
[null,null,null,null,null,false,false]
[null,null,null,null,null,false,false]
[null,null,null,null,null,false,false]
[null,null,null,null,null,false,false]
[null,null,null,null,null,false,false]
[null,null,null,null,null,false,false]
[null,null,null,null,null,false,false]
[null,null,null,null,null,false,false]
[null,null,null,null,null,false,false]
[null,null,null,null,null,false,false]
[null,null,null,null,null,false,false]
[null,null,null,null,null,false,false]
[null,null,null,null,null,false,false]
[null,null,null,null,null,false,false]
[null,null,null,null,null,false,false]
[null,null,null,null,null,false,false]
[null,null,null,null,null,false,false]
[null,null,null,null,null,false,false]
[null,null,null,null,null,false,false]
[null,null,null,null,null,false,false]
[null,null,null,null,null,false,false]
[null,null,null,null,null,false,false]
[null,null,null,null,null,false,false]
[null,null,null,null,null,false,false]
[null,null,null,null,null,{"$f":"IF(B451=\"TOUT VENANT\",\"Véolia Nice Tri - Parc d'activité logistique\",IF(B451=\"DECHETS VERTS\",\"Orédui Carros Compostage - ZI de la Grave\",IF(B451=\"GRAVATS PROPRES\",\"La Gaude K3 Sita Sud - 5211 Rte de St Jeannet\",IF(B451=\"GRAVATS SALES\",\"Véolia Nice Tri - 20 Ch du Saquier\",IF(B451=\"BOIS\",\"SEAS La Glacière - 1019 Rte de la Grasse\",IF(B451=\"METAUX\",\"Carros\",IF(B451=\"NEON\",\"Sofovar - 126 Av Louis Lépine - 83600 Fréjus\",IF(B451=\"PEINTURES\",\"Orédui - ZI Bois de Grasse - 06310 Grasse\",IF(B451=\"FROIDS\",\"SEAS - 1079 Rte de Grasse - 06270 Villeneuve Loubet\",IF(B451=\"HORS FROIDS\",\"SEAS - 1079 Rte de Grasse - 06270 Villeneuve Loubet\",IF(B451=\"PAM\",\"SEAS - 1079 Rte de Grasse - 06270 Villeneuve Loubet\",IF(B451=\"ECRANS\",\"SEAS - 1079 Rte de Grasse - 06270 Villeneuve Loubet\",IF(B451=\"HUILES DE VIDANGE\",\"SERAHU - 68 Ch de la Campanette - 06800 Cagnes sur Mer\")))))))))))))","v":false},{"$f":"IF(OR(B451=\"TOUT VENANT\",B451=\"DECHETS VERTS\",B451=\"GRAVATS SALES\",B451=\"GRAVATS PROPRES\",B451=\"BOIS\"),\"SUEZ\",IF(OR(B451=\"FROIDS\",B451=\"HORS FROIDS\",B451=\"PAM\",B451=\"ECRANS\"),\"SEAS\",IF(OR(B451=\"METAUX\"),\"DERICHEBOURG\",IF(OR(B451=\"NEON\"),\"SOFOVAR\",IF(OR(B451=\"PEINTURES\"),\"OREDUI\",IF(OR(B451=\"HUILES DE VIDANGE\"),\"SERAHU\"))))))","v":false}]
[null,null,null,null,null,false,false]
[null,null,null,null,null,false,false]
[null,null,null,null,null,false,false]
[null,null,null,null,null,false,false]
[null,null,null,null,null,false,false]
[null,null,null,null,null,false,false]
[null,null,null,null,null,false,false]
[null,null,null,null,null,false,false]
[null,null,null,null,null,false,false]
[null,null,null,null,null,false,false]
[null,null,null,null,null,false,false]
[null,null,null,null,null,false,false]
[null,null,null,null,null,false,false]
[null,null,null,null,null,false,false]
[null,null,null,null,null,false,false]
[null,null,null,null,null,false,false]
[null,null,null,null,null,false,false]
[null,null,null,null,null,false,false]
[null,null,null,null,null,false,false]
[null,null,null,null,null,false,false]
[null,null,null,null,null,false,false]
[null,null,null,null,null,false,false]
[null,null,null,null,null,false,false]
[null,null,null,null,null,false,false]
[null,null,null,null,null,false,false]
[null,null,null,null,null,false,false]
[null,null,null,null,null,false,false]
[null,null,null,null,null,false,false]
[null,null,null,null,null,false,false]
[null,null,null,null,null,false,false]
[null,null,null,null,null,false,false]
[null,null,null,null,null,false,false]
[null,null,null,null,null,false,false]
[null,null,null,null,null,false,false]
[null,null,null,null,null,false,false]
[null,null,null,null,null,false,false]
[null,null,null,null,null,false,false]
[null,null,null,null,null,false,false]
[null,null,null,null,null,false,false]
[null,null,null,null,null,false,false]
[null,null,null,null,null,false,false]
[null,null,null,null,null,false,false]
[null,null,null,null,null,false,false]
[null,null,null,null,null,false,false]
[null,null,null,null,null,false,false]
[null,null,null,null,null,false,false]
[null,null,null,null,null,false,false]
[null,null,null,null,null,false,false]
[null,null,null,null,null,false,false]
[null,null,null,null,null,false,false]
[null,null,null,null,null,false,false]
[null,null,null,null,null,false,false]
[null,null,null,null,null,false,false]
[null,null,null,null,null,false,false]
[null,null,null,null,null,false,false]
[null,null,null,null,null,false,false]
[null,null,null,null,null,false,false]
[null,null,null,null,null,false,false]
[null,null,null,null,null,false,false]
[null,null,null,null,null,false,false]
[null,null,null,null,null,false,false]
[null,null,null,null,null,false,false]
[null,null,null,null,null,false,false]
[null,null,null,null,null,{"$f":"IF(B515=\"TOUT VENANT\",\"Véolia Nice Tri - Parc d'activité logistique\",IF(B515=\"DECHETS VERTS\",\"Orédui Carros Compostage - ZI de la Grave\",IF(B515=\"GRAVATS PROPRES\",\"La Gaude K3 Sita Sud - 5211 Rte de St Jeannet\",IF(B515=\"GRAVATS SALES\",\"Véolia Nice Tri - 20 Ch du Saquier\",IF(B515=\"BOIS\",\"SEAS La Glacière - 1019 Rte de la Grasse\",IF(B515=\"METAUX\",\"Carros\",IF(B515=\"NEON\",\"Sofovar - 126 Av Louis Lépine - 83600 Fréjus\",IF(B515=\"PEINTURES\",\"Orédui - ZI Bois de Grasse - 06310 Grasse\",IF(B515=\"FROIDS\",\"SEAS - 1079 Rte de Grasse - 06270 Villeneuve Loubet\",IF(B515=\"HORS FROIDS\",\"SEAS - 1079 Rte de Grasse - 06270 Villeneuve Loubet\",IF(B515=\"PAM\",\"SEAS - 1079 Rte de Grasse - 06270 Villeneuve Loubet\",IF(B515=\"ECRANS\",\"SEAS - 1079 Rte de Grasse - 06270 Villeneuve Loubet\",IF(B515=\"HUILES DE VIDANGE\",\"SERAHU - 68 Ch de la Campanette - 06800 Cagnes sur Mer\")))))))))))))","v":false},{"$f":"IF(OR(B515=\"TOUT VENANT\",B515=\"DECHETS VERTS\",B515=\"GRAVATS SALES\",B515=\"GRAVATS PROPRES\",B515=\"BOIS\"),\"SUEZ\",IF(OR(B515=\"FROIDS\",B515=\"HORS FROIDS\",B515=\"PAM\",B515=\"ECRANS\"),\"SEAS\",IF(OR(B515=\"METAUX\"),\"DERICHEBOURG\",IF(OR(B515=\"NEON\"),\"SOFOVAR\",IF(OR(B515=\"PEINTURES\"),\"OREDUI\",IF(OR(B515=\"HUILES DE VIDANGE\"),\"SERAHU\"))))))","v":false}]
[null,null,null,null,null,false,false]
[null,null,null,null,null,false,false]
[null,null,null,null,null,false,false]
[null,null,null,null,null,false,false]
[null,null,null,null,null,false,false]
[null,null,null,null,null,false,false]
[null,null,null,null,null,false,false]
[null,null,null,null,null,false,false]
[null,null,null,null,null,false,false]
[null,null,null,null,null,false,false]
[null,null,null,null,null,false,false]
[null,null,null,null,null,false,false]
[null,null,null,null,null,false,false]
[null,null,null,null,null,false,false]
[null,null,null,null,null,false,false]
[null,null,null,null,null,false,false]
[null,null,null,null,null,false,false]
[null,null,null,null,null,false,false]
[null,null,null,null,null,false,false]
[null,null,null,null,null,false,false]
[null,null,null,null,null,false,false]
[null,null,null,null,null,false,false]
[null,null,null,null,null,false,false]
[null,null,null,null,null,false,false]
[null,null,null,null,null,false,false]
[null,null,null,null,null,false,false]
[null,null,null,null,null,false,false]
[null,null,null,null,null,false,false]
[null,null,null,null,null,false,false]
[null,null,null,null,null,false,false]
[null,null,null,null,null,false,false]
[null,null,null,null,null,false,false]
[null,null,null,null,null,false,false]
[null,null,null,null,null,false,false]
[null,null,null,null,null,false,false]
[null,null,null,null,null,false,false]
[null,null,null,null,null,false,false]
[null,null,null,null,null,false,false]
[null,null,null,null,null,false,false]
[null,null,null,null,null,false,false]
[null,null,null,null,null,false,false]
[null,null,null,null,null,false,false]
[null,null,null,null,null,false,false]
[null,null,null,null,null,false,false]
[null,null,null,null,null,false,false]
[null,null,null,null,null,false,false]
[null,null,null,null,null,false,false]
[null,null,null,null,null,false,false]
[null,null,null,null,null,false,false]
[null,null,null,null,null,false,false]
[null,null,null,null,null,false,false]
[null,null,null,null,null,false,false]
[null,null,null,null,null,false,false]
[null,null,null,null,null,false,false]
[null,null,null,null,null,false,false]
[null,null,null,null,null,false,false]
[null,null,null,null,null,false,false]
[null,null,null,null,null,false,false]
[null,null,null,null,null,false,false]
[null,null,null,null,null,false,false]
[null,null,null,null,null,false,false]
[null,null,null,null,null,false,false]
[null,null,null,null,null,false,false]
[null,null,null,null,null,{"$f":"IF(B579=\"TOUT VENANT\",\"Véolia Nice Tri - Parc d'activité logistique\",IF(B579=\"DECHETS VERTS\",\"Orédui Carros Compostage - ZI de la Grave\",IF(B579=\"GRAVATS PROPRES\",\"La Gaude K3 Sita Sud - 5211 Rte de St Jeannet\",IF(B579=\"GRAVATS SALES\",\"Véolia Nice Tri - 20 Ch du Saquier\",IF(B579=\"BOIS\",\"SEAS La Glacière - 1019 Rte de la Grasse\",IF(B579=\"METAUX\",\"Carros\",IF(B579=\"NEON\",\"Sofovar - 126 Av Louis Lépine - 83600 Fréjus\",IF(B579=\"PEINTURES\",\"Orédui - ZI Bois de Grasse - 06310 Grasse\",IF(B579=\"FROIDS\",\"SEAS - 1079 Rte de Grasse - 06270 Villeneuve Loubet\",IF(B579=\"HORS FROIDS\",\"SEAS - 1079 Rte de Grasse - 06270 Villeneuve Loubet\",IF(B579=\"PAM\",\"SEAS - 1079 Rte de Grasse - 06270 Villeneuve Loubet\",IF(B579=\"ECRANS\",\"SEAS - 1079 Rte de Grasse - 06270 Villeneuve Loubet\",IF(B579=\"HUILES DE VIDANGE\",\"SERAHU - 68 Ch de la Campanette - 06800 Cagnes sur Mer\")))))))))))))","v":false},{"$f":"IF(OR(B579=\"TOUT VENANT\",B579=\"DECHETS VERTS\",B579=\"GRAVATS SALES\",B579=\"GRAVATS PROPRES\",B579=\"BOIS\"),\"SUEZ\",IF(OR(B579=\"FROIDS\",B579=\"HORS FROIDS\",B579=\"PAM\",B579=\"ECRANS\"),\"SEAS\",IF(OR(B579=\"METAUX\"),\"DERICHEBOURG\",IF(OR(B579=\"NEON\"),\"SOFOVAR\",IF(OR(B579=\"PEINTURES\"),\"OREDUI\",IF(OR(B579=\"HUILES DE VIDANGE\"),\"SERAHU\"))))))","v":false}]
[null,null,null,null,null,false,false]
[null,null,null,null,null,false,false]
[null,null,null,null,null,false,false]
[null,null,null,null,null,false,false]
[null,null,null,null,null,false,false]
[null,null,null,null,null,false,false]
[null,null,null,null,null,false,false]
[null,null,null,null,null,false,false]
[null,null,null,null,null,false,false]
[null,null,null,null,null,false,false]
[null,null,null,null,null,false,false]
[null,null,null,null,null,false,false]
[null,null,null,null,null,false,false]
[null,null,null,null,null,false,false]
[null,null,null,null,null,false,false]
[null,null,null,null,null,false,false]
[null,null,null,null,null,false,false]
[null,null,null,null,null,false,false]
[null,null,null,null,null,false,false]
[null,null,null,null,null,false,false]
[null,null,null,null,null,false,false]
[null,null,null,null,null,false,false]
[null,null,null,null,null,false,false]
[null,null,null,null,null,false,false]
[null,null,null,null,null,false,false]
[null,null,null,null,null,false,false]
[null,null,null,null,null,false,false]
[null,null,null,null,null,false,false]
[null,null,null,null,null,false,false]
[null,null,null,null,null,false,false]
[null,null,null,null,null,false,false]
[null,null,null,null,null,false,false]
[null,null,null,null,null,false,false]
[null,null,null,null,null,false,false]
[null,null,null,null,null,false,false]
[null,null,null,null,null,false,false]
[null,null,null,null,null,false,false]
[null,null,null,null,null,false,false]
[null,null,null,null,null,false,false]
[null,null,null,null,null,false,false]
[null,null,null,null,null,false,false]
[null,null,null,null,null,false,false]
[null,null,null,null,null,false,false]
[null,null,null,null,null,false,false]
[null,null,null,null,null,false,false]
[null,null,null,null,null,false,false]
[null,null,null,null,null,false,false]
[null,null,null,null,null,false,false]
[null,null,null,null,null,false,false]
[null,null,null,null,null,false,false]
[null,null,null,null,null,false,false]
[null,null,null,null,null,false,false]
[null,null,null,null,null,false,false]
[null,null,null,null,null,false,false]
[null,null,null,null,null,false,false]
[null,null,null,null,null,false,false]
[null,null,null,null,null,false,false]
[null,null,null,null,null,false,false]
[null,null,null,null,null,false,false]
[null,null,null,null,null,false,false]
[null,null,null,null,null,false,false]
[null,null,null,null,null,false,false]
[null,null,null,null,null,false,false]
[null,null,null,null,null,{"$f":"IF(B643=\"TOUT VENANT\",\"Véolia Nice Tri - Parc d'activité logistique\",IF(B643=\"DECHETS VERTS\",\"Orédui Carros Compostage - ZI de la Grave\",IF(B643=\"GRAVATS PROPRES\",\"La Gaude K3 Sita Sud - 5211 Rte de St Jeannet\",IF(B643=\"GRAVATS SALES\",\"Véolia Nice Tri - 20 Ch du Saquier\",IF(B643=\"BOIS\",\"SEAS La Glacière - 1019 Rte de la Grasse\",IF(B643=\"METAUX\",\"Carros\",IF(B643=\"NEON\",\"Sofovar - 126 Av Louis Lépine - 83600 Fréjus\",IF(B643=\"PEINTURES\",\"Orédui - ZI Bois de Grasse - 06310 Grasse\",IF(B643=\"FROIDS\",\"SEAS - 1079 Rte de Grasse - 06270 Villeneuve Loubet\",IF(B643=\"HORS FROIDS\",\"SEAS - 1079 Rte de Grasse - 06270 Villeneuve Loubet\",IF(B643=\"PAM\",\"SEAS - 1079 Rte de Grasse - 06270 Villeneuve Loubet\",IF(B643=\"ECRANS\",\"SEAS - 1079 Rte de Grasse - 06270 Villeneuve Loubet\",IF(B643=\"HUILES DE VIDANGE\",\"SERAHU - 68 Ch de la Campanette - 06800 Cagnes sur Mer\")))))))))))))","v":false},{"$f":"IF(OR(B643=\"TOUT VENANT\",B643=\"DECHETS VERTS\",B643=\"GRAVATS SALES\",B643=\"GRAVATS PROPRES\",B643=\"BOIS\"),\"SUEZ\",IF(OR(B643=\"FROIDS\",B643=\"HORS FROIDS\",B643=\"PAM\",B643=\"ECRANS\"),\"SEAS\",IF(OR(B643=\"METAUX\"),\"DERICHEBOURG\",IF(OR(B643=\"NEON\"),\"SOFOVAR\",IF(OR(B643=\"PEINTURES\"),\"OREDUI\",IF(OR(B643=\"HUILES DE VIDANGE\"),\"SERAHU\"))))))","v":false}]
[null,null,null,null,null,false,false]
[null,null,null,null,null,false,false]
[null,null,null,null,null,false,false]
[null,null,null,null,null,false,false]
[null,null,null,null,null,false,false]
[null,null,null,null,null,false,false]
[null,null,null,null,null,false,false]
[null,null,null,null,null,false,false]
[null,null,null,null,null,false,false]
[null,null,null,null,null,false,false]
[null,null,null,null,null,false,false]
[null,null,null,null,null,false,false]
[null,null,null,null,null,false,false]
[null,null,null,null,null,false,false]
[null,null,null,null,null,false,false]
[null,null,null,null,null,false,false]
[null,null,null,null,null,false,false]
[null,null,null,null,null,false,false]
[null,null,null,null,null,false,false]
[null,null,null,null,null,false,false]
[null,null,null,null,null,false,false]
[null,null,null,null,null,false,false]
[null,null,null,null,null,false,false]
[null,null,null,null,null,false,false]
[null,null,null,null,null,false,false]
[null,null,null,null,null,false,false]
[null,null,null,null,null,false,false]
[null,null,null,null,null,false,false]
[null,null,null,null,null,false,false]
[null,null,null,null,null,false,false]
[null,null,null,null,null,false,false]
[null,null,null,null,null,false,false]
[null,null,null,null,null,false,false]
[null,null,null,null,null,false,false]
[null,null,null,null,null,false,false]
[null,null,null,null,null,false,false]
[null,null,null,null,null,false,false]
[null,null,null,null,null,false,false]
[null,null,null,null,null,false,false]
[null,null,null,null,null,false,false]
[null,null,null,null,null,false,false]
[null,null,null,null,null,false,false]
[null,null,null,null,null,false,false]
[null,null,null,null,null,false,false]
[null,null,null,null,null,false,false]
[null,null,null,null,null,false,false]
[null,null,null,null,null,false,false]
[null,null,null,null,null,false,false]
[null,null,null,null,null,false,false]
[null,null,null,null,null,false,false]
[null,null,null,null,null,false,false]
[null,null,null,null,null,false,false]
[null,null,null,null,null,false,false]
[null,null,null,null,null,false,false]
[null,null,null,null,null,false,false]
[null,null,null,null,null,false,false]
[null,null,null,null,null,false,false]
[null,null,null,null,null,false,false]
[null,null,null,null,null,false,false]
[null,null,null,null,null,false,false]
[null,null,null,null,null,false,false]
[null,null,null,null,null,false,false]
[null,null,null,null,null,false,false]
[null,null,null,null,null,{"$f":"IF(B707=\"TOUT VENANT\",\"Véolia Nice Tri - Parc d'activité logistique\",IF(B707=\"DECHETS VERTS\",\"Orédui Carros Compostage - ZI de la Grave\",IF(B707=\"GRAVATS PROPRES\",\"La Gaude K3 Sita Sud - 5211 Rte de St Jeannet\",IF(B707=\"GRAVATS SALES\",\"Véolia Nice Tri - 20 Ch du Saquier\",IF(B707=\"BOIS\",\"SEAS La Glacière - 1019 Rte de la Grasse\",IF(B707=\"METAUX\",\"Carros\",IF(B707=\"NEON\",\"Sofovar - 126 Av Louis Lépine - 83600 Fréjus\",IF(B707=\"PEINTURES\",\"Orédui - ZI Bois de Grasse - 06310 Grasse\",IF(B707=\"FROIDS\",\"SEAS - 1079 Rte de Grasse - 06270 Villeneuve Loubet\",IF(B707=\"HORS FROIDS\",\"SEAS - 1079 Rte de Grasse - 06270 Villeneuve Loubet\",IF(B707=\"PAM\",\"SEAS - 1079 Rte de Grasse - 06270 Villeneuve Loubet\",IF(B707=\"ECRANS\",\"SEAS - 1079 Rte de Grasse - 06270 Villeneuve Loubet\",IF(B707=\"HUILES DE VIDANGE\",\"SERAHU - 68 Ch de la Campanette - 06800 Cagnes sur Mer\")))))))))))))","v":false},{"$f":"IF(OR(B707=\"TOUT VENANT\",B707=\"DECHETS VERTS\",B707=\"GRAVATS SALES\",B707=\"GRAVATS PROPRES\",B707=\"BOIS\"),\"SUEZ\",IF(OR(B707=\"FROIDS\",B707=\"HORS FROIDS\",B707=\"PAM\",B707=\"ECRANS\"),\"SEAS\",IF(OR(B707=\"METAUX\"),\"DERICHEBOURG\",IF(OR(B707=\"NEON\"),\"SOFOVAR\",IF(OR(B707=\"PEINTURES\"),\"OREDUI\",IF(OR(B707=\"HUILES DE VIDANGE\"),\"SERAHU\"))))))","v":false}]
[null,null,null,null,null,false,false]
[null,null,null,null,null,false,false]
[null,null,null,null,null,false,false]
[null,null,null,null,null,false,false]
[null,null,null,null,null,false,false]
[null,null,null,null,null,false,false]
[null,null,null,null,null,false,false]
[null,null,null,null,null,false,false]
[null,null,null,null,null,false,false]
[null,null,null,null,null,false,false]
[null,null,null,null,null,false,false]
[null,null,null,null,null,false,false]
[null,null,null,null,null,false,false]
[null,null,null,null,null,false,false]
[null,null,null,null,null,false,false]
[null,null,null,null,null,false,false]
[null,null,null,null,null,false,false]
[null,null,null,null,null,false,false]
[null,null,null,null,null,false,false]
[null,null,null,null,null,false,false]
[null,null,null,null,null,false,false]
[null,null,null,null,null,false,false]
[null,null,null,null,null,false,false]
[null,null,null,null,null,false,false]
[null,null,null,null,null,false,false]
[null,null,null,null,null,false,false]
[null,null,null,null,null,false,false]
[null,null,null,null,null,false,false]
[null,null,null,null,null,false,false]
[null,null,null,null,null,false,false]
[null,null,null,null,null,false,false]
[null,null,null,null,null,false,false]
[null,null,null,null,null,false,false]
[null,null,null,null,null,false,false]
[null,null,null,null,null,false,false]
[null,null,null,null,null,false,false]
[null,null,null,null,null,false,false]
[null,null,null,null,null,false,false]
[null,null,null,null,null,false,false]
[null,null,null,null,null,false,false]
[null,null,null,null,null,false,false]
[null,null,null,null,null,false,false]
[null,null,null,null,null,false,false]
[null,null,null,null,null,false,false]
[null,null,null,null,null,false,false]
[null,null,null,null,null,false,false]
[null,null,null,null,null,false,false]
[null,null,null,null,null,false,false]
[null,null,null,null,null,false,false]
[null,null,null,null,null,false,false]
[null,null,null,null,null,false,false]
[null,null,null,null,null,false,false]
[null,null,null,null,null,false,false]
[null,null,null,null,null,false,false]
[null,null,null,null,null,false,false]
[null,null,null,null,null,false,false]
[null,null,null,null,null,false,false]
[null,null,null,null,null,false,false]
[null,null,null,null,null,false,false]
[null,null,null,null,null,false,false]
[null,null,null,null,null,false,false]
[null,null,null,null,null,false,false]
[null,null,null,null,null,false,false]
[null,null,null,null,null,{"$f":"IF(B771=\"TOUT VENANT\",\"Véolia Nice Tri - Parc d'activité logistique\",IF(B771=\"DECHETS VERTS\",\"Orédui Carros Compostage - ZI de la Grave\",IF(B771=\"GRAVATS PROPRES\",\"La Gaude K3 Sita Sud - 5211 Rte de St Jeannet\",IF(B771=\"GRAVATS SALES\",\"Véolia Nice Tri - 20 Ch du Saquier\",IF(B771=\"BOIS\",\"SEAS La Glacière - 1019 Rte de la Grasse\",IF(B771=\"METAUX\",\"Carros\",IF(B771=\"NEON\",\"Sofovar - 126 Av Louis Lépine - 83600 Fréjus\",IF(B771=\"PEINTURES\",\"Orédui - ZI Bois de Grasse - 06310 Grasse\",IF(B771=\"FROIDS\",\"SEAS - 1079 Rte de Grasse - 06270 Villeneuve Loubet\",IF(B771=\"HORS FROIDS\",\"SEAS - 1079 Rte de Grasse - 06270 Villeneuve Loubet\",IF(B771=\"PAM\",\"SEAS - 1079 Rte de Grasse - 06270 Villeneuve Loubet\",IF(B771=\"ECRANS\",\"SEAS - 1079 Rte de Grasse - 06270 Villeneuve Loubet\",IF(B771=\"HUILES DE VIDANGE\",\"SERAHU - 68 Ch de la Campanette - 06800 Cagnes sur Mer\")))))))))))))","v":false},{"$f":"IF(OR(B771=\"TOUT VENANT\",B771=\"DECHETS VERTS\",B771=\"GRAVATS SALES\",B771=\"GRAVATS PROPRES\",B771=\"BOIS\"),\"SUEZ\",IF(OR(B771=\"FROIDS\",B771=\"HORS FROIDS\",B771=\"PAM\",B771=\"ECRANS\"),\"SEAS\",IF(OR(B771=\"METAUX\"),\"DERICHEBOURG\",IF(OR(B771=\"NEON\"),\"SOFOVAR\",IF(OR(B771=\"PEINTURES\"),\"OREDUI\",IF(OR(B771=\"HUILES DE VIDANGE\"),\"SERAHU\"))))))","v":false}]
[null,null,null,null,null,false,false]
[null,null,null,null,null,false,false]

{"sheet":"Registre_3","index":3,"n_rows":775,"n_cols":8,"rows_kept":775,"cut":false,"hidden":false,"merged":[[4,2,4,3],[5,2,5,3],[6,2,6,3],[7,2,7,3],[8,2,8,3],[9,2,9,3],[0,2,0,3],[1,2,1,3],[2,2,2,3],[3,2,3,3],[16,2,16,3],[17,2,17,3],[18,2,18,3],[19,2,19,3],[20,2,20,3],[21,2,21,3],[10,2,10,3],[11,2,11,3],[12,2,12,3],[13,2,13,3],[14,2,14,3],[15,2,15,3],[28,2,28,3],[29,2,29,3],[30,2,30,3],[31,2,31,3],[32,2,32,3],[33,2,33,3],[22,2,22,3],[23,2,23,3],[24,2,24,3],[25,2,25,3],[26,2,26,3],[27,2,27,3],[40,2,40,3],[41,2,41,3],[42,2,42,3],[43,2,43,3],[44,2,44,3],[45,2,45,3],[34,2,34,3],[35,2,35,3],[36,2,36,3],[37,2,37,3],[38,2,38,3],[39,2,39,3],[52,2,52,3],[53,2,53,3],[54,2,54,3],[55,2,55,3],[56,2,56,3],[57,2,57,3],[46,2,46,3],[47,2,47,3],[48,2,48,3],[49,2,49,3],[50,2,50,3],[51,2,51,3],[64,2,64,3],[65,2,65,3],[66,2,66,3],[67,2,67,3],[68,2,68,3],[69,2,69,3],[58,2,58,3],[59,2,59,3],[60,2,60,3],[61,2,61,3],[62,2,62,3],[63,2,63,3],[76,2,76,3],[77,2,77,3],[78,2,78,3],[79,2,79,3],[80,2,80,3],[81,2,81,3],[70,2,70,3],[71,2,71,3],[72,2,72,3],[73,2,73,3],[74,2,74,3],[75,2,75,3],[88,2,88,3],[89,2,89,3],[90,2,90,3],[91,2,91,3],[92,2,92,3],[93,2,93,3],[82,2,82,3],[83,2,83,3],[84,2,84,3],[85,2,85,3],[86,2,86,3],[87,2,87,3],[100,2,100,3],[101,2,101,3],[102,2,102,3],[103,2,103,3],[104,2,104,3],[105,2,105,3],[94,2,94,3],[95,2,95,3],[96,2,96,3],[97,2,97,3],[98,2,98,3],[99,2,99,3],[112,2,112,3],[113,2,113,3],[114,2,114,3],[115,2,115,3],[116,2,116,3],[117,2,117,3],[106,2,106,3],[107,2,107,3],[108,2,108,3],[109,2,109,3],[110,2,110,3],[111,2,111,3],[124,2,124,3],[125,2,125,3],[126,2,126,3],[127,2,127,3],[128,2,128,3],[129,2,129,3],[118,2,118,3],[119,2,119,3],[120,2,120,3],[121,2,121,3],[122,2,122,3],[123,2,123,3],[136,2,136,3],[137,2,137,3],[138,2,138,3],[139,2,139,3],[140,2,140,3],[141,2,141,3],[130,2,130,3],[131,2,131,3],[132,2,132,3],[133,2,133,3],[134,2,134,3],[135,2,135,3],[148,2,148,3],[149,2,149,3],[150,2,150,3],[151,2,151,3],[152,2,152,3],[153,2,153,3],[142,2,142,3],[143,2,143,3],[144,2,144,3],[145,2,145,3],[146,2,146,3],[147,2,147,3],[160,2,160,3],[161,2,161,3],[162,2,162,3],[163,2,163,3],[164,2,164,3],[165,2,165,3],[154,2,154,3],[155,2,155,3],[156,2,156,3],[157,2,157,3],[158,2,158,3],[159,2,159,3],[172,2,172,3],[173,2,173,3],[174,2,174,3],[175,2,175,3],[176,2,176,3],[177,2,177,3],[166,2,166,3],[167,2,167,3],[168,2,168,3],[169,2,169,3],[170,2,170,3],[171,2,171,3],[184,2,184,3],[185,2,185,3],[186,2,186,3],[187,2,187,3],[188,2,188,3],[189,2,189,3],[178,2,178,3],[179,2,179,3],[180,2,180,3],[181,2,181,3],[182,2,182,3],[183,2,183,3],[196,2,196,3],[197,2,197,3],[198,2,198,3],[199,2,199,3],[200,2,200,3],[201,2,201,3],[190,2,190,3],[191,2,191,3],[192,2,192,3],[193,2,193,3],[194,2,194,3],[195,2,195,3],[208,2,208,3],[209,2,209,3],[210,2,210,3],[211,2,211,3],[212,2,212,3],[213,2,213,3],[202,2,202,3],[203,2,203,3],[204,2,204,3],[205,2,205,3],[206,2,206,3],[207,2,207,3],[220,2,220,3],[221,2,221,3],[222,2,222,3],[223,2,223,3],[224,2,224,3],[225,2,225,3],[214,2,214,3],[215,2,215,3],[216,2,216,3],[217,2,217,3],[218,2,218,3],[219,2,219,3],[232,2,232,3],[233,2,233,3],[234,2,234,3],[235,2,235,3],[236,2,236,3],[237,2,237,3],[226,2,226,3],[227,2,227,3],[228,2,228,3],[229,2,229,3],[230,2,230,3],[231,2,231,3],[244,2,244,3],[245,2,245,3],[246,2,246,3],[247,2,247,3],[248,2,248,3],[249,2,249,3],[238,2,238,3],[239,2,239,3],[240,2,240,3],[241,2,241,3],[242,2,242,3],[243,2,243,3],[256,2,256,3],[257,2,257,3],[258,2,258,3],[259,2,259,3],[260,2,260,3],[261,2,261,3],[250,2,250,3],[251,2,251,3],[252,2,252,3],[253,2,253,3],[254,2,254,3],[255,2,255,3],[268,2,268,3],[269,2,269,3],[270,2,270,3],[271,2,271,3],[272,2,272,3],[273,2,273,3],[262,2,262,3],[263,2,263,3],[264,2,264,3],[265,2,265,3],[266,2,266,3],[267,2,267,3],[280,2,280,3],[281,2,281,3],[282,2,282,3],[283,2,283,3],[284,2,284,3],[285,2,285,3],[274,2,274,3],[275,2,275,3],[276,2,276,3],[277,2,277,3],[278,2,278,3],[279,2,279,3],[292,2,292,3],[293,2,293,3],[294,2,294,3],[295,2,295,3],[296,2,296,3],[297,2,297,3],[286,2,286,3],[287,2,287,3],[288,2,288,3],[289,2,289,3],[290,2,290,3],[291,2,291,3],[304,2,304,3],[305,2,305,3],[306,2,306,3],[307,2,307,3],[308,2,308,3],[309,2,309,3],[298,2,298,3],[299,2,299,3],[300,2,300,3],[301,2,301,3],[302,2,302,3],[303,2,303,3],[316,2,316,3],[317,2,317,3],[318,2,318,3],[319,2,319,3],[320,2,320,3],[321,2,321,3],[310,2,310,3],[311,2,311,3],[312,2,312,3],[313,2,313,3],[314,2,314,3],[315,2,315,3],[328,2,328,3],[329,2,329,3],[330,2,330,3],[331,2,331,3],[332,2,332,3],[333,2,333,3],[322,2,322,3],[323,2,323,3],[324,2,324,3],[325,2,325,3],[326,2,326,3],[327,2,327,3],[340,2,340,3],[341,2,341,3],[342,2,342,3],[343,2,343,3],[344,2,344,3],[345,2,345,3],[334,2,334,3],[335,2,335,3],[336,2,336,3],[337,2,337,3],[338,2,338,3],[339,2,339,3],[352,2,352,3],[353,2,353,3],[354,2,354,3],[355,2,355,3],[356,2,356,3],[357,2,357,3],[346,2,346,3],[347,2,347,3],[348,2,348,3],[349,2,349,3],[350,2,350,3],[351,2,351,3],[364,2,364,3],[365,2,365,3],[366,2,366,3],[367,2,367,3],[368,2,368,3],[369,2,369,3],[358,2,358,3],[359,2,359,3],[360,2,360,3],[361,2,361,3],[362,2,362,3],[363,2,363,3],[376,2,376,3],[377,2,377,3],[378,2,378,3],[379,2,379,3],[380,2,380,3],[381,2,381,3],[370,2,370,3],[371,2,371,3],[372,2,372,3],[373,2,373,3],[374,2,374,3],[375,2,375,3],[388,2,388,3],[389,2,389,3],[390,2,390,3],[391,2,391,3],[392,2,392,3],[393,2,393,3],[382,2,382,3],[383,2,383,3],[384,2,384,3],[385,2,385,3],[386,2,386,3],[387,2,387,3],[400,2,400,3],[401,2,401,3],[402,2,402,3],[403,2,403,3],[404,2,404,3],[405,2,405,3],[394,2,394,3],[395,2,395,3],[396,2,396,3],[397,2,397,3],[398,2,398,3],[399,2,399,3],[412,2,412,3],[413,2,413,3],[414,2,414,3],[415,2,415,3],[416,2,416,3],[417,2,417,3],[406,2,406,3],[407,2,407,3],[408,2,408,3],[409,2,409,3],[410,2,410,3],[411,2,411,3],[424,2,424,3],[425,2,425,3],[426,2,426,3],[427,2,427,3],[428,2,428,3],[429,2,429,3],[418,2,418,3],[419,2,419,3],[420,2,420,3],[421,2,421,3],[422,2,422,3],[423,2,423,3],[436,2,436,3],[437,2,437,3],[438,2,438,3],[439,2,439,3],[440,2,440,3],[441,2,441,3],[430,2,430,3],[431,2,431,3],[432,2,432,3],[433,2,433,3],[434,2,434,3],[435,2,435,3],[448,2,448,3],[449,2,449,3],[450,2,450,3],[451,2,451,3],[452,2,452,3],[453,2,453,3],[442,2,442,3],[443,2,443,3],[444,2,444,3],[445,2,445,3],[446,2,446,3],[447,2,447,3],[460,2,460,3],[461,2,461,3],[462,2,462,3],[463,2,463,3],[464,2,464,3],[465,2,465,3],[454,2,454,3],[455,2,455,3],[456,2,456,3],[457,2,457,3],[458,2,458,3],[459,2,459,3],[472,2,472,3],[473,2,473,3],[474,2,474,3],[475,2,475,3],[476,2,476,3],[477,2,477,3],[466,2,466,3],[467,2,467,3],[468,2,468,3],[469,2,469,3],[470,2,470,3],[471,2,471,3],[484,2,484,3],[485,2,485,3],[486,2,486,3],[487,2,487,3],[488,2,488,3],[489,2,489,3],[478,2,478,3],[479,2,479,3],[480,2,480,3],[481,2,481,3],[482,2,482,3],[483,2,483,3],[496,2,496,3],[497,2,497,3],[498,2,498,3],[499,2,499,3],[500,2,500,3],[501,2,501,3],[490,2,490,3],[491,2,491,3],[492,2,492,3],[493,2,493,3],[494,2,494,3],[495,2,495,3],[508,2,508,3],[509,2,509,3],[510,2,510,3],[511,2,511,3],[512,2,512,3],[513,2,513,3],[502,2,502,3],[503,2,503,3],[504,2,504,3],[505,2,505,3],[506,2,506,3],[507,2,507,3],[520,2,520,3],[521,2,521,3],[522,2,522,3],[523,2,523,3],[524,2,524,3],[525,2,525,3],[514,2,514,3],[515,2,515,3],[516,2,516,3],[517,2,517,3],[518,2,518,3],[519,2,519,3],[532,2,532,3],[533,2,533,3],[534,2,534,3],[535,2,535,3],[536,2,536,3],[537,2,537,3],[526,2,526,3],[527,2,527,3],[528,2,528,3],[529,2,529,3],[530,2,530,3],[531,2,531,3],[544,2,544,3],[545,2,545,3],[546,2,546,3],[547,2,547,3],[548,2,548,3],[549,2,549,3],[538,2,538,3],[539,2,539,3],[540,2,540,3],[541,2,541,3],[542,2,542,3],[543,2,543,3],[556,2,556,3],[557,2,557,3],[558,2,558,3],[559,2,559,3],[560,2,560,3],[561,2,561,3],[550,2,550,3],[551,2,551,3],[552,2,552,3],[553,2,553,3],[554,2,554,3],[555,2,555,3],[568,2,568,3],[569,2,569,3],[570,2,570,3],[571,2,571,3],[572,2,572,3],[573,2,573,3],[562,2,562,3],[563,2,563,3],[564,2,564,3],[565,2,565,3],[566,2,566,3],[567,2,567,3],[580,2,580,3],[581,2,581,3],[582,2,582,3],[583,2,583,3],[584,2,584,3],[585,2,585,3],[574,2,574,3],[575,2,575,3],[576,2,576,3],[577,2,577,3],[578,2,578,3],[579,2,579,3],[592,2,592,3],[593,2,593,3],[594,2,594,3],[595,2,595,3],[596,2,596,3],[597,2,597,3],[586,2,586,3],[587,2,587,3],[588,2,588,3],[589,2,589,3],[590,2,590,3],[591,2,591,3],[604,2,604,3],[605,2,605,3],[606,2,606,3],[607,2,607,3],[608,2,608,3],[609,2,609,3],[598,2,598,3],[599,2,599,3],[600,2,600,3],[601,2,601,3],[602,2,602,3],[603,2,603,3],[616,2,616,3],[617,2,617,3],[618,2,618,3],[619,2,619,3],[620,2,620,3],[621,2,621,3],[610,2,610,3],[611,2,611,3],[612,2,612,3],[613,2,613,3],[614,2,614,3],[615,2,615,3],[628,2,628,3],[629,2,629,3],[630,2,630,3],[631,2,631,3],[632,2,632,3],[633,2,633,3],[622,2,622,3],[623,2,623,3],[624,2,624,3],[625,2,625,3],[626,2,626,3],[627,2,627,3],[640,2,640,3],[641,2,641,3],[642,2,642,3],[643,2,643,3],[644,2,644,3],[645,2,645,3],[634,2,634,3],[635,2,635,3],[636,2,636,3],[637,2,637,3],[638,2,638,3],[639,2,639,3],[652,2,652,3],[653,2,653,3],[654,2,654,3],[655,2,655,3],[656,2,656,3],[657,2,657,3],[646,2,646,3],[647,2,647,3],[648,2,648,3],[649,2,649,3],[650,2,650,3],[651,2,651,3],[664,2,664,3],[665,2,665,3],[666,2,666,3],[667,2,667,3],[668,2,668,3],[669,2,669,3],[658,2,658,3],[659,2,659,3],[660,2,660,3],[661,2,661,3],[662,2,662,3],[663,2,663,3],[676,2,676,3],[677,2,677,3],[678,2,678,3],[679,2,679,3],[680,2,680,3],[681,2,681,3],[670,2,670,3],[671,2,671,3],[672,2,672,3],[673,2,673,3],[674,2,674,3],[675,2,675,3],[688,2,688,3],[689,2,689,3],[690,2,690,3],[691,2,691,3],[692,2,692,3],[693,2,693,3],[682,2,682,3],[683,2,683,3],[684,2,684,3],[685,2,685,3],[686,2,686,3],[687,2,687,3],[700,2,700,3],[701,2,701,3],[702,2,702,3],[703,2,703,3],[704,2,704,3],[705,2,705,3],[694,2,694,3],[695,2,695,3],[696,2,696,3],[697,2,697,3],[698,2,698,3],[699,2,699,3],[712,2,712,3],[713,2,713,3],[714,2,714,3],[715,2,715,3],[716,2,716,3],[717,2,717,3],[706,2,706,3],[707,2,707,3],[708,2,708,3],[709,2,709,3],[710,2,710,3],[711,2,711,3],[724,2,724,3],[725,2,725,3],[726,2,726,3],[727,2,727,3],[728,2,728,3],[729,2,729,3],[718,2,718,3],[719,2,719,3],[720,2,720,3],[721,2,721,3],[722,2,722,3],[723,2,723,3],[736,2,736,3],[737,2,737,3],[738,2,738,3],[739,2,739,3],[740,2,740,3],[741,2,741,3],[730,2,730,3],[731,2,731,3],[732,2,732,3],[733,2,733,3],[734,2,734,3],[735,2,735,3],[748,2,748,3],[749,2,749,3],[750,2,750,3],[751,2,751,3],[752,2,752,3],[753,2,753,3],[742,2,742,3],[743,2,743,3],[744,2,744,3],[745,2,745,3],[746,2,746,3],[747,2,747,3],[760,2,760,3],[761,2,761,3],[762,2,762,3],[763,2,763,3],[764,2,764,3],[765,2,765,3],[754,2,754,3],[755,2,755,3],[756,2,756,3],[757,2,757,3],[758,2,758,3],[759,2,759,3],[772,2,772,3],[773,2,773,3],[774,2,774,3],[766,2,766,3],[767,2,767,3],[768,2,768,3],[769,2,769,3],[770,2,770,3],[771,2,771,3]]}
["Date d'enlèvement","Nature du déchets","Quantité de déchets\n (en kg)",null,"Unité","Installation de destination \n(nom et adresse)","Transporteur ","Fiche d'intervention"]
["15/01/18","GRAVATS PROPRES",7800,null,null,{"$f":"IF(B2=\"TOUT VENANT\",\"Véolia Nice Tri - Parc d'activité logistique\",IF(B2=\"DECHETS VERTS\",\"Orédui Carros Compostage - ZI de la Grave\",IF(B2=\"GRAVATS PROPRES\",\"La Gaude K3 Sita Sud - 5211 Rte de St Jeannet\",IF(B2=\"GRAVATS SALES\",\"Véolia Nice Tri - 20 Ch du Saquier\",IF(B2=\"BOIS\",\"SEAS La Glacière - 1019 Rte de la Grasse\",IF(B2=\"METAUX\",\"Carros\",IF(B2=\"NEON\",\"Sofovar - 126 Av Louis Lépine - 83600 Fréjus\",IF(B2=\"PEINTURES\",\"Orédui - ZI Bois de Grasse - 06310 Grasse\",IF(B2=\"FROIDS\",\"SEAS - 1079 Rte de Grasse - 06270 Villeneuve Loubet\",IF(B2=\"HORS FROIDS\",\"SEAS - 1079 Rte de Grasse - 06270 Villeneuve Loubet\",IF(B2=\"PAM\",\"SEAS - 1079 Rte de Grasse - 06270 Villeneuve Loubet\",IF(B2=\"ECRANS\",\"SEAS - 1079 Rte de Grasse - 06270 Villeneuve Loubet\",IF(B2=\"HUILES DE VIDANGE\",\"SERAHU - 68 Ch de la Campanette - 06800 Cagnes sur Mer\")))))))))))))","v":"La Gaude K3 Sita Sud - 5211 Rte de St Jeannet"},{"$f":"IF(OR(B2=\"TOUT VENANT\",B2=\"DECHETS VERTS\",B2=\"GRAVATS SALES\",B2=\"GRAVATS PROPRES\",B2=\"BOIS\"),\"SUEZ\",IF(OR(B2=\"FROIDS\",B2=\"HORS FROIDS\",B2=\"PAM\",B2=\"ECRANS\"),\"SEAS\",IF(OR(B2=\"METAUX\"),\"DERICHEBOURG\",IF(OR(B2=\"NEON\"),\"SOFOVAR\",IF(OR(B2=\"PEINTURES\"),\"OREDUI\",IF(OR(B2=\"HUILES DE VIDANGE\"),\"SERAHU\"))))))","v":"SUEZ"},"B0300473467"]
["15/01/18","GRAVATS SALES",4300,null,null,{"$f":"IF(B3=\"TOUT VENANT\",\"Véolia Nice Tri - Parc d'activité logistique\",IF(B3=\"DECHETS VERTS\",\"Orédui Carros Compostage - ZI de la Grave\",IF(B3=\"GRAVATS PROPRES\",\"La Gaude K3 Sita Sud - 5211 Rte de St Jeannet\",IF(B3=\"GRAVATS SALES\",\"Véolia Nice Tri - 20 Ch du Saquier\",IF(B3=\"BOIS\",\"SEAS La Glacière - 1019 Rte de la Grasse\",IF(B3=\"METAUX\",\"Carros\",IF(B3=\"NEON\",\"Sofovar - 126 Av Louis Lépine - 83600 Fréjus\",IF(B3=\"PEINTURES\",\"Orédui - ZI Bois de Grasse - 06310 Grasse\",IF(B3=\"FROIDS\",\"SEAS - 1079 Rte de Grasse - 06270 Villeneuve Loubet\",IF(B3=\"HORS FROIDS\",\"SEAS - 1079 Rte de Grasse - 06270 Villeneuve Loubet\",IF(B3=\"PAM\",\"SEAS - 1079 Rte de Grasse - 06270 Villeneuve Loubet\",IF(B3=\"ECRANS\",\"SEAS - 1079 Rte de Grasse - 06270 Villeneuve Loubet\",IF(B3=\"HUILES DE VIDANGE\",\"SERAHU - 68 Ch de la Campanette - 06800 Cagnes sur Mer\")))))))))))))","v":"Véolia Nice Tri - 20 Ch du Saquier"},{"$f":"IF(OR(B3=\"TOUT VENANT\",B3=\"DECHETS VERTS\",B3=\"GRAVATS SALES\",B3=\"GRAVATS PROPRES\",B3=\"BOIS\"),\"SUEZ\",IF(OR(B3=\"FROIDS\",B3=\"HORS FROIDS\",B3=\"PAM\",B3=\"ECRANS\"),\"SEAS\",IF(OR(B3=\"METAUX\"),\"DERICHEBOURG\",IF(OR(B3=\"NEON\"),\"SOFOVAR\",IF(OR(B3=\"PEINTURES\"),\"OREDUI\",IF(OR(B3=\"HUILES DE VIDANGE\"),\"SERAHU\"))))))","v":"SUEZ"},"B0300472038"]
["15/01/18","TOUT VENANT","",null,null,"Véolia Nice Tri - Parc d'activité logistique","SUEZ","0103301"]
["15/01/18","METAUX","",null,null,"Carros","DERICHEBOURG","2308"]
["15/01/18","BOIS",2560,null,null,"SEAS La Glacière - 1019 Rte de la Grasse","SUEZ","B0300471832"]
["15/01/18","GRAVATS PROPRES",8250,null,null,"La Gaude K3 Sita Sud - 5211 Rte de St Jeannet","SUEZ","B0300473498"]
["15/01/18","TOUT VENANT","",null,null,"Véolia Nice Tri - Parc d'activité logistique","SUEZ","103302"]
["15/01/18","TOUT VENANT",1280,null,null,"Véolia Nice Tri - Parc d'activité logistique","SUEZ","B0300472466"]
["15/01/18","GRAVATS PROPRES",7300,null,null,"La Gaude K3 Sita Sud - 5211 Rte de St Jeannet","SUEZ","B0300473529"]
["15/01/18","DECHETS VERTS",1260,null,null,"Orédui Carros Compostage - ZI de la Grave","SUEZ","B0300471801"]
["15/01/18","BOIS",2260,null,null,"SEAS La Glacière - 1019 Rte de la Grasse","SUEZ","B0300471870"]
["15/01/18","GRAVATS SALES",1100,null,null,"Véolia Nice Tri - 20 Ch du Saquier","SUEZ","B0300473727"]
["15/01/18","BOIS",2620,null,null,"SEAS La Glacière - 1019 Rte de la Grasse","SUEZ","B0300472000"]
["15/01/18","TOUT VENANT",1000,null,null,"Véolia Nice Tri - Parc d'activité logistique","SUEZ","B0300467199"]
["15/01/18","TOUT VENANT",2540,null,null,"Véolia Nice Tri - Parc d'activité logistique","SUEZ","B0300473566"]
["15/01/18","BOIS",2360,null,null,"SEAS La Glacière - 1019 Rte de la Grasse","SUEZ","B0300472339"]
["15/01/18","TOUT VENANT",2620,null,null,"Véolia Nice Tri - Parc d'activité logistique","SUEZ","B0300476200"]
["16/01/18","GRAVATS PROPRES","8100",null,"","La Gaude K3 Sita Sud - 5211 Rte de St Jeannet","SUEZ","b0300473473"]
["2018-01-16","GRAVATS SALES","4060",null,"","Véolia Nice Tri - 20 Ch du Saquier","SUEZ","B0300472044"]
["2018-01-16","DECHETS VERTS","3620",null,"","Orédui Carros Compostage - ZI de la Grave","SUEZ","B0300471807"]
["2018-01-16","BOIS","3020",null,"","SEAS La Glacière - 1019 Rte de la Grasse","SUEZ","B0300471838"]
["2018-01-16","METAUX","",null,"","Carros","DERICHEBOURG","2214"]
["16/01/18","DECHETS VERTS","1360",null,"","Orédui Carros Compostage - ZI de la Grave","SUEZ","B0300471914"]
["16/01/18","GRAVATS PROPRES","5550",null,"","La Gaude K3 Sita Sud - 5211 Rte de St Jeannet","SUEZ","B0300473504"]
["16/01/18","TOUT VENANT","4700",null,"","Véolia Nice Tri - Parc d'activité logistique","SUEZ","0103303"]
["16/01/18","TOUT VENANT","3980",null,"","Véolia Nice Tri - Parc d'activité logistique","SUEZ","0103304"]
["16/01/18","BOIS","2060",null,"","SEAS La Glacière - 1019 Rte de la Grasse","SUEZ","B0300471876"]
["16/01/18","GRAVATS PROPRES","5150",null,"","La Gaude K3 Sita Sud - 5211 Rte de St Jeannet","SUEZ","B0300473535"]
["2018-01-16","PNEUS","",null,"150",false,false,"???"]
["2018-01-16","BOIS","1300",null,"","SEAS La Glacière - 1019 Rte de la Grasse","SUEZ","B0300472006"]
["2018-01-16","GRAVATS SALES","3980",null,"","Véolia Nice Tri - 20 Ch du Saquier","SUEZ","B0300473733"]
["16/01/18","DECHETS VERTS","",null,"","Orédui Carros Compostage - ZI de la Grave","SUEZ","B0300476253"]
["16/01/18","DECHETS VERTS","",null,"","Orédui Carros Compostage - ZI de la Grave","SUEZ","B0300476254"]
["16/01/18","BOIS","",null,"","SEAS La Glacière - 1019 Rte de la Grasse","SUEZ","B0300476255"]
["16/01/18","BOIS","2600",null,"","SEAS La Glacière - 1019 Rte de la Grasse","SUEZ","B0300476251"]
["2018-01-17","GRAVATS PROPRES","10500",null,"","La Gaude K3 Sita Sud - 5211 Rte de St Jeannet","SUEZ","B0300473479"]
["15/01/18","PEINTURES","",null,"6","Orédui - ZI Bois de Grasse - 06310 Grasse","OREDUI","131194-0000202"]
["17/01/18","GRAVATS SALES","2340",null,"","Véolia Nice Tri - 20 Ch du Saquier","SUEZ","B0300472050"]
["17/01/18","DECHETS VERTS","880",null,"","Orédui Carros Compostage - ZI de la Grave","SUEZ","B0300471813"]
["17/01/18","GRAVATS PROPRES","9700",null,"","La Gaude K3 Sita Sud - 5211 Rte de St Jeannet","SUEZ","B0300473510"]
["17/01/18","HORS FROIDS","",null,"8","SEAS - 1079 Rte de Grasse - 06270 Villeneuve Loubet","SEAS","1274077"]
["17/01/18","FROIDS","",null,"4","SEAS - 1079 Rte de Grasse - 06270 Villeneuve Loubet","SEAS","1274077"]
["17/01/18","PAM","",null,"1","SEAS - 1079 Rte de Grasse - 06270 Villeneuve Loubet","SEAS","1274077"]
["17/01/18","ECRANS","",null,"1","SEAS - 1079 Rte de Grasse - 06270 Villeneuve Loubet","SEAS","1274077"]
["17/01/18","DECHETS VERTS","1500",null,"","Orédui Carros Compostage - ZI de la Grave","SUEZ","B0300471920"]
["17/01/18","METAUX","",null,"","Carros","DERICHEBOURG","2219"]
["17/01/18","BOIS","1560",null,"","SEAS La Glacière - 1019 Rte de la Grasse","SUEZ","B0300471844"]
["17/01/18","BOIS","1900",null,"","SEAS La Glacière - 1019 Rte de la Grasse","SUEZ","B0300471882"]
["17/01/18","GRAVATS PROPRES","3150",null,"","La Gaude K3 Sita Sud - 5211 Rte de St Jeannet","SUEZ","B0300471782"]
["17.01.18","GRAVATS PROPRES","10100",null,"","La Gaude K3 Sita Sud - 5211 Rte de St Jeannet","SUEZ","B0300473541"]
["17/01/18","GRAVATS SALES","3480",null,"","Véolia Nice Tri - 20 Ch du Saquier","SUEZ","B0300473739"]
["17/01/18","BOIS","1700",null,"","SEAS La Glacière - 1019 Rte de la Grasse","SUEZ","B0300472012"]
["17/01/18","TOUT VENANT","1360",null,"","Véolia Nice Tri - Parc d'activité logistique","SUEZ","B0300476310"]
["17/01/18","TOUT VENANT","3040",null,"","Véolia Nice Tri - Parc d'activité logistique","SUEZ","B0300472382"]
["18/01/18","GRAVATS PROPRES","7950",null,"","La Gaude K3 Sita Sud - 5211 Rte de St Jeannet","SUEZ","B0300473485"]
["18/01/18","GRAVATS SALES","2560",null,"","Véolia Nice Tri - 20 Ch du Saquier","SUEZ","B0300472056"]
["16/01/18","TOUT VENANT","4100",null,"","Véolia Nice Tri - Parc d'activité logistique","SUEZ","0103305"]
["17/01/18","TOUT VENANT","4480",null,"","Véolia Nice Tri - Parc d'activité logistique","SUEZ","0103309"]
["17/01/18","TOUT VENANT",2300,null,"","Véolia Nice Tri - Parc d'activité logistique","SUEZ","0103308"]
["17/01/18","TOUT VENANT","3020",null,"","Véolia Nice Tri - Parc d'activité logistique","SUEZ","0103307"]
["18/01/18","DECHETS VERTS","1200",null,"","Orédui Carros Compostage - ZI de la Grave","SUEZ","B0300471819"]
["18/01/18","TOUT VENANT","4340",null,"","Véolia Nice Tri - Parc d'activité logistique","SUEZ","0103310"]
["18/01/18","DECHETS VERTS","3060",null,"","Orédui Carros Compostage - ZI de la Grave","SUEZ","B0300471926"]
["2018-01-18","GRAVATS PROPRES","7500",null,"","La Gaude K3 Sita Sud - 5211 Rte de St Jeannet","SUEZ","B0300473516"]
["18/01/18","TOUT VENANT","4240",null,"","Véolia Nice Tri - Parc d'activité logistique","SUEZ","0103311"]
["18/01/18","GRAVATS PROPRES","7850",null,"",{"$f":"IF(B67=\"TOUT VENANT\",\"Véolia Nice Tri - Parc d'activité logistique\",IF(B67=\"DECHETS VERTS\",\"Orédui Carros Compostage - ZI de la Grave\",IF(B67=\"GRAVATS PROPRES\",\"La Gaude K3 Sita Sud - 5211 Rte de St Jeannet\",IF(B67=\"GRAVATS SALES\",\"Véolia Nice Tri - 20 Ch du Saquier\",IF(B67=\"BOIS\",\"SEAS La Glacière - 1019 Rte de la Grasse\",IF(B67=\"METAUX\",\"Carros\",IF(B67=\"NEON\",\"Sofovar - 126 Av Louis Lépine - 83600 Fréjus\",IF(B67=\"PEINTURES\",\"Orédui - ZI Bois de Grasse - 06310 Grasse\",IF(B67=\"FROIDS\",\"SEAS - 1079 Rte de Grasse - 06270 Villeneuve Loubet\",IF(B67=\"HORS FROIDS\",\"SEAS - 1079 Rte de Grasse - 06270 Villeneuve Loubet\",IF(B67=\"PAM\",\"SEAS - 1079 Rte de Grasse - 06270 Villeneuve Loubet\",IF(B67=\"ECRANS\",\"SEAS - 1079 Rte de Grasse - 06270 Villeneuve Loubet\",IF(B67=\"HUILES DE VIDANGE\",\"SERAHU - 68 Ch de la Campanette - 06800 Cagnes sur Mer\")))))))))))))","v":"La Gaude K3 Sita Sud - 5211 Rte de St Jeannet"},{"$f":"IF(OR(B67=\"TOUT VENANT\",B67=\"DECHETS VERTS\",B67=\"GRAVATS SALES\",B67=\"GRAVATS PROPRES\",B67=\"BOIS\"),\"SUEZ\",IF(OR(B67=\"FROIDS\",B67=\"HORS FROIDS\",B67=\"PAM\",B67=\"ECRANS\"),\"SEAS\",IF(OR(B67=\"METAUX\"),\"DERICHEBOURG\",IF(OR(B67=\"NEON\"),\"SOFOVAR\",IF(OR(B67=\"PEINTURES\"),\"OREDUI\",IF(OR(B67=\"HUILES DE VIDANGE\"),\"SERAHU\"))))))","v":"SUEZ"},"B0300473547"]
["18/01/18","GRAVATS SALES","5160",null,"","Véolia Nice Tri - 20 Ch du Saquier","SUEZ","B0300473745"]
["18/01/18","BOIS","2500",null,"","SEAS La Glacière - 1019 Rte de la Grasse","SUEZ","B0300471850"]
["18/01/18","DECHETS VERTS","2020",null,"","Orédui Carros Compostage - ZI de la Grave","SUEZ","B0300476354"]
["18/01/18","TOUT VENANT","1920",null,"","Véolia Nice Tri - Parc d'activité logistique","SUEZ","B0300473584"]
["18/01/18","TOUT VENANT","2540",null,"","Véolia Nice Tri - Parc d'activité logistique","SUEZ","B0300472484"]
["18/01/18","BOIS","2540",null,"","SEAS La Glacière - 1019 Rte de la Grasse","SUEZ","B0300471888"]
["18/01/18","BOIS","3180",null,"","SEAS La Glacière - 1019 Rte de la Grasse","SUEZ","B0300472018"]
[null,null,null,null,null,false,false]
[null,null,null,null,null,false,false]
[null,null,null,null,null,false,false]
[null,null,null,null,null,false,false]
[null,null,null,null,null,false,false]
[null,null,null,null,null,false,false]
[null,null,null,null,null,false,false]
[null,null,null,null,null,false,false]
[null,null,null,null,null,false,false]
[null,null,null,null,null,false,false]
[null,null,null,null,null,false,false]
[null,null,null,null,null,false,false]
[null,null,null,null,null,false,false]
[null,null,null,null,null,false,false]
[null,null,null,null,null,false,false]
[null,null,null,null,null,false,false]
[null,null,null,null,null,false,false]
[null,null,null,null,null,false,false]
[null,null,null,null,null,false,false]
[null,null,null,null,null,false,false]
[null,null,null,null,null,false,false]
[null,null,null,null,null,false,false]
[null,null,null,null,null,false,false]
[null,null,null,null,null,false,false]
[null,null,null,null,null,false,false]
[null,null,null,null,null,false,false]
[null,null,null,null,null,false,false]
[null,null,null,null,null,false,false]
[null,null,null,null,null,false,false]
[null,null,null,null,null,false,false]
[null,null,null,null,null,false,false]
[null,null,null,null,null,false,false]
[null,null,null,null,null,false,false]
[null,null,null,null,null,false,false]
[null,null,null,null,null,false,false]
[null,null,null,null,null,false,false]
[null,null,null,null,null,false,false]
[null,null,null,null,null,false,false]
[null,null,null,null,null,false,false]
[null,null,null,null,null,false,false]
[null,null,null,null,null,false,false]
[null,null,null,null,null,false,false]
[null,null,null,null,null,false,false]
[null,null,null,null,null,false,false]
[null,null,null,null,null,false,false]
[null,null,null,null,null,false,false]
[null,null,null,null,null,false,false]
[null,null,null,null,null,false,false]
[null,null,null,null,null,false,false]
[null,null,null,null,null,false,false]
[null,null,null,null,null,false,false]
[null,null,null,null,null,false,false]
[null,null,null,null,null,false,false]
[null,null,null,null,null,false,false]
[null,null,null,null,null,false,false]
[null,null,null,null,null,false,false]
[null,null,null,null,null,{"$f":"IF(B131=\"TOUT VENANT\",\"Véolia Nice Tri - Parc d'activité logistique\",IF(B131=\"DECHETS VERTS\",\"Orédui Carros Compostage - ZI de la Grave\",IF(B131=\"GRAVATS PROPRES\",\"La Gaude K3 Sita Sud - 5211 Rte de St Jeannet\",IF(B131=\"GRAVATS SALES\",\"Véolia Nice Tri - 20 Ch du Saquier\",IF(B131=\"BOIS\",\"SEAS La Glacière - 1019 Rte de la Grasse\",IF(B131=\"METAUX\",\"Carros\",IF(B131=\"NEON\",\"Sofovar - 126 Av Louis Lépine - 83600 Fréjus\",IF(B131=\"PEINTURES\",\"Orédui - ZI Bois de Grasse - 06310 Grasse\",IF(B131=\"FROIDS\",\"SEAS - 1079 Rte de Grasse - 06270 Villeneuve Loubet\",IF(B131=\"HORS FROIDS\",\"SEAS - 1079 Rte de Grasse - 06270 Villeneuve Loubet\",IF(B131=\"PAM\",\"SEAS - 1079 Rte de Grasse - 06270 Villeneuve Loubet\",IF(B131=\"ECRANS\",\"SEAS - 1079 Rte de Grasse - 06270 Villeneuve Loubet\",IF(B131=\"HUILES DE VIDANGE\",\"SERAHU - 68 Ch de la Campanette - 06800 Cagnes sur Mer\")))))))))))))","v":false},{"$f":"IF(OR(B131=\"TOUT VENANT\",B131=\"DECHETS VERTS\",B131=\"GRAVATS SALES\",B131=\"GRAVATS PROPRES\",B131=\"BOIS\"),\"SUEZ\",IF(OR(B131=\"FROIDS\",B131=\"HORS FROIDS\",B131=\"PAM\",B131=\"ECRANS\"),\"SEAS\",IF(OR(B131=\"METAUX\"),\"DERICHEBOURG\",IF(OR(B131=\"NEON\"),\"SOFOVAR\",IF(OR(B131=\"PEINTURES\"),\"OREDUI\",IF(OR(B131=\"HUILES DE VIDANGE\"),\"SERAHU\"))))))","v":false}]
[null,null,null,null,null,false,false]
[null,null,null,null,null,false,false]
[null,null,null,null,null,false,false]
[null,null,null,null,null,false,false]
[null,null,null,null,null,false,false]
[null,null,null,null,null,false,false]
[null,null,null,null,null,false,false]
[null,null,null,null,null,false,false]
[null,null,null,null,null,false,false]
[null,null,null,null,null,false,false]
[null,null,null,null,null,false,false]
[null,null,null,null,null,false,false]
[null,null,null,null,null,false,false]
[null,null,null,null,null,false,false]
[null,null,null,null,null,false,false]
[null,null,null,null,null,false,false]
[null,null,null,null,null,false,false]
[null,null,null,null,null,false,false]
[null,null,null,null,null,false,false]
[null,null,null,null,null,false,false]
[null,null,null,null,null,false,false]
[null,null,null,null,null,false,false]
[null,null,null,null,null,false,false]
[null,null,null,null,null,false,false]
[null,null,null,null,null,false,false]
[null,null,null,null,null,false,false]
[null,null,null,null,null,false,false]
[null,null,null,null,null,false,false]
[null,null,null,null,null,false,false]
[null,null,null,null,null,false,false]
[null,null,null,null,null,false,false]
[null,null,null,null,null,false,false]
[null,null,null,null,null,false,false]
[null,null,null,null,null,false,false]
[null,null,null,null,null,false,false]
[null,null,null,null,null,false,false]
[null,null,null,null,null,false,false]
[null,null,null,null,null,false,false]
[null,null,null,null,null,false,false]
[null,null,null,null,null,false,false]
[null,null,null,null,null,false,false]
[null,null,null,null,null,false,false]
[null,null,null,null,null,false,false]
[null,null,null,null,null,false,false]
[null,null,null,null,null,false,false]
[null,null,null,null,null,false,false]
[null,null,null,null,null,false,false]
[null,null,null,null,null,false,false]
[null,null,null,null,null,false,false]
[null,null,null,null,null,false,false]
[null,null,null,null,null,false,false]
[null,null,null,null,null,false,false]
[null,null,null,null,null,false,false]
[null,null,null,null,null,false,false]
[null,null,null,null,null,false,false]
[null,null,null,null,null,false,false]
[null,null,null,null,null,false,false]
[null,null,null,null,null,false,false]
[null,null,null,null,null,false,false]
[null,null,null,null,null,false,false]
[null,null,null,null,null,false,false]
[null,null,null,null,null,false,false]
[null,null,null,null,null,false,false]
[null,null,null,null,null,{"$f":"IF(B195=\"TOUT VENANT\",\"Véolia Nice Tri - Parc d'activité logistique\",IF(B195=\"DECHETS VERTS\",\"Orédui Carros Compostage - ZI de la Grave\",IF(B195=\"GRAVATS PROPRES\",\"La Gaude K3 Sita Sud - 5211 Rte de St Jeannet\",IF(B195=\"GRAVATS SALES\",\"Véolia Nice Tri - 20 Ch du Saquier\",IF(B195=\"BOIS\",\"SEAS La Glacière - 1019 Rte de la Grasse\",IF(B195=\"METAUX\",\"Carros\",IF(B195=\"NEON\",\"Sofovar - 126 Av Louis Lépine - 83600 Fréjus\",IF(B195=\"PEINTURES\",\"Orédui - ZI Bois de Grasse - 06310 Grasse\",IF(B195=\"FROIDS\",\"SEAS - 1079 Rte de Grasse - 06270 Villeneuve Loubet\",IF(B195=\"HORS FROIDS\",\"SEAS - 1079 Rte de Grasse - 06270 Villeneuve Loubet\",IF(B195=\"PAM\",\"SEAS - 1079 Rte de Grasse - 06270 Villeneuve Loubet\",IF(B195=\"ECRANS\",\"SEAS - 1079 Rte de Grasse - 06270 Villeneuve Loubet\",IF(B195=\"HUILES DE VIDANGE\",\"SERAHU - 68 Ch de la Campanette - 06800 Cagnes sur Mer\")))))))))))))","v":false},{"$f":"IF(OR(B195=\"TOUT VENANT\",B195=\"DECHETS VERTS\",B195=\"GRAVATS SALES\",B195=\"GRAVATS PROPRES\",B195=\"BOIS\"),\"SUEZ\",IF(OR(B195=\"FROIDS\",B195=\"HORS FROIDS\",B195=\"PAM\",B195=\"ECRANS\"),\"SEAS\",IF(OR(B195=\"METAUX\"),\"DERICHEBOURG\",IF(OR(B195=\"NEON\"),\"SOFOVAR\",IF(OR(B195=\"PEINTURES\"),\"OREDUI\",IF(OR(B195=\"HUILES DE VIDANGE\"),\"SERAHU\"))))))","v":false}]
[null,null,null,null,null,false,false]
[null,null,null,null,null,false,false]
[null,null,null,null,null,false,false]
[null,null,null,null,null,false,false]
[null,null,null,null,null,false,false]
[null,null,null,null,null,false,false]
[null,null,null,null,null,false,false]
[null,null,null,null,null,false,false]
[null,null,null,null,null,false,false]
[null,null,null,null,null,false,false]
[null,null,null,null,null,false,false]
[null,null,null,null,null,false,false]
[null,null,null,null,null,false,false]
[null,null,null,null,null,false,false]
[null,null,null,null,null,false,false]
[null,null,null,null,null,false,false]
[null,null,null,null,null,false,false]
[null,null,null,null,null,false,false]
[null,null,null,null,null,false,false]
[null,null,null,null,null,false,false]
[null,null,null,null,null,false,false]
[null,null,null,null,null,false,false]
[null,null,null,null,null,false,false]
[null,null,null,null,null,false,false]
[null,null,null,null,null,false,false]
[null,null,null,null,null,false,false]
[null,null,null,null,null,false,false]
[null,null,null,null,null,false,false]
[null,null,null,null,null,false,false]
[null,null,null,null,null,false,false]
[null,null,null,null,null,false,false]
[null,null,null,null,null,false,false]
[null,null,null,null,null,false,false]
[null,null,null,null,null,false,false]
[null,null,null,null,null,false,false]
[null,null,null,null,null,false,false]
[null,null,null,null,null,false,false]
[null,null,null,null,null,false,false]
[null,null,null,null,null,false,false]
[null,null,null,null,null,false,false]
[null,null,null,null,null,false,false]
[null,null,null,null,null,false,false]
[null,null,null,null,null,false,false]
[null,null,null,null,null,false,false]
[null,null,null,null,null,false,false]
[null,null,null,null,null,false,false]
[null,null,null,null,null,false,false]
[null,null,null,null,null,false,false]
[null,null,null,null,null,false,false]
[null,null,null,null,null,false,false]
[null,null,null,null,null,false,false]
[null,null,null,null,null,false,false]
[null,null,null,null,null,false,false]
[null,null,null,null,null,false,false]
[null,null,null,null,null,false,false]
[null,null,null,null,null,false,false]
[null,null,null,null,null,false,false]
[null,null,null,null,null,false,false]
[null,null,null,null,null,false,false]
[null,null,null,null,null,false,false]
[null,null,null,null,null,false,false]
[null,null,null,null,null,false,false]
[null,null,null,null,null,false,false]
[null,null,null,null,null,{"$f":"IF(B259=\"TOUT VENANT\",\"Véolia Nice Tri - Parc d'activité logistique\",IF(B259=\"DECHETS VERTS\",\"Orédui Carros Compostage - ZI de la Grave\",IF(B259=\"GRAVATS PROPRES\",\"La Gaude K3 Sita Sud - 5211 Rte de St Jeannet\",IF(B259=\"GRAVATS SALES\",\"Véolia Nice Tri - 20 Ch du Saquier\",IF(B259=\"BOIS\",\"SEAS La Glacière - 1019 Rte de la Grasse\",IF(B259=\"METAUX\",\"Carros\",IF(B259=\"NEON\",\"Sofovar - 126 Av Louis Lépine - 83600 Fréjus\",IF(B259=\"PEINTURES\",\"Orédui - ZI Bois de Grasse - 06310 Grasse\",IF(B259=\"FROIDS\",\"SEAS - 1079 Rte de Grasse - 06270 Villeneuve Loubet\",IF(B259=\"HORS FROIDS\",\"SEAS - 1079 Rte de Grasse - 06270 Villeneuve Loubet\",IF(B259=\"PAM\",\"SEAS - 1079 Rte de Grasse - 06270 Villeneuve Loubet\",IF(B259=\"ECRANS\",\"SEAS - 1079 Rte de Grasse - 06270 Villeneuve Loubet\",IF(B259=\"HUILES DE VIDANGE\",\"SERAHU - 68 Ch de la Campanette - 06800 Cagnes sur Mer\")))))))))))))","v":false},{"$f":"IF(OR(B259=\"TOUT VENANT\",B259=\"DECHETS VERTS\",B259=\"GRAVATS SALES\",B259=\"GRAVATS PROPRES\",B259=\"BOIS\"),\"SUEZ\",IF(OR(B259=\"FROIDS\",B259=\"HORS FROIDS\",B259=\"PAM\",B259=\"ECRANS\"),\"SEAS\",IF(OR(B259=\"METAUX\"),\"DERICHEBOURG\",IF(OR(B259=\"NEON\"),\"SOFOVAR\",IF(OR(B259=\"PEINTURES\"),\"OREDUI\",IF(OR(B259=\"HUILES DE VIDANGE\"),\"SERAHU\"))))))","v":false}]
[null,null,null,null,null,false,false]
[null,null,null,null,null,false,false]
[null,null,null,null,null,false,false]
[null,null,null,null,null,false,false]
[null,null,null,null,null,false,false]
[null,null,null,null,null,false,false]
[null,null,null,null,null,false,false]
[null,null,null,null,null,false,false]
[null,null,null,null,null,false,false]
[null,null,null,null,null,false,false]
[null,null,null,null,null,false,false]
[null,null,null,null,null,false,false]
[null,null,null,null,null,false,false]
[null,null,null,null,null,false,false]
[null,null,null,null,null,false,false]
[null,null,null,null,null,false,false]
[null,null,null,null,null,false,false]
[null,null,null,null,null,false,false]
[null,null,null,null,null,false,false]
[null,null,null,null,null,false,false]
[null,null,null,null,null,false,false]
[null,null,null,null,null,false,false]
[null,null,null,null,null,false,false]
[null,null,null,null,null,false,false]
[null,null,null,null,null,false,false]
[null,null,null,null,null,false,false]
[null,null,null,null,null,false,false]
[null,null,null,null,null,false,false]
[null,null,null,null,null,false,false]
[null,null,null,null,null,false,false]
[null,null,null,null,null,false,false]
[null,null,null,null,null,false,false]
[null,null,null,null,null,false,false]
[null,null,null,null,null,false,false]
[null,null,null,null,null,false,false]
[null,null,null,null,null,false,false]
[null,null,null,null,null,false,false]
[null,null,null,null,null,false,false]
[null,null,null,null,null,false,false]
[null,null,null,null,null,false,false]
[null,null,null,null,null,false,false]
[null,null,null,null,null,false,false]
[null,null,null,null,null,false,false]
[null,null,null,null,null,false,false]
[null,null,null,null,null,false,false]
[null,null,null,null,null,false,false]
[null,null,null,null,null,false,false]
[null,null,null,null,null,false,false]
[null,null,null,null,null,false,false]
[null,null,null,null,null,false,false]
[null,null,null,null,null,false,false]
[null,null,null,null,null,false,false]
[null,null,null,null,null,false,false]
[null,null,null,null,null,false,false]
[null,null,null,null,null,false,false]
[null,null,null,null,null,false,false]
[null,null,null,null,null,false,false]
[null,null,null,null,null,false,false]
[null,null,null,null,null,false,false]
[null,null,null,null,null,false,false]
[null,null,null,null,null,false,false]
[null,null,null,null,null,false,false]
[null,null,null,null,null,false,false]
[null,null,null,null,null,{"$f":"IF(B323=\"TOUT VENANT\",\"Véolia Nice Tri - Parc d'activité logistique\",IF(B323=\"DECHETS VERTS\",\"Orédui Carros Compostage - ZI de la Grave\",IF(B323=\"GRAVATS PROPRES\",\"La Gaude K3 Sita Sud - 5211 Rte de St Jeannet\",IF(B323=\"GRAVATS SALES\",\"Véolia Nice Tri - 20 Ch du Saquier\",IF(B323=\"BOIS\",\"SEAS La Glacière - 1019 Rte de la Grasse\",IF(B323=\"METAUX\",\"Carros\",IF(B323=\"NEON\",\"Sofovar - 126 Av Louis Lépine - 83600 Fréjus\",IF(B323=\"PEINTURES\",\"Orédui - ZI Bois de Grasse - 06310 Grasse\",IF(B323=\"FROIDS\",\"SEAS - 1079 Rte de Grasse - 06270 Villeneuve Loubet\",IF(B323=\"HORS FROIDS\",\"SEAS - 1079 Rte de Grasse - 06270 Villeneuve Loubet\",IF(B323=\"PAM\",\"SEAS - 1079 Rte de Grasse - 06270 Villeneuve Loubet\",IF(B323=\"ECRANS\",\"SEAS - 1079 Rte de Grasse - 06270 Villeneuve Loubet\",IF(B323=\"HUILES DE VIDANGE\",\"SERAHU - 68 Ch de la Campanette - 06800 Cagnes sur Mer\")))))))))))))","v":false},{"$f":"IF(OR(B323=\"TOUT VENANT\",B323=\"DECHETS VERTS\",B323=\"GRAVATS SALES\",B323=\"GRAVATS PROPRES\",B323=\"BOIS\"),\"SUEZ\",IF(OR(B323=\"FROIDS\",B323=\"HORS FROIDS\",B323=\"PAM\",B323=\"ECRANS\"),\"SEAS\",IF(OR(B323=\"METAUX\"),\"DERICHEBOURG\",IF(OR(B323=\"NEON\"),\"SOFOVAR\",IF(OR(B323=\"PEINTURES\"),\"OREDUI\",IF(OR(B323=\"HUILES DE VIDANGE\"),\"SERAHU\"))))))","v":false}]
[null,null,null,null,null,false,false]
[null,null,null,null,null,false,false]
[null,null,null,null,null,false,false]
[null,null,null,null,null,false,false]
[null,null,null,null,null,false,false]
[null,null,null,null,null,false,false]
[null,null,null,null,null,false,false]
[null,null,null,null,null,false,false]
[null,null,null,null,null,false,false]
[null,null,null,null,null,false,false]
[null,null,null,null,null,false,false]
[null,null,null,null,null,false,false]
[null,null,null,null,null,false,false]
[null,null,null,null,null,false,false]
[null,null,null,null,null,false,false]
[null,null,null,null,null,false,false]
[null,null,null,null,null,false,false]
[null,null,null,null,null,false,false]
[null,null,null,null,null,false,false]
[null,null,null,null,null,false,false]
[null,null,null,null,null,false,false]
[null,null,null,null,null,false,false]
[null,null,null,null,null,false,false]
[null,null,null,null,null,false,false]
[null,null,null,null,null,false,false]
[null,null,null,null,null,false,false]
[null,null,null,null,null,false,false]
[null,null,null,null,null,false,false]
[null,null,null,null,null,false,false]
[null,null,null,null,null,false,false]
[null,null,null,null,null,false,false]
[null,null,null,null,null,false,false]
[null,null,null,null,null,false,false]
[null,null,null,null,null,false,false]
[null,null,null,null,null,false,false]
[null,null,null,null,null,false,false]
[null,null,null,null,null,false,false]
[null,null,null,null,null,false,false]
[null,null,null,null,null,false,false]
[null,null,null,null,null,false,false]
[null,null,null,null,null,false,false]
[null,null,null,null,null,false,false]
[null,null,null,null,null,false,false]
[null,null,null,null,null,false,false]
[null,null,null,null,null,false,false]
[null,null,null,null,null,false,false]
[null,null,null,null,null,false,false]
[null,null,null,null,null,false,false]
[null,null,null,null,null,false,false]
[null,null,null,null,null,false,false]
[null,null,null,null,null,false,false]
[null,null,null,null,null,false,false]
[null,null,null,null,null,false,false]
[null,null,null,null,null,false,false]
[null,null,null,null,null,false,false]
[null,null,null,null,null,false,false]
[null,null,null,null,null,false,false]
[null,null,null,null,null,false,false]
[null,null,null,null,null,false,false]
[null,null,null,null,null,false,false]
[null,null,null,null,null,false,false]
[null,null,null,null,null,false,false]
[null,null,null,null,null,false,false]
[null,null,null,null,null,{"$f":"IF(B387=\"TOUT VENANT\",\"Véolia Nice Tri - Parc d'activité logistique\",IF(B387=\"DECHETS VERTS\",\"Orédui Carros Compostage - ZI de la Grave\",IF(B387=\"GRAVATS PROPRES\",\"La Gaude K3 Sita Sud - 5211 Rte de St Jeannet\",IF(B387=\"GRAVATS SALES\",\"Véolia Nice Tri - 20 Ch du Saquier\",IF(B387=\"BOIS\",\"SEAS La Glacière - 1019 Rte de la Grasse\",IF(B387=\"METAUX\",\"Carros\",IF(B387=\"NEON\",\"Sofovar - 126 Av Louis Lépine - 83600 Fréjus\",IF(B387=\"PEINTURES\",\"Orédui - ZI Bois de Grasse - 06310 Grasse\",IF(B387=\"FROIDS\",\"SEAS - 1079 Rte de Grasse - 06270 Villeneuve Loubet\",IF(B387=\"HORS FROIDS\",\"SEAS - 1079 Rte de Grasse - 06270 Villeneuve Loubet\",IF(B387=\"PAM\",\"SEAS - 1079 Rte de Grasse - 06270 Villeneuve Loubet\",IF(B387=\"ECRANS\",\"SEAS - 1079 Rte de Grasse - 06270 Villeneuve Loubet\",IF(B387=\"HUILES DE VIDANGE\",\"SERAHU - 68 Ch de la Campanette - 06800 Cagnes sur Mer\")))))))))))))","v":false},{"$f":"IF(OR(B387=\"TOUT VENANT\",B387=\"DECHETS VERTS\",B387=\"GRAVATS SALES\",B387=\"GRAVATS PROPRES\",B387=\"BOIS\"),\"SUEZ\",IF(OR(B387=\"FROIDS\",B387=\"HORS FROIDS\",B387=\"PAM\",B387=\"ECRANS\"),\"SEAS\",IF(OR(B387=\"METAUX\"),\"DERICHEBOURG\",IF(OR(B387=\"NEON\"),\"SOFOVAR\",IF(OR(B387=\"PEINTURES\"),\"OREDUI\",IF(OR(B387=\"HUILES DE VIDANGE\"),\"SERAHU\"))))))","v":false}]
[null,null,null,null,null,false,false]
[null,null,null,null,null,false,false]
[null,null,null,null,null,false,false]
[null,null,null,null,null,false,false]
[null,null,null,null,null,false,false]
[null,null,null,null,null,false,false]
[null,null,null,null,null,false,false]
[null,null,null,null,null,false,false]
[null,null,null,null,null,false,false]
[null,null,null,null,null,false,false]
[null,null,null,null,null,false,false]
[null,null,null,null,null,false,false]
[null,null,null,null,null,false,false]
[null,null,null,null,null,false,false]
[null,null,null,null,null,false,false]
[null,null,null,null,null,false,false]
[null,null,null,null,null,false,false]
[null,null,null,null,null,false,false]
[null,null,null,null,null,false,false]
[null,null,null,null,null,false,false]
[null,null,null,null,null,false,false]
[null,null,null,null,null,false,false]
[null,null,null,null,null,false,false]
[null,null,null,null,null,false,false]
[null,null,null,null,null,false,false]
[null,null,null,null,null,false,false]
[null,null,null,null,null,false,false]
[null,null,null,null,null,false,false]
[null,null,null,null,null,false,false]
[null,null,null,null,null,false,false]
[null,null,null,null,null,false,false]
[null,null,null,null,null,false,false]
[null,null,null,null,null,false,false]
[null,null,null,null,null,false,false]
[null,null,null,null,null,false,false]
[null,null,null,null,null,false,false]
[null,null,null,null,null,false,false]
[null,null,null,null,null,false,false]
[null,null,null,null,null,false,false]
[null,null,null,null,null,false,false]
[null,null,null,null,null,false,false]
[null,null,null,null,null,false,false]
[null,null,null,null,null,false,false]
[null,null,null,null,null,false,false]
[null,null,null,null,null,false,false]
[null,null,null,null,null,false,false]
[null,null,null,null,null,false,false]
[null,null,null,null,null,false,false]
[null,null,null,null,null,false,false]
[null,null,null,null,null,false,false]
[null,null,null,null,null,false,false]
[null,null,null,null,null,false,false]
[null,null,null,null,null,false,false]
[null,null,null,null,null,false,false]
[null,null,null,null,null,false,false]
[null,null,null,null,null,false,false]
[null,null,null,null,null,false,false]
[null,null,null,null,null,false,false]
[null,null,null,null,null,false,false]
[null,null,null,null,null,false,false]
[null,null,null,null,null,false,false]
[null,null,null,null,null,false,false]
[null,null,null,null,null,false,false]
[null,null,null,null,null,{"$f":"IF(B451=\"TOUT VENANT\",\"Véolia Nice Tri - Parc d'activité logistique\",IF(B451=\"DECHETS VERTS\",\"Orédui Carros Compostage - ZI de la Grave\",IF(B451=\"GRAVATS PROPRES\",\"La Gaude K3 Sita Sud - 5211 Rte de St Jeannet\",IF(B451=\"GRAVATS SALES\",\"Véolia Nice Tri - 20 Ch du Saquier\",IF(B451=\"BOIS\",\"SEAS La Glacière - 1019 Rte de la Grasse\",IF(B451=\"METAUX\",\"Carros\",IF(B451=\"NEON\",\"Sofovar - 126 Av Louis Lépine - 83600 Fréjus\",IF(B451=\"PEINTURES\",\"Orédui - ZI Bois de Grasse - 06310 Grasse\",IF(B451=\"FROIDS\",\"SEAS - 1079 Rte de Grasse - 06270 Villeneuve Loubet\",IF(B451=\"HORS FROIDS\",\"SEAS - 1079 Rte de Grasse - 06270 Villeneuve Loubet\",IF(B451=\"PAM\",\"SEAS - 1079 Rte de Grasse - 06270 Villeneuve Loubet\",IF(B451=\"ECRANS\",\"SEAS - 1079 Rte de Grasse - 06270 Villeneuve Loubet\",IF(B451=\"HUILES DE VIDANGE\",\"SERAHU - 68 Ch de la Campanette - 06800 Cagnes sur Mer\")))))))))))))","v":false},{"$f":"IF(OR(B451=\"TOUT VENANT\",B451=\"DECHETS VERTS\",B451=\"GRAVATS SALES\",B451=\"GRAVATS PROPRES\",B451=\"BOIS\"),\"SUEZ\",IF(OR(B451=\"FROIDS\",B451=\"HORS FROIDS\",B451=\"PAM\",B451=\"ECRANS\"),\"SEAS\",IF(OR(B451=\"METAUX\"),\"DERICHEBOURG\",IF(OR(B451=\"NEON\"),\"SOFOVAR\",IF(OR(B451=\"PEINTURES\"),\"OREDUI\",IF(OR(B451=\"HUILES DE VIDANGE\"),\"SERAHU\"))))))","v":false}]
[null,null,null,null,null,false,false]
[null,null,null,null,null,false,false]
[null,null,null,null,null,false,false]
[null,null,null,null,null,false,false]
[null,null,null,null,null,false,false]
[null,null,null,null,null,false,false]
[null,null,null,null,null,false,false]
[null,null,null,null,null,false,false]
[null,null,null,null,null,false,false]
[null,null,null,null,null,false,false]
[null,null,null,null,null,false,false]
[null,null,null,null,null,false,false]
[null,null,null,null,null,false,false]
[null,null,null,null,null,false,false]
[null,null,null,null,null,false,false]
[null,null,null,null,null,false,false]
[null,null,null,null,null,false,false]
[null,null,null,null,null,false,false]
[null,null,null,null,null,false,false]
[null,null,null,null,null,false,false]
[null,null,null,null,null,false,false]
[null,null,null,null,null,false,false]
[null,null,null,null,null,false,false]
[null,null,null,null,null,false,false]
[null,null,null,null,null,false,false]
[null,null,null,null,null,false,false]
[null,null,null,null,null,false,false]
[null,null,null,null,null,false,false]
[null,null,null,null,null,false,false]
[null,null,null,null,null,false,false]
[null,null,null,null,null,false,false]
[null,null,null,null,null,false,false]
[null,null,null,null,null,false,false]
[null,null,null,null,null,false,false]
[null,null,null,null,null,false,false]
[null,null,null,null,null,false,false]
[null,null,null,null,null,false,false]
[null,null,null,null,null,false,false]
[null,null,null,null,null,false,false]
[null,null,null,null,null,false,false]
[null,null,null,null,null,false,false]
[null,null,null,null,null,false,false]
[null,null,null,null,null,false,false]
[null,null,null,null,null,false,false]
[null,null,null,null,null,false,false]
[null,null,null,null,null,false,false]
[null,null,null,null,null,false,false]
[null,null,null,null,null,false,false]
[null,null,null,null,null,false,false]
[null,null,null,null,null,false,false]
[null,null,null,null,null,false,false]
[null,null,null,null,null,false,false]
[null,null,null,null,null,false,false]
[null,null,null,null,null,false,false]
[null,null,null,null,null,false,false]
[null,null,null,null,null,false,false]
[null,null,null,null,null,false,false]
[null,null,null,null,null,false,false]
[null,null,null,null,null,false,false]
[null,null,null,null,null,false,false]
[null,null,null,null,null,false,false]
[null,null,null,null,null,false,false]
[null,null,null,null,null,false,false]
[null,null,null,null,null,{"$f":"IF(B515=\"TOUT VENANT\",\"Véolia Nice Tri - Parc d'activité logistique\",IF(B515=\"DECHETS VERTS\",\"Orédui Carros Compostage - ZI de la Grave\",IF(B515=\"GRAVATS PROPRES\",\"La Gaude K3 Sita Sud - 5211 Rte de St Jeannet\",IF(B515=\"GRAVATS SALES\",\"Véolia Nice Tri - 20 Ch du Saquier\",IF(B515=\"BOIS\",\"SEAS La Glacière - 1019 Rte de la Grasse\",IF(B515=\"METAUX\",\"Carros\",IF(B515=\"NEON\",\"Sofovar - 126 Av Louis Lépine - 83600 Fréjus\",IF(B515=\"PEINTURES\",\"Orédui - ZI Bois de Grasse - 06310 Grasse\",IF(B515=\"FROIDS\",\"SEAS - 1079 Rte de Grasse - 06270 Villeneuve Loubet\",IF(B515=\"HORS FROIDS\",\"SEAS - 1079 Rte de Grasse - 06270 Villeneuve Loubet\",IF(B515=\"PAM\",\"SEAS - 1079 Rte de Grasse - 06270 Villeneuve Loubet\",IF(B515=\"ECRANS\",\"SEAS - 1079 Rte de Grasse - 06270 Villeneuve Loubet\",IF(B515=\"HUILES DE VIDANGE\",\"SERAHU - 68 Ch de la Campanette - 06800 Cagnes sur Mer\")))))))))))))","v":false},{"$f":"IF(OR(B515=\"TOUT VENANT\",B515=\"DECHETS VERTS\",B515=\"GRAVATS SALES\",B515=\"GRAVATS PROPRES\",B515=\"BOIS\"),\"SUEZ\",IF(OR(B515=\"FROIDS\",B515=\"HORS FROIDS\",B515=\"PAM\",B515=\"ECRANS\"),\"SEAS\",IF(OR(B515=\"METAUX\"),\"DERICHEBOURG\",IF(OR(B515=\"NEON\"),\"SOFOVAR\",IF(OR(B515=\"PEINTURES\"),\"OREDUI\",IF(OR(B515=\"HUILES DE VIDANGE\"),\"SERAHU\"))))))","v":false}]
[null,null,null,null,null,false,false]
[null,null,null,null,null,false,false]
[null,null,null,null,null,false,false]
[null,null,null,null,null,false,false]
[null,null,null,null,null,false,false]
[null,null,null,null,null,false,false]
[null,null,null,null,null,false,false]
[null,null,null,null,null,false,false]
[null,null,null,null,null,false,false]
[null,null,null,null,null,false,false]
[null,null,null,null,null,false,false]
[null,null,null,null,null,false,false]
[null,null,null,null,null,false,false]
[null,null,null,null,null,false,false]
[null,null,null,null,null,false,false]
[null,null,null,null,null,false,false]
[null,null,null,null,null,false,false]
[null,null,null,null,null,false,false]
[null,null,null,null,null,false,false]
[null,null,null,null,null,false,false]
[null,null,null,null,null,false,false]
[null,null,null,null,null,false,false]
[null,null,null,null,null,false,false]
[null,null,null,null,null,false,false]
[null,null,null,null,null,false,false]
[null,null,null,null,null,false,false]
[null,null,null,null,null,false,false]
[null,null,null,null,null,false,false]
[null,null,null,null,null,false,false]
[null,null,null,null,null,false,false]
[null,null,null,null,null,false,false]
[null,null,null,null,null,false,false]
[null,null,null,null,null,false,false]
[null,null,null,null,null,false,false]
[null,null,null,null,null,false,false]
[null,null,null,null,null,false,false]
[null,null,null,null,null,false,false]
[null,null,null,null,null,false,false]
[null,null,null,null,null,false,false]
[null,null,null,null,null,false,false]
[null,null,null,null,null,false,false]
[null,null,null,null,null,false,false]
[null,null,null,null,null,false,false]
[null,null,null,null,null,false,false]
[null,null,null,null,null,false,false]
[null,null,null,null,null,false,false]
[null,null,null,null,null,false,false]
[null,null,null,null,null,false,false]
[null,null,null,null,null,false,false]
[null,null,null,null,null,false,false]
[null,null,null,null,null,false,false]
[null,null,null,null,null,false,false]
[null,null,null,null,null,false,false]
[null,null,null,null,null,false,false]
[null,null,null,null,null,false,false]
[null,null,null,null,null,false,false]
[null,null,null,null,null,false,false]
[null,null,null,null,null,false,false]
[null,null,null,null,null,false,false]
[null,null,null,null,null,false,false]
[null,null,null,null,null,false,false]
[null,null,null,null,null,false,false]
[null,null,null,null,null,false,false]
[null,null,null,null,null,{"$f":"IF(B579=\"TOUT VENANT\",\"Véolia Nice Tri - Parc d'activité logistique\",IF(B579=\"DECHETS VERTS\",\"Orédui Carros Compostage - ZI de la Grave\",IF(B579=\"GRAVATS PROPRES\",\"La Gaude K3 Sita Sud - 5211 Rte de St Jeannet\",IF(B579=\"GRAVATS SALES\",\"Véolia Nice Tri - 20 Ch du Saquier\",IF(B579=\"BOIS\",\"SEAS La Glacière - 1019 Rte de la Grasse\",IF(B579=\"METAUX\",\"Carros\",IF(B579=\"NEON\",\"Sofovar - 126 Av Louis Lépine - 83600 Fréjus\",IF(B579=\"PEINTURES\",\"Orédui - ZI Bois de Grasse - 06310 Grasse\",IF(B579=\"FROIDS\",\"SEAS - 1079 Rte de Grasse - 06270 Villeneuve Loubet\",IF(B579=\"HORS FROIDS\",\"SEAS - 1079 Rte de Grasse - 06270 Villeneuve Loubet\",IF(B579=\"PAM\",\"SEAS - 1079 Rte de Grasse - 06270 Villeneuve Loubet\",IF(B579=\"ECRANS\",\"SEAS - 1079 Rte de Grasse - 06270 Villeneuve Loubet\",IF(B579=\"HUILES DE VIDANGE\",\"SERAHU - 68 Ch de la Campanette - 06800 Cagnes sur Mer\")))))))))))))","v":false},{"$f":"IF(OR(B579=\"TOUT VENANT\",B579=\"DECHETS VERTS\",B579=\"GRAVATS SALES\",B579=\"GRAVATS PROPRES\",B579=\"BOIS\"),\"SUEZ\",IF(OR(B579=\"FROIDS\",B579=\"HORS FROIDS\",B579=\"PAM\",B579=\"ECRANS\"),\"SEAS\",IF(OR(B579=\"METAUX\"),\"DERICHEBOURG\",IF(OR(B579=\"NEON\"),\"SOFOVAR\",IF(OR(B579=\"PEINTURES\"),\"OREDUI\",IF(OR(B579=\"HUILES DE VIDANGE\"),\"SERAHU\"))))))","v":false}]
[null,null,null,null,null,false,false]
[null,null,null,null,null,false,false]
[null,null,null,null,null,false,false]
[null,null,null,null,null,false,false]
[null,null,null,null,null,false,false]
[null,null,null,null,null,false,false]
[null,null,null,null,null,false,false]
[null,null,null,null,null,false,false]
[null,null,null,null,null,false,false]
[null,null,null,null,null,false,false]
[null,null,null,null,null,false,false]
[null,null,null,null,null,false,false]
[null,null,null,null,null,false,false]
[null,null,null,null,null,false,false]
[null,null,null,null,null,false,false]
[null,null,null,null,null,false,false]
[null,null,null,null,null,false,false]
[null,null,null,null,null,false,false]
[null,null,null,null,null,false,false]
[null,null,null,null,null,false,false]
[null,null,null,null,null,false,false]
[null,null,null,null,null,false,false]
[null,null,null,null,null,false,false]
[null,null,null,null,null,false,false]
[null,null,null,null,null,false,false]
[null,null,null,null,null,false,false]
[null,null,null,null,null,false,false]
[null,null,null,null,null,false,false]
[null,null,null,null,null,false,false]
[null,null,null,null,null,false,false]
[null,null,null,null,null,false,false]
[null,null,null,null,null,false,false]
[null,null,null,null,null,false,false]
[null,null,null,null,null,false,false]
[null,null,null,null,null,false,false]
[null,null,null,null,null,false,false]
[null,null,null,null,null,false,false]
[null,null,null,null,null,false,false]
[null,null,null,null,null,false,false]
[null,null,null,null,null,false,false]
[null,null,null,null,null,false,false]
[null,null,null,null,null,false,false]
[null,null,null,null,null,false,false]
[null,null,null,null,null,false,false]
[null,null,null,null,null,false,false]
[null,null,null,null,null,false,false]
[null,null,null,null,null,false,false]
[null,null,null,null,null,false,false]
[null,null,null,null,null,false,false]
[null,null,null,null,null,false,false]
[null,null,null,null,null,false,false]
[null,null,null,null,null,false,false]
[null,null,null,null,null,false,false]
[null,null,null,null,null,false,false]
[null,null,null,null,null,false,false]
[null,null,null,null,null,false,false]
[null,null,null,null,null,false,false]
[null,null,null,null,null,false,false]
[null,null,null,null,null,false,false]
[null,null,null,null,null,false,false]
[null,null,null,null,null,false,false]
[null,null,null,null,null,false,false]
[null,null,null,null,null,false,false]
[null,null,null,null,null,{"$f":"IF(B643=\"TOUT VENANT\",\"Véolia Nice Tri - Parc d'activité logistique\",IF(B643=\"DECHETS VERTS\",\"Orédui Carros Compostage - ZI de la Grave\",IF(B643=\"GRAVATS PROPRES\",\"La Gaude K3 Sita Sud - 5211 Rte de St Jeannet\",IF(B643=\"GRAVATS SALES\",\"Véolia Nice Tri - 20 Ch du Saquier\",IF(B643=\"BOIS\",\"SEAS La Glacière - 1019 Rte de la Grasse\",IF(B643=\"METAUX\",\"Carros\",IF(B643=\"NEON\",\"Sofovar - 126 Av Louis Lépine - 83600 Fréjus\",IF(B643=\"PEINTURES\",\"Orédui - ZI Bois de Grasse - 06310 Grasse\",IF(B643=\"FROIDS\",\"SEAS - 1079 Rte de Grasse - 06270 Villeneuve Loubet\",IF(B643=\"HORS FROIDS\",\"SEAS - 1079 Rte de Grasse - 06270 Villeneuve Loubet\",IF(B643=\"PAM\",\"SEAS - 1079 Rte de Grasse - 06270 Villeneuve Loubet\",IF(B643=\"ECRANS\",\"SEAS - 1079 Rte de Grasse - 06270 Villeneuve Loubet\",IF(B643=\"HUILES DE VIDANGE\",\"SERAHU - 68 Ch de la Campanette - 06800 Cagnes sur Mer\")))))))))))))","v":false},{"$f":"IF(OR(B643=\"TOUT VENANT\",B643=\"DECHETS VERTS\",B643=\"GRAVATS SALES\",B643=\"GRAVATS PROPRES\",B643=\"BOIS\"),\"SUEZ\",IF(OR(B643=\"FROIDS\",B643=\"HORS FROIDS\",B643=\"PAM\",B643=\"ECRANS\"),\"SEAS\",IF(OR(B643=\"METAUX\"),\"DERICHEBOURG\",IF(OR(B643=\"NEON\"),\"SOFOVAR\",IF(OR(B643=\"PEINTURES\"),\"OREDUI\",IF(OR(B643=\"HUILES DE VIDANGE\"),\"SERAHU\"))))))","v":false}]
[null,null,null,null,null,false,false]
[null,null,null,null,null,false,false]
[null,null,null,null,null,false,false]
[null,null,null,null,null,false,false]
[null,null,null,null,null,false,false]
[null,null,null,null,null,false,false]
[null,null,null,null,null,false,false]
[null,null,null,null,null,false,false]
[null,null,null,null,null,false,false]
[null,null,null,null,null,false,false]
[null,null,null,null,null,false,false]
[null,null,null,null,null,false,false]
[null,null,null,null,null,false,false]
[null,null,null,null,null,false,false]
[null,null,null,null,null,false,false]
[null,null,null,null,null,false,false]
[null,null,null,null,null,false,false]
[null,null,null,null,null,false,false]
[null,null,null,null,null,false,false]
[null,null,null,null,null,false,false]
[null,null,null,null,null,false,false]
[null,null,null,null,null,false,false]
[null,null,null,null,null,false,false]
[null,null,null,null,null,false,false]
[null,null,null,null,null,false,false]
[null,null,null,null,null,false,false]
[null,null,null,null,null,false,false]
[null,null,null,null,null,false,false]
[null,null,null,null,null,false,false]
[null,null,null,null,null,false,false]
[null,null,null,null,null,false,false]
[null,null,null,null,null,false,false]
[null,null,null,null,null,false,false]
[null,null,null,null,null,false,false]
[null,null,null,null,null,false,false]
[null,null,null,null,null,false,false]
[null,null,null,null,null,false,false]
[null,null,null,null,null,false,false]
[null,null,null,null,null,false,false]
[null,null,null,null,null,false,false]
[null,null,null,null,null,false,false]
[null,null,null,null,null,false,false]
[null,null,null,null,null,false,false]
[null,null,null,null,null,false,false]
[null,null,null,null,null,false,false]
[null,null,null,null,null,false,false]
[null,null,null,null,null,false,false]
[null,null,null,null,null,false,false]
[null,null,null,null,null,false,false]
[null,null,null,null,null,false,false]
[null,null,null,null,null,false,false]
[null,null,null,null,null,false,false]
[null,null,null,null,null,false,false]
[null,null,null,null,null,false,false]
[null,null,null,null,null,false,false]
[null,null,null,null,null,false,false]
[null,null,null,null,null,false,false]
[null,null,null,null,null,false,false]
[null,null,null,null,null,false,false]
[null,null,null,null,null,false,false]
[null,null,null,null,null,false,false]
[null,null,null,null,null,false,false]
[null,null,null,null,null,false,false]
[null,null,null,null,null,{"$f":"IF(B707=\"TOUT VENANT\",\"Véolia Nice Tri - Parc d'activité logistique\",IF(B707=\"DECHETS VERTS\",\"Orédui Carros Compostage - ZI de la Grave\",IF(B707=\"GRAVATS PROPRES\",\"La Gaude K3 Sita Sud - 5211 Rte de St Jeannet\",IF(B707=\"GRAVATS SALES\",\"Véolia Nice Tri - 20 Ch du Saquier\",IF(B707=\"BOIS\",\"SEAS La Glacière - 1019 Rte de la Grasse\",IF(B707=\"METAUX\",\"Carros\",IF(B707=\"NEON\",\"Sofovar - 126 Av Louis Lépine - 83600 Fréjus\",IF(B707=\"PEINTURES\",\"Orédui - ZI Bois de Grasse - 06310 Grasse\",IF(B707=\"FROIDS\",\"SEAS - 1079 Rte de Grasse - 06270 Villeneuve Loubet\",IF(B707=\"HORS FROIDS\",\"SEAS - 1079 Rte de Grasse - 06270 Villeneuve Loubet\",IF(B707=\"PAM\",\"SEAS - 1079 Rte de Grasse - 06270 Villeneuve Loubet\",IF(B707=\"ECRANS\",\"SEAS - 1079 Rte de Grasse - 06270 Villeneuve Loubet\",IF(B707=\"HUILES DE VIDANGE\",\"SERAHU - 68 Ch de la Campanette - 06800 Cagnes sur Mer\")))))))))))))","v":false},{"$f":"IF(OR(B707=\"TOUT VENANT\",B707=\"DECHETS VERTS\",B707=\"GRAVATS SALES\",B707=\"GRAVATS PROPRES\",B707=\"BOIS\"),\"SUEZ\",IF(OR(B707=\"FROIDS\",B707=\"HORS FROIDS\",B707=\"PAM\",B707=\"ECRANS\"),\"SEAS\",IF(OR(B707=\"METAUX\"),\"DERICHEBOURG\",IF(OR(B707=\"NEON\"),\"SOFOVAR\",IF(OR(B707=\"PEINTURES\"),\"OREDUI\",IF(OR(B707=\"HUILES DE VIDANGE\"),\"SERAHU\"))))))","v":false}]
[null,null,null,null,null,false,false]
[null,null,null,null,null,false,false]
[null,null,null,null,null,false,false]
[null,null,null,null,null,false,false]
[null,null,null,null,null,false,false]
[null,null,null,null,null,false,false]
[null,null,null,null,null,false,false]
[null,null,null,null,null,false,false]
[null,null,null,null,null,false,false]
[null,null,null,null,null,false,false]
[null,null,null,null,null,false,false]
[null,null,null,null,null,false,false]
[null,null,null,null,null,false,false]
[null,null,null,null,null,false,false]
[null,null,null,null,null,false,false]
[null,null,null,null,null,false,false]
[null,null,null,null,null,false,false]
[null,null,null,null,null,false,false]
[null,null,null,null,null,false,false]
[null,null,null,null,null,false,false]
[null,null,null,null,null,false,false]
[null,null,null,null,null,false,false]
[null,null,null,null,null,false,false]
[null,null,null,null,null,false,false]
[null,null,null,null,null,false,false]
[null,null,null,null,null,false,false]
[null,null,null,null,null,false,false]
[null,null,null,null,null,false,false]
[null,null,null,null,null,false,false]
[null,null,null,null,null,false,false]
[null,null,null,null,null,false,false]
[null,null,null,null,null,false,false]
[null,null,null,null,null,false,false]
[null,null,null,null,null,false,false]
[null,null,null,null,null,false,false]
[null,null,null,null,null,false,false]
[null,null,null,null,null,false,false]
[null,null,null,null,null,false,false]
[null,null,null,null,null,false,false]
[null,null,null,null,null,false,false]
[null,null,null,null,null,false,false]
[null,null,null,null,null,false,false]
[null,null,null,null,null,false,false]
[null,null,null,null,null,false,false]
[null,null,null,null,null,false,false]
[null,null,null,null,null,false,false]
[null,null,null,null,null,false,false]
[null,null,null,null,null,false,false]
[null,null,null,null,null,false,false]
[null,null,null,null,null,false,false]
[null,null,null,null,null,false,false]
[null,null,null,null,null,false,false]
[null,null,null,null,null,false,false]
[null,null,null,null,null,false,false]
[null,null,null,null,null,false,false]
[null,null,null,null,null,false,false]
[null,null,null,null,null,false,false]
[null,null,null,null,null,false,false]
[null,null,null,null,null,false,false]
[null,null,null,null,null,false,false]
[null,null,null,null,null,false,false]
[null,null,null,null,null,false,false]
[null,null,null,null,null,false,false]
[null,null,null,null,null,{"$f":"IF(B771=\"TOUT VENANT\",\"Véolia Nice Tri - Parc d'activité logistique\",IF(B771=\"DECHETS VERTS\",\"Orédui Carros Compostage - ZI de la Grave\",IF(B771=\"GRAVATS PROPRES\",\"La Gaude K3 Sita Sud - 5211 Rte de St Jeannet\",IF(B771=\"GRAVATS SALES\",\"Véolia Nice Tri - 20 Ch du Saquier\",IF(B771=\"BOIS\",\"SEAS La Glacière - 1019 Rte de la Grasse\",IF(B771=\"METAUX\",\"Carros\",IF(B771=\"NEON\",\"Sofovar - 126 Av Louis Lépine - 83600 Fréjus\",IF(B771=\"PEINTURES\",\"Orédui - ZI Bois de Grasse - 06310 Grasse\",IF(B771=\"FROIDS\",\"SEAS - 1079 Rte de Grasse - 06270 Villeneuve Loubet\",IF(B771=\"HORS FROIDS\",\"SEAS - 1079 Rte de Grasse - 06270 Villeneuve Loubet\",IF(B771=\"PAM\",\"SEAS - 1079 Rte de Grasse - 06270 Villeneuve Loubet\",IF(B771=\"ECRANS\",\"SEAS - 1079 Rte de Grasse - 06270 Villeneuve Loubet\",IF(B771=\"HUILES DE VIDANGE\",\"SERAHU - 68 Ch de la Campanette - 06800 Cagnes sur Mer\")))))))))))))","v":false},{"$f":"IF(OR(B771=\"TOUT VENANT\",B771=\"DECHETS VERTS\",B771=\"GRAVATS SALES\",B771=\"GRAVATS PROPRES\",B771=\"BOIS\"),\"SUEZ\",IF(OR(B771=\"FROIDS\",B771=\"HORS FROIDS\",B771=\"PAM\",B771=\"ECRANS\"),\"SEAS\",IF(OR(B771=\"METAUX\"),\"DERICHEBOURG\",IF(OR(B771=\"NEON\"),\"SOFOVAR\",IF(OR(B771=\"PEINTURES\"),\"OREDUI\",IF(OR(B771=\"HUILES DE VIDANGE\"),\"SERAHU\"))))))","v":false}]
[null,null,null,null,null,false,false]
[null,null,null,null,null,false,false]
[null,null,null,null,null,false,false]
[null,null,null,null,null,false,false]